Departmental Family,Entity,Date,Expense Type,Expense Area,Supplier,Supplier Type,Expense Type Description,Transaction Number,Amount,,
DEPARTMENT FOR EDUCATION,DEPARTMENT FOR EDUCATION,19/04/2013,Grants,Supporting Delivery Group,KEEPING KIDS COMPANY,VCS,Grants to third sector organisations / not for profit organisations,1001100,334000.00,,
DEPARTMENT FOR EDUCATION,DEPARTMENT FOR EDUCATION,05/04/2013,Grants,Families Group,CAFCASS,Central Government,Current grant funding to arms length bodies for DfE's contribution to fund activity,2000761,12475478.00,,
DEPARTMENT FOR EDUCATION,DEPARTMENT FOR EDUCATION,10/04/2013,Grants,Supporting Delivery Group,OFFICE OF THE CHILDRENS COMMISSIONER,Central Government,Current grant funding to arms length bodies for DfE's contribution to fund activity,2000762,208048.45,,
DEPARTMENT FOR EDUCATION,DEPARTMENT FOR EDUCATION,10/04/2013,Grants,Supporting Delivery Group,OFFICE OF THE CHILDRENS COMMISSIONER,Central Government,Current grant funding to arms length bodies for DfE's contribution to fund activity,2000763,221456.89,,
DEPARTMENT FOR EDUCATION,DEPARTMENT FOR EDUCATION,30/04/2013,Professional Services Other,Strategic Analysis and Research and Policy Impact Group,IEA,Public Sector,"Research, survey data analysis that will inform policy decision making",3000164,31833.75,,
DEPARTMENT FOR EDUCATION,DEPARTMENT FOR EDUCATION,02/04/2013,Programme costs,School Standards Group,TRIBAL EDUCATION,Commercial,Funding to deliver policies (excluding consultancy) paid to third parties via a service delivery contract,4000122449,40150.00,,
DEPARTMENT FOR EDUCATION,DEPARTMENT FOR EDUCATION,02/04/2013,Programme costs,Children's Services and Departmental Strategy Early Years Extended Schools and Special Needs Group,MOTT MACDONALD LTD,Commercial,Funding to deliver policies (excluding consultancy) paid to third parties via a service delivery contract,4000122466,48333.68,,
DEPARTMENT FOR EDUCATION,DEPARTMENT FOR EDUCATION,02/04/2013,Advertising and Media,Communications Group,M4C,Commercial,Digital media and web production,4000122488,527.59,,
DEPARTMENT FOR EDUCATION,DEPARTMENT FOR EDUCATION,02/04/2013,Professional Services Other,School Standards Group,NFER TRADING LIMITED INV T,Commercial,Research and evaluation activities including contracted out data collation / gathering exercises when there is no analysis or recommendation,4000122637,19976.00,,
DEPARTMENT FOR EDUCATION,DEPARTMENT FOR EDUCATION,02/04/2013,Programme costs,School Standards Group,NFER TRADING LIMITED INV T,Commercial,Funding to deliver policies (excluding consultancy) paid to third parties via a service delivery contract,4000122637,100000.00,,
DEPARTMENT FOR EDUCATION,DEPARTMENT FOR EDUCATION,03/04/2013,Grants,Children's Services and Departmental Strategy Early Years Extended Schools and Special Needs Group,THE ACE CENTRE NORTH,VCS,Grants to third sector organisations / not for profit organisations,4000122752,48576.33,,
DEPARTMENT FOR EDUCATION,DEPARTMENT FOR EDUCATION,03/04/2013,Grants,Families Group,CAFCASS,Central Government,"Grants paid to organisations including agencies, arms length bodies and educational establishments",4000122761,322626.08,,
DEPARTMENT FOR EDUCATION,DEPARTMENT FOR EDUCATION,03/04/2013,Advertising and Media,Communications Group,M4C,Commercial,Digital media and web production,4000122797,14472.42,,
DEPARTMENT FOR EDUCATION,DEPARTMENT FOR EDUCATION,04/04/2013,Programme costs,Children's Services and Departmental Strategy Early Years Extended Schools and Special Needs Group,NATIONAL CHILDRENS BUREAU,VCS,Funding to deliver policies (excluding consultancy) paid to third parties via a service delivery contract,4000123024,669375.76,,
DEPARTMENT FOR EDUCATION,DEPARTMENT FOR EDUCATION,04/04/2013,Programme costs,Families Group,ECORYS UK LTD,Commercial,Funding to deliver policies (excluding consultancy) paid to third parties via a service delivery contract,4000123109,56873.06,,
DEPARTMENT FOR EDUCATION,DEPARTMENT FOR EDUCATION,04/04/2013,Grants,Families Group,THE SHARE FOUNDATION 3RD PARTY TRUST,Public Sector,Grants to third sector organisations / not for profit organisations,4000123328,369600.00,,
DEPARTMENT FOR EDUCATION,DEPARTMENT FOR EDUCATION,04/04/2013,Programme costs,Families Group,THE SHARE FOUNDATION 3RD PARTY TRUST,Public Sector,Funding to deliver policies (excluding consultancy) paid to third parties via a service delivery contract,4000123328,7200.00,,
DEPARTMENT FOR EDUCATION,DEPARTMENT FOR EDUCATION,05/04/2013,Office Solutions,Communications Group,BROADCAST & PRODUCTION SERVICES UK LTD,Commercial,Purchase of office machinery and low value equipment,4000123392,61399.20,,
DEPARTMENT FOR EDUCATION,DEPARTMENT FOR EDUCATION,05/04/2013,Programme costs,Children's Services and Departmental Strategy Early Years Extended Schools and Special Needs Group,ACHIEVEMENT FOR ALL 3AS LTD,VCS,Funding to deliver policies (excluding consultancy) paid to third parties via a service delivery contract,4000123401,382256.00,,
DEPARTMENT FOR EDUCATION,DEPARTMENT FOR EDUCATION,05/04/2013,Programme costs,Children's Services and Departmental Strategy Early Years Extended Schools and Special Needs Group,NDTI,VCS,Funding to deliver policies (excluding consultancy) paid to third parties via a service delivery contract,4000123403,162248.84,,
DEPARTMENT FOR EDUCATION,DEPARTMENT FOR EDUCATION,05/04/2013,Professional Services Other,People and Change,TREASURY SOLICITOR TSOL,Central Government,"Fees / expenses of professionals from the private sector, for example to implement advice or changes",4000123428,51654.48,,
DEPARTMENT FOR EDUCATION,DEPARTMENT FOR EDUCATION,08/04/2013,Grants,School Standards Group,BRITISH COUNCIL,VCS,Grants to third sector organisations / not for profit organisations,4000123507,219828.00,,
DEPARTMENT FOR EDUCATION,DEPARTMENT FOR EDUCATION,08/04/2013,Grants,Families Group,CONSORTIUM OF VOLUNTARY ADOPTION AGENCIES UK LTD,VCS,Grants to third sector organisations / not for profit organisations,4000123521,250000.00,,
DEPARTMENT FOR EDUCATION,DEPARTMENT FOR EDUCATION,09/04/2013,Programme costs,Children's Services and Departmental Strategy Early Years Extended Schools and Special Needs Group,MOTT MACDONALD LTD,Commercial,Funding to deliver policies (excluding consultancy) paid to third parties via a service delivery contract,4000123612,138469.14,,
DEPARTMENT FOR EDUCATION,DEPARTMENT FOR EDUCATION,09/04/2013,Programme costs,School Standards Group,BRITISH COUNCIL,VCS,Funding to deliver policies (excluding consultancy) paid to third parties via a service delivery contract,4000123650,454295.00,,
DEPARTMENT FOR EDUCATION,DEPARTMENT FOR EDUCATION,09/04/2013,Grants,Children's Services and Departmental Strategy Safeguarding Group,DIANA PRINCESS  MEMORIAL AWARD,VCS,Grants to third sector organisations / not for profit organisations,4000123678,38126.50,,
DEPARTMENT FOR EDUCATION,DEPARTMENT FOR EDUCATION,09/04/2013,Professional Services Other,Strategic Analysis and Research and Policy Impact Group,NFER TRADING LIMITED INV T,Commercial,"Research, survey data analysis that will inform policy decision making",4000123688,23242.00,,
DEPARTMENT FOR EDUCATION,DEPARTMENT FOR EDUCATION,09/04/2013,Programme costs,Children's Services and Departmental Strategy Early Years Extended Schools and Special Needs Group,COUNCIL FOR DISABLED,VCS,Funding to deliver policies (excluding consultancy) paid to third parties via a service delivery contract,4000123689,68538.00,,
DEPARTMENT FOR EDUCATION,DEPARTMENT FOR EDUCATION,09/04/2013,Professional Services Other,Children's Services and Departmental Strategy Early Years Extended Schools and Special Needs Group,IPSOS MORI,Commercial,Research and evaluation activities including contracted out data collation / gathering exercises when there is no analysis or recommendation,4000123726,313819.20,,
DEPARTMENT FOR EDUCATION,DEPARTMENT FOR EDUCATION,09/04/2013,Personnel Related,Children's Services and Departmental Strategy Safeguarding Group,GATENBY SANDERSON LTD,Commercial,"Personnel costs including staff recruitment, staff restaurant subsidies, family care expenses",4000123727,22199.00,,
DEPARTMENT FOR EDUCATION,DEPARTMENT FOR EDUCATION,10/04/2013,Personnel Related,People and Change,EDENRED,Commercial,Childcare services provided for staff including the management fee and subsidy costs,4000123747,90950.66,,
DEPARTMENT FOR EDUCATION,DEPARTMENT FOR EDUCATION,10/04/2013,Programme costs,Children's Services and Departmental Strategy Safeguarding Group,DE MONTFORT UNIVERSITY,Public Sector,Funding to deliver policies (excluding consultancy) paid to third parties via a service delivery contract,4000123798,28939.00,,
DEPARTMENT FOR EDUCATION,DEPARTMENT FOR EDUCATION,10/04/2013,Professional Services Other,Strategic Analysis and Research and Policy Impact Group,THE UNIVERSITY OF YORK,Public Sector,"Research, survey data analysis that will inform policy decision making",4000123809,35000.00,,
DEPARTMENT FOR EDUCATION,DEPARTMENT FOR EDUCATION,10/04/2013,Professional Services Other,Children's Services and Departmental Strategy Early Years Extended Schools and Special Needs Group,TNS UK LTD,Commercial,Research and evaluation activities including contracted out data collation / gathering exercises when there is no analysis or recommendation,4000123826,68224.80,,
DEPARTMENT FOR EDUCATION,DEPARTMENT FOR EDUCATION,10/04/2013,Professional Services Other,Children's Services and Departmental Strategy Early Years Extended Schools and Special Needs Group,TNS UK LTD,Commercial,"Research, survey data analysis that will inform policy decision making",4000123826,0.00,,
DEPARTMENT FOR EDUCATION,DEPARTMENT FOR EDUCATION,10/04/2013,Programme costs,School Standards Group,ECORYS UK LTD,Commercial,Funding to deliver policies (excluding consultancy) paid to third parties via a service delivery contract,4000123844,34000.00,,
DEPARTMENT FOR EDUCATION,DEPARTMENT FOR EDUCATION,10/04/2013,Grants,Children's Services and Departmental Strategy Supporting Delivery Group,VIRTUAL STAFF COLLEGE,Commercial,Grants to third sector organisations / not for profit organisations,4000123858,753386.00,,
DEPARTMENT FOR EDUCATION,DEPARTMENT FOR EDUCATION,10/04/2013,Grants,Children's Services and Departmental Strategy Early Years Extended Schools and Special Needs Group,KENT COUNTY COUNCIL,Public Sector,Grants to third sector organisations / not for profit organisations,4000123860,37500.00,,
DEPARTMENT FOR EDUCATION,DEPARTMENT FOR EDUCATION,10/04/2013,Grants,Supporting Delivery Group,V THE NATIONAL YOUNG VOLUNTEERS SERVICE,VCS,Grants to third sector organisations / not for profit organisations,4000123861,100523.50,,
DEPARTMENT FOR EDUCATION,DEPARTMENT FOR EDUCATION,10/04/2013,Professional Services Other,Children's Services and Departmental Strategy Early Years Extended Schools and Special Needs Group,SQW LTD,Commercial,"Research, survey data analysis that will inform policy decision making",4000123869,22722.00,,
DEPARTMENT FOR EDUCATION,DEPARTMENT FOR EDUCATION,10/04/2013,Professional Services Other,Families Group,THE TAVISTOCK INSTITUTE OF HUMAN RELATIONS,VCS,Research and evaluation activities including contracted out data collation / gathering exercises when there is no analysis or recommendation,4000123896,228500.00,,
DEPARTMENT FOR EDUCATION,DEPARTMENT FOR EDUCATION,10/04/2013,Grants,Supporting Delivery Group,THE FOYER FEDERATION,VCS,Grants to third sector organisations / not for profit organisations,4000123897,68621.81,,
DEPARTMENT FOR EDUCATION,DEPARTMENT FOR EDUCATION,10/04/2013,Professional Services Consultancy and Contingent Labour,Families Group,CREATIVE CHOICE,Public Sector,"Advisory services including fees, travel and expenses",4000123920,5969.60,,
DEPARTMENT FOR EDUCATION,DEPARTMENT FOR EDUCATION,10/04/2013,Learning and Development,Strategic Analysis and Research and Policy Impact Group,INSTITUTE OF FISCAL STUDIES,VCS,Staff training and development including materials and courses,4000123965,40.00,,
DEPARTMENT FOR EDUCATION,DEPARTMENT FOR EDUCATION,10/04/2013,Professional Services Other,Strategic Analysis and Research and Policy Impact Group,INSTITUTE OF FISCAL STUDIES,VCS,Research and evaluation activities including contracted out data collation / gathering exercises when there is no analysis or recommendation,4000123965,97277.87,,
DEPARTMENT FOR EDUCATION,DEPARTMENT FOR EDUCATION,10/04/2013,Programme costs,Children's Services and Departmental Strategy Early Years Extended Schools and Special Needs Group,4CHILDREN,VCS,Funding to deliver policies (excluding consultancy) paid to third parties via a service delivery contract,4000123985,52590.00,,
DEPARTMENT FOR EDUCATION,DEPARTMENT FOR EDUCATION,11/04/2013,Facilities,School Standards Group,EDUCATION FUNDING AGENCY,Public Sector,"Building maintenance and repair, including repainting, replacing flooring, etc.",4000124015,32483.63,,
DEPARTMENT FOR EDUCATION,DEPARTMENT FOR EDUCATION,11/04/2013,Travel,Children's Services and Departmental Strategy Directorate Support,REDFERN TRAVEL LTD,Commercial,"Staff business travel including air, coach, ferry, rail and taxi",4000124026,432.10,,
DEPARTMENT FOR EDUCATION,DEPARTMENT FOR EDUCATION,11/04/2013,Travel,Families Group,REDFERN TRAVEL LTD,Commercial,"Staff business travel including air, coach, ferry, rail and taxi",4000124026,71.48,,
DEPARTMENT FOR EDUCATION,DEPARTMENT FOR EDUCATION,11/04/2013,Travel,Families Group,REDFERN TRAVEL LTD,Commercial,"Staff business travel including air, coach, ferry, rail and taxi",4000124026,378.21,,
DEPARTMENT FOR EDUCATION,DEPARTMENT FOR EDUCATION,11/04/2013,Travel,Families Group,REDFERN TRAVEL LTD,Commercial,"Staff business travel including air, coach, ferry, rail and taxi",4000124026,720.86,,
DEPARTMENT FOR EDUCATION,DEPARTMENT FOR EDUCATION,11/04/2013,Travel,Families Group,REDFERN TRAVEL LTD,Commercial,"Staff business travel including air, coach, ferry, rail and taxi",4000124026,6631.13,,
DEPARTMENT FOR EDUCATION,DEPARTMENT FOR EDUCATION,11/04/2013,Travel,Children's Services and Departmental Strategy Supporting Delivery Group,REDFERN TRAVEL LTD,Commercial,"Staff business travel including air, coach, ferry, rail and taxi",4000124026,4634.01,,
DEPARTMENT FOR EDUCATION,DEPARTMENT FOR EDUCATION,11/04/2013,Travel,Children's Services and Departmental Strategy Supporting Delivery Group,REDFERN TRAVEL LTD,Commercial,"Staff business travel including air, coach, ferry, rail and taxi",4000124026,3410.73,,
DEPARTMENT FOR EDUCATION,DEPARTMENT FOR EDUCATION,11/04/2013,Travel,Children's Services and Departmental Strategy Supporting Delivery Group,REDFERN TRAVEL LTD,Commercial,"Staff business travel including air, coach, ferry, rail and taxi",4000124026,72.61,,
DEPARTMENT FOR EDUCATION,DEPARTMENT FOR EDUCATION,11/04/2013,Travel,Children's Services and Departmental Strategy Supporting Delivery Group,REDFERN TRAVEL LTD,Commercial,"Staff business travel including air, coach, ferry, rail and taxi",4000124026,231.66,,
DEPARTMENT FOR EDUCATION,DEPARTMENT FOR EDUCATION,11/04/2013,Travel,Children's Services and Departmental Strategy Supporting Delivery Group,REDFERN TRAVEL LTD,Commercial,"Staff business travel including air, coach, ferry, rail and taxi",4000124026,222.84,,
DEPARTMENT FOR EDUCATION,DEPARTMENT FOR EDUCATION,11/04/2013,Travel,Families Group,REDFERN TRAVEL LTD,Commercial,"Staff business travel including air, coach, ferry, rail and taxi",4000124026,903.99,,
DEPARTMENT FOR EDUCATION,DEPARTMENT FOR EDUCATION,11/04/2013,Travel,Supporting Delivery Group,REDFERN TRAVEL LTD,Commercial,"Staff business travel including air, coach, ferry, rail and taxi",4000124026,3072.26,,
DEPARTMENT FOR EDUCATION,DEPARTMENT FOR EDUCATION,11/04/2013,Travel,Children's Services and Departmental Strategy Safeguarding Group,REDFERN TRAVEL LTD,Commercial,"Staff business travel including air, coach, ferry, rail and taxi",4000124026,30.94,,
DEPARTMENT FOR EDUCATION,DEPARTMENT FOR EDUCATION,11/04/2013,Travel,Children's Services and Departmental Strategy Safeguarding Group,REDFERN TRAVEL LTD,Commercial,"Staff business travel including air, coach, ferry, rail and taxi",4000124026,11952.37,,
DEPARTMENT FOR EDUCATION,DEPARTMENT FOR EDUCATION,11/04/2013,Travel,Children's Services and Departmental Strategy Early Years Extended Schools and Special Needs Group,REDFERN TRAVEL LTD,Commercial,"Staff business travel including air, coach, ferry, rail and taxi",4000124026,2490.18,,
DEPARTMENT FOR EDUCATION,DEPARTMENT FOR EDUCATION,11/04/2013,Travel,Children's Services and Departmental Strategy Early Years Extended Schools and Special Needs Group,REDFERN TRAVEL LTD,Commercial,"Staff business travel including air, coach, ferry, rail and taxi",4000124026,604.98,,
DEPARTMENT FOR EDUCATION,DEPARTMENT FOR EDUCATION,11/04/2013,Travel,Children's Services and Departmental Strategy Early Years Extended Schools and Special Needs Group,REDFERN TRAVEL LTD,Commercial,"Staff business travel including air, coach, ferry, rail and taxi",4000124026,753.00,,
DEPARTMENT FOR EDUCATION,DEPARTMENT FOR EDUCATION,11/04/2013,Travel,Children's Services and Departmental Strategy Early Years Extended Schools and Special Needs Group,REDFERN TRAVEL LTD,Commercial,"Staff business travel including air, coach, ferry, rail and taxi",4000124026,2739.87,,
DEPARTMENT FOR EDUCATION,DEPARTMENT FOR EDUCATION,11/04/2013,Travel,Children's Services and Departmental Strategy Early Years Extended Schools and Special Needs Group,REDFERN TRAVEL LTD,Commercial,"Staff business travel including air, coach, ferry, rail and taxi",4000124026,2902.28,,
DEPARTMENT FOR EDUCATION,DEPARTMENT FOR EDUCATION,11/04/2013,Travel,Strategic Analysis and Research and Policy Impact Group,REDFERN TRAVEL LTD,Commercial,"Staff business travel including air, coach, ferry, rail and taxi",4000124026,2582.90,,
DEPARTMENT FOR EDUCATION,DEPARTMENT FOR EDUCATION,11/04/2013,Travel,Strategy and Performance Group,REDFERN TRAVEL LTD,Commercial,"Staff business travel including air, coach, ferry, rail and taxi",4000124026,2295.81,,
DEPARTMENT FOR EDUCATION,DEPARTMENT FOR EDUCATION,11/04/2013,Travel,Strategy and Performance Group,REDFERN TRAVEL LTD,Commercial,"Staff business travel including air, coach, ferry, rail and taxi",4000124026,544.56,,
DEPARTMENT FOR EDUCATION,DEPARTMENT FOR EDUCATION,11/04/2013,Travel,People and Change,REDFERN TRAVEL LTD,Commercial,"Staff business travel including air, coach, ferry, rail and taxi",4000124026,17914.19,,
DEPARTMENT FOR EDUCATION,DEPARTMENT FOR EDUCATION,11/04/2013,Personnel Related,People and Change,REDFERN TRAVEL LTD,Commercial,Subsistence and lodging allowances for official duty,4000124026,2.79,,
DEPARTMENT FOR EDUCATION,DEPARTMENT FOR EDUCATION,11/04/2013,Travel,People and Change,REDFERN TRAVEL LTD,Commercial,"Staff business travel including air, coach, ferry, rail and taxi",4000124026,174.12,,
DEPARTMENT FOR EDUCATION,DEPARTMENT FOR EDUCATION,11/04/2013,Travel,People and Change,REDFERN TRAVEL LTD,Commercial,"Staff business travel including air, coach, ferry, rail and taxi",4000124026,143.69,,
DEPARTMENT FOR EDUCATION,DEPARTMENT FOR EDUCATION,11/04/2013,Travel,School Standards Group,REDFERN TRAVEL LTD,Commercial,"Staff business travel including air, coach, ferry, rail and taxi",4000124026,6294.33,,
DEPARTMENT FOR EDUCATION,DEPARTMENT FOR EDUCATION,11/04/2013,Personnel Related,School Standards Group,REDFERN TRAVEL LTD,Commercial,Subsistence and lodging allowances for official duty,4000124026,0.72,,
DEPARTMENT FOR EDUCATION,DEPARTMENT FOR EDUCATION,11/04/2013,Travel,School Standards Group,REDFERN TRAVEL LTD,Commercial,"Staff business travel including air, coach, ferry, rail and taxi",4000124026,283.33,,
DEPARTMENT FOR EDUCATION,DEPARTMENT FOR EDUCATION,11/04/2013,Travel,School Standards Group,REDFERN TRAVEL LTD,Commercial,"Staff business travel including air, coach, ferry, rail and taxi",4000124026,4169.14,,
DEPARTMENT FOR EDUCATION,DEPARTMENT FOR EDUCATION,11/04/2013,Travel,Communications Group,REDFERN TRAVEL LTD,Commercial,"Staff business travel including air, coach, ferry, rail and taxi",4000124026,5580.42,,
DEPARTMENT FOR EDUCATION,DEPARTMENT FOR EDUCATION,11/04/2013,Travel,Communications Group,REDFERN TRAVEL LTD,Commercial,"Staff business travel including air, coach, ferry, rail and taxi",4000124026,3146.19,,
DEPARTMENT FOR EDUCATION,DEPARTMENT FOR EDUCATION,11/04/2013,Travel,Communications Group,REDFERN TRAVEL LTD,Commercial,"Staff business travel including air, coach, ferry, rail and taxi",4000124026,947.65,,
DEPARTMENT FOR EDUCATION,DEPARTMENT FOR EDUCATION,11/04/2013,Professional Services Other,Strategic Analysis and Research and Policy Impact Group,NATIONAL CENTRE FOR SOCIAL RESEARCH,VCS,"Research, survey data analysis that will inform policy decision making",4000124046,180213.00,,
DEPARTMENT FOR EDUCATION,DEPARTMENT FOR EDUCATION,11/04/2013,Professional Services Consultancy and Contingent Labour,School Standards Group,DTZ MANAGEMENT SERVICES LTD,Commercial,Estates management services,4000124067,21807.69,,
DEPARTMENT FOR EDUCATION,DEPARTMENT FOR EDUCATION,12/04/2013,Grants,Children's Services and Departmental Strategy Safeguarding Group,THE ANNA FREUD CENTRE,VCS,Grants to third sector organisations / not for profit organisations,4000124103,115001.00,,
DEPARTMENT FOR EDUCATION,DEPARTMENT FOR EDUCATION,12/04/2013,Professional Services Other,Children's Services and Departmental Strategy Early Years Extended Schools and Special Needs Group,FRONTIER ECONOMICS LTD,Commercial,Research and evaluation activities including contracted out data collation / gathering exercises when there is no analysis or recommendation,4000124111,29821.20,,
DEPARTMENT FOR EDUCATION,DEPARTMENT FOR EDUCATION,12/04/2013,Professional Services Other,Children's Services and Departmental Strategy Early Years Extended Schools and Special Needs Group,DISCLOSURE & BARRING SERVICE,Central Government,"Fees / expenses of professionals from the private sector, for example to implement advice or changes",4000124118,133188.00,,
DEPARTMENT FOR EDUCATION,DEPARTMENT FOR EDUCATION,12/04/2013,Professional Services Other,Children's Services and Departmental Strategy Early Years Extended Schools and Special Needs Group,CAPITA EDUCATION RESOURCING,Commercial,"Fees / expenses of professionals from the private sector, for example to implement advice or changes",4000124183,141777.20,,
DEPARTMENT FOR EDUCATION,DEPARTMENT FOR EDUCATION,12/04/2013,Grants,Families Group,TAVISTOCK CENTRE FOR COUPLE RELATIONSHIPS,VCS,Grants to third sector organisations / not for profit organisations,4000124207,69683.00,,
DEPARTMENT FOR EDUCATION,DEPARTMENT FOR EDUCATION,12/04/2013,Programme costs,Families Group,ONE PLUS ONE,VCS,Funding to deliver policies (excluding consultancy) paid to third parties via a service delivery contract,4000124208,255054.32,,
DEPARTMENT FOR EDUCATION,DEPARTMENT FOR EDUCATION,12/04/2013,Grants,Children's Services and Departmental Strategy Early Years Extended Schools and Special Needs Group,MEATH SCHOOL,Public Sector,Grants to third sector organisations / not for profit organisations,4000124219,233037.49,,
DEPARTMENT FOR EDUCATION,DEPARTMENT FOR EDUCATION,12/04/2013,Programme costs,Children's Services and Departmental Strategy Early Years Extended Schools and Special Needs Group,YOUNG MINDS,VCS,Funding to deliver policies (excluding consultancy) paid to third parties via a service delivery contract,4000124230,162723.18,,
DEPARTMENT FOR EDUCATION,DEPARTMENT FOR EDUCATION,12/04/2013,Professional Services Other,Children's Services and Departmental Strategy Early Years Extended Schools and Special Needs Group,ATLANTIC DATA LTD,Commercial,"Fees / expenses of professionals from the private sector, for example to implement advice or changes",4000124260,46542.97,,
DEPARTMENT FOR EDUCATION,DEPARTMENT FOR EDUCATION,15/04/2013,Programme costs,Families Group,GINGERBREAD,VCS,Funding to deliver policies (excluding consultancy) paid to third parties via a service delivery contract,4000124305,27426.00,,
DEPARTMENT FOR EDUCATION,DEPARTMENT FOR EDUCATION,15/04/2013,Professional Services Other,Strategic Analysis and Research and Policy Impact Group,TNS UK LTD,Commercial,"Research, survey data analysis that will inform policy decision making",4000124310,750000.00,,
DEPARTMENT FOR EDUCATION,DEPARTMENT FOR EDUCATION,15/04/2013,Programme costs,Families Group,ONE PLUS ONE,VCS,Funding to deliver policies (excluding consultancy) paid to third parties via a service delivery contract,4000124311,40682.94,,
DEPARTMENT FOR EDUCATION,DEPARTMENT FOR EDUCATION,15/04/2013,Grants,Families Group,THE SHARE FOUNDATION 3RD PARTY TRUST,Public Sector,Grants to third sector organisations / not for profit organisations,4000124340,371800.00,,
DEPARTMENT FOR EDUCATION,DEPARTMENT FOR EDUCATION,15/04/2013,Programme costs,Families Group,CHILDRENS LEGAL CENTRE,VCS,Funding to deliver policies (excluding consultancy) paid to third parties via a service delivery contract,4000124344,34510.57,,
DEPARTMENT FOR EDUCATION,DEPARTMENT FOR EDUCATION,15/04/2013,Grants,Supporting Delivery Group,BRITISH YOUTH COUNCIL,VCS,Grants to third sector organisations / not for profit organisations,4000124359,30500.00,,
DEPARTMENT FOR EDUCATION,DEPARTMENT FOR EDUCATION,15/04/2013,Advertising and Media,Communications Group,CREATIVE CHOICE,Public Sector,Digital media and web production,4000124363,33613.20,,
DEPARTMENT FOR EDUCATION,DEPARTMENT FOR EDUCATION,16/04/2013,Advertising and Media,Children's Services and Departmental Strategy Early Years Extended Schools and Special Needs Group,PROLOG,Commercial,Publications and related services,4000124382,7029.45,,
DEPARTMENT FOR EDUCATION,DEPARTMENT FOR EDUCATION,16/04/2013,Advertising and Media,Families Group,PROLOG,Commercial,Publications and related services,4000124382,295.40,,
DEPARTMENT FOR EDUCATION,DEPARTMENT FOR EDUCATION,16/04/2013,Advertising and Media,Families Group,PROLOG,Commercial,Publications and related services,4000124382,143.61,,
DEPARTMENT FOR EDUCATION,DEPARTMENT FOR EDUCATION,16/04/2013,Advertising and Media,Families Group,PROLOG,Commercial,Publications and related services,4000124382,4.50,,
DEPARTMENT FOR EDUCATION,DEPARTMENT FOR EDUCATION,16/04/2013,Advertising and Media,Children's Services and Departmental Strategy Safeguarding Group,PROLOG,Commercial,Publications and related services,4000124382,5600.44,,
DEPARTMENT FOR EDUCATION,DEPARTMENT FOR EDUCATION,16/04/2013,Office Solutions,Children's Services and Departmental Strategy Early Years Extended Schools and Special Needs Group,PROLOG,Commercial,Storing records off DfE sites,4000124382,150.32,,
DEPARTMENT FOR EDUCATION,DEPARTMENT FOR EDUCATION,16/04/2013,ICT Commodities,Communications Group,PROLOG,Commercial,IT Services,4000124382,648.67,,
DEPARTMENT FOR EDUCATION,DEPARTMENT FOR EDUCATION,16/04/2013,Grants,Families Group,ONE PLUS ONE,VCS,Grants to third sector organisations / not for profit organisations,4000124424,82328.90,,
DEPARTMENT FOR EDUCATION,DEPARTMENT FOR EDUCATION,16/04/2013,Programme costs,Families Group,FAMILY RIGHTS GROUP LTD,VCS,Funding to deliver policies (excluding consultancy) paid to third parties via a service delivery contract,4000124425,39471.00,,
DEPARTMENT FOR EDUCATION,DEPARTMENT FOR EDUCATION,16/04/2013,Grants,Families Group,MARRIAGE CARE,VCS,Grants to third sector organisations / not for profit organisations,4000124432,26927.25,,
DEPARTMENT FOR EDUCATION,DEPARTMENT FOR EDUCATION,16/04/2013,Programme costs,Families Group,ECORYS UK LTD,Commercial,Funding to deliver policies (excluding consultancy) paid to third parties via a service delivery contract,4000124434,65900.89,,
DEPARTMENT FOR EDUCATION,DEPARTMENT FOR EDUCATION,16/04/2013,Grants,Children's Services and Departmental Strategy Early Years Extended Schools and Special Needs Group,NATIONAL CHILDRENS BUREAU,VCS,Grants to third sector organisations / not for profit organisations,4000124445,127500.00,,
DEPARTMENT FOR EDUCATION,DEPARTMENT FOR EDUCATION,16/04/2013,Professional Services Other,Strategic Analysis and Research and Policy Impact Group,RM EDUCATION,Commercial,"Research, survey data analysis that will inform policy decision making",4000124482,28485.00,,
DEPARTMENT FOR EDUCATION,DEPARTMENT FOR EDUCATION,18/04/2013,Grants,Families Group,GINGERBREAD,VCS,Grants to third sector organisations / not for profit organisations,4000124685,44557.31,,
DEPARTMENT FOR EDUCATION,DEPARTMENT FOR EDUCATION,18/04/2013,Grants,Supporting Delivery Group,AMBITION,Commercial,Grants to third sector organisations / not for profit organisations,4000124696,37304.28,,
DEPARTMENT FOR EDUCATION,DEPARTMENT FOR EDUCATION,18/04/2013,Grants,Families Group,SPURGEONS,VCS,Grants to third sector organisations / not for profit organisations,4000124718,38748.04,,
DEPARTMENT FOR EDUCATION,DEPARTMENT FOR EDUCATION,18/04/2013,Grants,Families Group,PRISON ADVICE & CARE TRUST,VCS,Grants to third sector organisations / not for profit organisations,4000124748,28333.21,,
DEPARTMENT FOR EDUCATION,DEPARTMENT FOR EDUCATION,18/04/2013,Grants,Families Group,RELATE,VCS,Grants to third sector organisations / not for profit organisations,4000124752,639769.00,,
DEPARTMENT FOR EDUCATION,DEPARTMENT FOR EDUCATION,18/04/2013,Grants,Families Group,THE PLACE2BE,VCS,Grants to third sector organisations / not for profit organisations,4000124757,64992.29,,
DEPARTMENT FOR EDUCATION,DEPARTMENT FOR EDUCATION,18/04/2013,Programme costs,Families Group,FAMILY LIVES,VCS,Funding to deliver policies (excluding consultancy) paid to third parties via a service delivery contract,4000124763,93364.16,,
DEPARTMENT FOR EDUCATION,DEPARTMENT FOR EDUCATION,22/04/2013,Grants,Children's Services and Departmental Strategy Supporting Delivery Group,LOCAL GOVERNMENT IMPROVEMENT & DEVELOPMENT,Public Sector,Grants to third sector organisations / not for profit organisations,4000124874,500000.00,,
DEPARTMENT FOR EDUCATION,DEPARTMENT FOR EDUCATION,22/04/2013,Grants,Children's Services and Departmental Strategy Safeguarding Group,CHILD & FAMILY TRAINING LTD,VCS,Grants to third sector organisations / not for profit organisations,4000124901,47016.08,,
DEPARTMENT FOR EDUCATION,DEPARTMENT FOR EDUCATION,22/04/2013,Grants,Children's Services and Departmental Strategy Early Years Extended Schools and Special Needs Group,4 CHILDREN EARLY INTERVENTION FOUNDATION ESCROW,VCS,Grants to third sector organisations / not for profit organisations,4000124954,1250000.00,,
DEPARTMENT FOR EDUCATION,DEPARTMENT FOR EDUCATION,22/04/2013,Grants,Families Group,NATIONAL ASSOCIATION OF CHILD CONTACT CENTRES,VCS,Grants to third sector organisations / not for profit organisations,4000125042,43811.96,,
DEPARTMENT FOR EDUCATION,DEPARTMENT FOR EDUCATION,22/04/2013,Grants,Children's Services and Departmental Strategy Early Years Extended Schools and Special Needs Group,NATIONAL DAY NURSERIES ASSOCIATION,VCS,Grants to third sector organisations / not for profit organisations,4000125062,45833.00,,
DEPARTMENT FOR EDUCATION,DEPARTMENT FOR EDUCATION,23/04/2013,Professional Services Other,Children's Services and Departmental Strategy Early Years Extended Schools and Special Needs Group,THE MEDIA GROUP TMG TV LTD,Commercial,"Fees / expenses of professionals from the private sector, for example to implement advice or changes",4000125120,233064.60,,
DEPARTMENT FOR EDUCATION,DEPARTMENT FOR EDUCATION,24/04/2013,Grants,Children's Services and Departmental Strategy Early Years Extended Schools and Special Needs Group,THE FAMILY FUND TRUST,VCS,Grants to third sector organisations / not for profit organisations,4000125156,2877000.00,,
DEPARTMENT FOR EDUCATION,DEPARTMENT FOR EDUCATION,24/04/2013,Grants,Children's Services and Departmental Strategy Early Years Extended Schools and Special Needs Group,YOUNG MINDS,VCS,Grants to third sector organisations / not for profit organisations,4000125170,39412.50,,
DEPARTMENT FOR EDUCATION,DEPARTMENT FOR EDUCATION,24/04/2013,Grants,Families Group,NATIONAL CHILDRENS BUREAU,VCS,Grants to third sector organisations / not for profit organisations,4000125197,52485.75,,
DEPARTMENT FOR EDUCATION,DEPARTMENT FOR EDUCATION,24/04/2013,Programme costs,Families Group,RELATE,VCS,Funding to deliver policies (excluding consultancy) paid to third parties via a service delivery contract,4000125369,200000.00,,
DEPARTMENT FOR EDUCATION,DEPARTMENT FOR EDUCATION,24/04/2013,Grants,Families Group,PROJECT FOR ADVOCACY COUNSELLING & EDUCATION,VCS,Grants to third sector organisations / not for profit organisations,4000125373,55110.52,,
DEPARTMENT FOR EDUCATION,DEPARTMENT FOR EDUCATION,25/04/2013,Programme costs,Families Group,ECORYS UK LTD,Commercial,Funding to deliver policies (excluding consultancy) paid to third parties via a service delivery contract,4000125424,2100.00,,
DEPARTMENT FOR EDUCATION,DEPARTMENT FOR EDUCATION,25/04/2013,Programme costs,School Standards Group,ECORYS UK LTD,Commercial,Funding to deliver policies (excluding consultancy) paid to third parties via a service delivery contract,4000125424,30000.00,,
DEPARTMENT FOR EDUCATION,DEPARTMENT FOR EDUCATION,25/04/2013,Programme costs,Families Group,CORAM,VCS,Funding to deliver policies (excluding consultancy) paid to third parties via a service delivery contract,4000125434,36833.00,,
DEPARTMENT FOR EDUCATION,DEPARTMENT FOR EDUCATION,25/04/2013,Programme costs,Families Group,CONTACT A FAMILY,VCS,Funding to deliver policies (excluding consultancy) paid to third parties via a service delivery contract,4000125516,55226.29,,
DEPARTMENT FOR EDUCATION,DEPARTMENT FOR EDUCATION,25/04/2013,Programme costs,Children's Services and Departmental Strategy Safeguarding Group,NSPCC,VCS,Funding to deliver policies (excluding consultancy) paid to third parties via a service delivery contract,4000125527,50000.00,,
DEPARTMENT FOR EDUCATION,DEPARTMENT FOR EDUCATION,26/04/2013,Professional Services Other,Children's Services and Departmental Strategy Early Years Extended Schools and Special Needs Group,DISCLOSURE & BARRING SERVICE,Central Government,"Fees / expenses of professionals from the private sector, for example to implement advice or changes",4000125549,115016.00,,
DEPARTMENT FOR EDUCATION,DEPARTMENT FOR EDUCATION,26/04/2013,Grants,Children's Services and Departmental Strategy Early Years Extended Schools and Special Needs Group,BIRMINGHAM COMMUNITY HEALTH CARE NHS TRUST,Public Sector,Grants to third sector organisations / not for profit organisations,4000125600,68501.71,,
DEPARTMENT FOR EDUCATION,DEPARTMENT FOR EDUCATION,26/04/2013,Grants,Children's Services and Departmental Strategy Early Years Extended Schools and Special Needs Group,MACINTYRE,VCS,Grants to third sector organisations / not for profit organisations,4000125638,37825.38,,
DEPARTMENT FOR EDUCATION,DEPARTMENT FOR EDUCATION,26/04/2013,Grants,Supporting Delivery Group,QED,VCS,Grants to third sector organisations / not for profit organisations,4000125646,27325.90,,
DEPARTMENT FOR EDUCATION,DEPARTMENT FOR EDUCATION,29/04/2013,Grants,Children's Services and Departmental Strategy Early Years Extended Schools and Special Needs Group,NATIONAL CHILDMINDING ASSOC,VCS,Grants to third sector organisations / not for profit organisations,4000125698,54166.00,,
DEPARTMENT FOR EDUCATION,DEPARTMENT FOR EDUCATION,29/04/2013,Grants,Children's Services and Departmental Strategy Early Years Extended Schools and Special Needs Group,NASEN,VCS,Grants to third sector organisations / not for profit organisations,4000125725,116224.52,,
DEPARTMENT FOR EDUCATION,DEPARTMENT FOR EDUCATION,29/04/2013,Grants,Children's Services and Departmental Strategy Early Years Extended Schools and Special Needs Group,4CHILDREN,VCS,Grants to third sector organisations / not for profit organisations,4000125734,106003.89,,
DEPARTMENT FOR EDUCATION,DEPARTMENT FOR EDUCATION,29/04/2013,Professional Services Other,Strategic Analysis and Research and Policy Impact Group,SHEFFIELD HALLAM UNIVERSITY,Public Sector,Research and evaluation activities including contracted out data collation / gathering exercises when there is no analysis or recommendation,4000125743,27232.00,,
DEPARTMENT FOR EDUCATION,DEPARTMENT FOR EDUCATION,29/04/2013,Professional Services Other,Strategic Analysis and Research and Policy Impact Group,SHEFFIELD HALLAM UNIVERSITY,Public Sector,"Research, survey data analysis that will inform policy decision making",4000125743,8923.00,,
DEPARTMENT FOR EDUCATION,DEPARTMENT FOR EDUCATION,29/04/2013,Grants,Children's Services and Departmental Strategy Early Years Extended Schools and Special Needs Group,CONTINYOU  VCS,VCS,Grants to third sector organisations / not for profit organisations,4000125790,35500.00,,
DEPARTMENT FOR EDUCATION,DEPARTMENT FOR EDUCATION,29/04/2013,Grants,Families Group,CONTACT A FAMILY,VCS,Grants to third sector organisations / not for profit organisations,4000125812,61019.85,,
DEPARTMENT FOR EDUCATION,DEPARTMENT FOR EDUCATION,29/04/2013,Professional Services Other,Children's Services and Departmental Strategy Early Years Extended Schools and Special Needs Group,NATIONAL CENTRE FOR SOCIAL RESEARCH,VCS,"Research, survey data analysis that will inform policy decision making",4000125816,360000.00,,
DEPARTMENT FOR EDUCATION,DEPARTMENT FOR EDUCATION,29/04/2013,Grants,Children's Services and Departmental Strategy Early Years Extended Schools and Special Needs Group,PRE SCHOOL LEARNING ALLIANCE,VCS,Grants to third sector organisations / not for profit organisations,4000125836,254711.48,,
DEPARTMENT FOR EDUCATION,DEPARTMENT FOR EDUCATION,30/04/2013,Grants,Children's Services and Departmental Strategy Early Years Extended Schools and Special Needs Group,PEN GREEN RESEARCH,Commercial,Grants to third sector organisations / not for profit organisations,4000125861,43313.00,,
DEPARTMENT FOR EDUCATION,DEPARTMENT FOR EDUCATION,12/04/2013,Programme costs,Teachers Group,TEACHERS SUPERANN,Public Sector,Non-commercial expenditure for the purpose of early departure from a programme provision,2000767,301597.74,,
DEPARTMENT FOR EDUCATION,DEPARTMENT FOR EDUCATION,12/04/2013,Programme costs,Teachers Group,TEACHERS SUPERANN,Public Sector,Non-commercial expenditure for the purpose of early departure from a programme provision,2000767,8552.22,,
DEPARTMENT FOR EDUCATION,DEPARTMENT FOR EDUCATION,12/04/2013,Programme costs,Teachers Group,TEACHERS SUPERANN,Public Sector,Non-commercial expenditure for the purpose of early departure from a programme provision,2000767,704641.62,,
DEPARTMENT FOR EDUCATION,DEPARTMENT FOR EDUCATION,02/04/2013,ICT Commodities,Chief Information Officer Group,CAPGEMINI UK PLC,Commercial,IT Services,4000122625,84215.87,,
DEPARTMENT FOR EDUCATION,DEPARTMENT FOR EDUCATION,02/04/2013,ICT Commodities,Chief Information Officer Group,CAPGEMINI UK PLC,Commercial,IT Services,4000122625,33008.39,,
DEPARTMENT FOR EDUCATION,DEPARTMENT FOR EDUCATION,02/04/2013,ICT Commodities,Chief Information Officer Group,CAPGEMINI UK PLC,Commercial,IT Services,4000122625,16835.34,,
DEPARTMENT FOR EDUCATION,DEPARTMENT FOR EDUCATION,02/04/2013,ICT Commodities,Chief Information Officer Group,CAPGEMINI UK PLC,Commercial,Capital licences and intangible work in progress,4000122625,184697.80,,
DEPARTMENT FOR EDUCATION,DEPARTMENT FOR EDUCATION,03/04/2013,ICT Commodities,Chief Information Officer Group,BT GLOBAL SERVICES,Commercial,ICT equipment,4000122696,20087.55,,
DEPARTMENT FOR EDUCATION,DEPARTMENT FOR EDUCATION,03/04/2013,ICT Commodities,Chief Information Officer Group,CAPGEMINI UK PLC,Commercial,IT Services,4000122710,61769.20,,
DEPARTMENT FOR EDUCATION,DEPARTMENT FOR EDUCATION,03/04/2013,ICT Commodities,Chief Information Officer Group,CAPGEMINI UK PLC,Commercial,Capital licences and intangible work in progress,4000122710,102767.73,,
DEPARTMENT FOR EDUCATION,DEPARTMENT FOR EDUCATION,09/04/2013,ICT Commodities,Chief Information Officer Group,INSIGHT DIRECT UK LTD,Commercial,Off the shelf software including ad hoc low value software licences,4000123639,1651.20,,
DEPARTMENT FOR EDUCATION,DEPARTMENT FOR EDUCATION,09/04/2013,ICT Commodities,Chief Information Officer Group,INSIGHT DIRECT UK LTD,Commercial,ICT Commodities,4000123639,23858.83,,
DEPARTMENT FOR EDUCATION,DEPARTMENT FOR EDUCATION,09/04/2013,ICT Commodities,Chief Information Officer Group,ATKINS LTD,Commercial,IT Services,4000123658,40617.00,,
DEPARTMENT FOR EDUCATION,DEPARTMENT FOR EDUCATION,10/04/2013,ICT Commodities,Chief Information Officer Group,ORACLE CORPORATION UK LTD,Commercial,"Computer equipment and components, maintenance and support",4000123748,103380.74,,
DEPARTMENT FOR EDUCATION,DEPARTMENT FOR EDUCATION,10/04/2013,ICT Commodities,Chief Information Officer Group,DELL CORPORATION LTD,Commercial,ICT equipment,4000123749,45852.24,,
DEPARTMENT FOR EDUCATION,DEPARTMENT FOR EDUCATION,10/04/2013,ICT Commodities,Chief Information Officer Group,DELL CORPORATION LTD,Commercial,ICT equipment,4000123749,3004.13,,
DEPARTMENT FOR EDUCATION,DEPARTMENT FOR EDUCATION,10/04/2013,ICT Commodities,Chief Information Officer Group,DELL CORPORATION LTD,Commercial,ICT equipment,4000123749,392.20,,
DEPARTMENT FOR EDUCATION,DEPARTMENT FOR EDUCATION,10/04/2013,ICT Commodities,Chief Information Officer Group,DELL CORPORATION LTD,Commercial,ICT equipment,4000123750,93576.00,,
DEPARTMENT FOR EDUCATION,DEPARTMENT FOR EDUCATION,10/04/2013,ICT Commodities,Chief Information Officer Group,IBM UNITED KINGDOM LTD,Commercial,Off the shelf software including ad hoc low value software licences,4000123801,126182.96,,
DEPARTMENT FOR EDUCATION,DEPARTMENT FOR EDUCATION,10/04/2013,ICT Commodities,Chief Information Officer Group,SPECIALIST COMPUTER CENTRES PLC,Commercial,Off the shelf software including ad hoc low value software licences,4000123827,5370.93,,
DEPARTMENT FOR EDUCATION,DEPARTMENT FOR EDUCATION,10/04/2013,ICT Commodities,Chief Information Officer Group,SPECIALIST COMPUTER CENTRES PLC,Commercial,IT Services,4000123827,37453.20,,
DEPARTMENT FOR EDUCATION,DEPARTMENT FOR EDUCATION,10/04/2013,ICT Commodities,Chief Information Officer Group,BT GLOBAL SERVICES,Commercial,ICT equipment,4000123846,26801.88,,
DEPARTMENT FOR EDUCATION,DEPARTMENT FOR EDUCATION,10/04/2013,ICT Commodities,Chief Information Officer Group,UK PRINT AUDITS LTD,Commercial,IT Services,4000123847,28200.00,,
DEPARTMENT FOR EDUCATION,DEPARTMENT FOR EDUCATION,10/04/2013,ICT Commodities,Chief Information Officer Group,PHOENIX SOFTWARE LTD,Commercial,Off the shelf software including ad hoc low value software licences,4000123895,41775.00,,
DEPARTMENT FOR EDUCATION,DEPARTMENT FOR EDUCATION,10/04/2013,ICT Commodities,Chief Information Officer Group,INSIGHT DIRECT UK LIMITED,Commercial,Off the shelf software including ad hoc low value software licences,4000123914,20472.00,,
DEPARTMENT FOR EDUCATION,DEPARTMENT FOR EDUCATION,10/04/2013,ICT Commodities,Chief Information Officer Group,INSIGHT DIRECT UK LIMITED,Commercial,Off the shelf software including ad hoc low value software licences,4000123914,136605.46,,
DEPARTMENT FOR EDUCATION,DEPARTMENT FOR EDUCATION,10/04/2013,ICT Commodities,Chief Information Officer Group,INSIGHT DIRECT UK LIMITED,Commercial,Software licences or licence maintenance exceeding 12 months,4000123914,111891.40,,
DEPARTMENT FOR EDUCATION,DEPARTMENT FOR EDUCATION,10/04/2013,ICT Commodities,Chief Information Officer Group,PROACT IT UK LTD,Commercial,Hardware maintenance and support of computer networks and systems,4000123954,324880.28,,
DEPARTMENT FOR EDUCATION,DEPARTMENT FOR EDUCATION,10/04/2013,ICT Commodities,Chief Information Officer Group,PROACT IT UK LTD,Commercial,IT Services,4000123954,3600.00,,
DEPARTMENT FOR EDUCATION,DEPARTMENT FOR EDUCATION,10/04/2013,ICT Commodities,Chief Information Officer Group,PROACT IT UK LTD,Commercial,Hardware maintenance and support of computer networks and systems,4000123954,34173.27,,
DEPARTMENT FOR EDUCATION,DEPARTMENT FOR EDUCATION,10/04/2013,ICT Commodities,Chief Information Officer Group,SKILLS FUNDING AGENCY,Central Government,IT Services,4000123983,476732.47,,
DEPARTMENT FOR EDUCATION,DEPARTMENT FOR EDUCATION,10/04/2013,ICT Commodities,Chief Information Officer Group,SKILLS FUNDING AGENCY,Central Government,"Computer equipment and components, maintenance and support",4000123983,7267.50,,
DEPARTMENT FOR EDUCATION,DEPARTMENT FOR EDUCATION,11/04/2013,Travel,Chief Information Officer Group,REDFERN TRAVEL LTD,Commercial,"Staff business travel including air, coach, ferry, rail and taxi",4000124026,2801.96,,
DEPARTMENT FOR EDUCATION,DEPARTMENT FOR EDUCATION,11/04/2013,Travel,Chief Information Officer Group,REDFERN TRAVEL LTD,Commercial,"Staff business travel including air, coach, ferry, rail and taxi",4000124026,1680.64,,
DEPARTMENT FOR EDUCATION,DEPARTMENT FOR EDUCATION,11/04/2013,Travel,Chief Information Officer Group,REDFERN TRAVEL LTD,Commercial,"Staff business travel including air, coach, ferry, rail and taxi",4000124026,1467.56,,
DEPARTMENT FOR EDUCATION,DEPARTMENT FOR EDUCATION,11/04/2013,Travel,Chief Information Officer Group,REDFERN TRAVEL LTD,Commercial,"Staff business travel including air, coach, ferry, rail and taxi",4000124026,3467.90,,
DEPARTMENT FOR EDUCATION,DEPARTMENT FOR EDUCATION,11/04/2013,Travel,Chief Information Officer Group,REDFERN TRAVEL LTD,Commercial,"Staff business travel including air, coach, ferry, rail and taxi",4000124026,929.25,,
DEPARTMENT FOR EDUCATION,DEPARTMENT FOR EDUCATION,11/04/2013,Learning and Development,Chief Information Officer Group,REDFERN TRAVEL LTD,Commercial,Staff training and development including materials and courses,4000124026,2.15,,
DEPARTMENT FOR EDUCATION,DEPARTMENT FOR EDUCATION,11/04/2013,Travel,Chief Information Officer Group,REDFERN TRAVEL LTD,Commercial,"Staff business travel including air, coach, ferry, rail and taxi",4000124026,5501.00,,
DEPARTMENT FOR EDUCATION,DEPARTMENT FOR EDUCATION,11/04/2013,Travel,Chief Information Officer Group,REDFERN TRAVEL LTD,Commercial,"Staff business travel including air, coach, ferry, rail and taxi",4000124026,5347.27,,
DEPARTMENT FOR EDUCATION,DEPARTMENT FOR EDUCATION,11/04/2013,Personnel Related,Chief Information Officer Group,REDFERN TRAVEL LTD,Commercial,Subsistence and lodging allowances for official duty,4000124026,3.75,,
DEPARTMENT FOR EDUCATION,DEPARTMENT FOR EDUCATION,11/04/2013,Travel,Chief Information Officer Group,REDFERN TRAVEL LTD,Commercial,"Staff business travel including air, coach, ferry, rail and taxi",4000124026,393.71,,
DEPARTMENT FOR EDUCATION,DEPARTMENT FOR EDUCATION,11/04/2013,Travel,Chief Information Officer Group,REDFERN TRAVEL LTD,Commercial,"Staff business travel including air, coach, ferry, rail and taxi",4000124026,4005.47,,
DEPARTMENT FOR EDUCATION,DEPARTMENT FOR EDUCATION,11/04/2013,Travel,Chief Information Officer Group,REDFERN TRAVEL LTD,Commercial,"Staff business travel including air, coach, ferry, rail and taxi",4000124026,5034.68,,
DEPARTMENT FOR EDUCATION,DEPARTMENT FOR EDUCATION,11/04/2013,Personnel Related,Chief Information Officer Group,REDFERN TRAVEL LTD,Commercial,Subsistence and lodging allowances for official duty,4000124026,0.94,,
DEPARTMENT FOR EDUCATION,DEPARTMENT FOR EDUCATION,11/04/2013,Travel,Chief Information Officer Group,REDFERN TRAVEL LTD,Commercial,"Staff business travel including air, coach, ferry, rail and taxi",4000124026,1684.18,,
DEPARTMENT FOR EDUCATION,DEPARTMENT FOR EDUCATION,11/04/2013,Travel,Chief Information Officer Group,REDFERN TRAVEL LTD,Commercial,"Staff business travel including air, coach, ferry, rail and taxi",4000124026,617.81,,
DEPARTMENT FOR EDUCATION,DEPARTMENT FOR EDUCATION,11/04/2013,Travel,Chief Information Officer Group,REDFERN TRAVEL LTD,Commercial,"Staff business travel including air, coach, ferry, rail and taxi",4000124026,2.99,,
DEPARTMENT FOR EDUCATION,DEPARTMENT FOR EDUCATION,11/04/2013,Travel,Chief Information Officer Group,REDFERN TRAVEL LTD,Commercial,"Staff business travel including air, coach, ferry, rail and taxi",4000124026,2608.84,,
DEPARTMENT FOR EDUCATION,DEPARTMENT FOR EDUCATION,11/04/2013,Travel,Chief Information Officer Group,REDFERN TRAVEL LTD,Commercial,"Staff business travel including air, coach, ferry, rail and taxi",4000124026,2729.72,,
DEPARTMENT FOR EDUCATION,DEPARTMENT FOR EDUCATION,11/04/2013,Travel,Chief Information Officer Group,REDFERN TRAVEL LTD,Commercial,"Staff business travel including air, coach, ferry, rail and taxi",4000124026,4319.16,,
DEPARTMENT FOR EDUCATION,DEPARTMENT FOR EDUCATION,11/04/2013,Travel,Chief Information Officer Group,REDFERN TRAVEL LTD,Commercial,"Staff business travel including air, coach, ferry, rail and taxi",4000124026,54.51,,
DEPARTMENT FOR EDUCATION,DEPARTMENT FOR EDUCATION,11/04/2013,Travel,Chief Information Officer Group,REDFERN TRAVEL LTD,Commercial,"Staff business travel including air, coach, ferry, rail and taxi",4000124026,162.48,,
DEPARTMENT FOR EDUCATION,DEPARTMENT FOR EDUCATION,11/04/2013,Travel,Chief Information Officer Group,REDFERN TRAVEL LTD,Commercial,"Staff business travel including air, coach, ferry, rail and taxi",4000124026,159.31,,
DEPARTMENT FOR EDUCATION,DEPARTMENT FOR EDUCATION,11/04/2013,ICT Commodities,Chief Information Officer Group,REDWEB,Commercial,IT Services,4000124056,95306.18,,
DEPARTMENT FOR EDUCATION,DEPARTMENT FOR EDUCATION,11/04/2013,ICT Commodities,Chief Information Officer Group,SPECIALIST COMPUTER CENTRES PLC,Commercial,"Computer equipment and components, maintenance and support",4000124062,32576.45,,
DEPARTMENT FOR EDUCATION,DEPARTMENT FOR EDUCATION,11/04/2013,ICT Commodities,Chief Information Officer Group,DELL CORPORATION LTD,Commercial,ICT equipment,4000124089,93576.00,,
DEPARTMENT FOR EDUCATION,DEPARTMENT FOR EDUCATION,11/04/2013,ICT Commodities,Chief Information Officer Group,DELL CORPORATION LTD,Commercial,ICT equipment,4000124089,3067.38,,
DEPARTMENT FOR EDUCATION,DEPARTMENT FOR EDUCATION,12/04/2013,ICT Commodities,Chief Information Officer Group,ATKINS MANTIX LTD,Commercial,IT Services,4000124206,27124.84,,
DEPARTMENT FOR EDUCATION,DEPARTMENT FOR EDUCATION,12/04/2013,ICT Commodities,Chief Information Officer Group,INSIGHT DIRECT UK LIMITED,Commercial,Off the shelf software including ad hoc low value software licences,4000124245,559712.55,,
DEPARTMENT FOR EDUCATION,DEPARTMENT FOR EDUCATION,16/04/2013,Advertising and Media,Chief Information Officer Group,PROLOG,Commercial,Digital media and web production,4000124382,26512.32,,
DEPARTMENT FOR EDUCATION,DEPARTMENT FOR EDUCATION,16/04/2013,Advertising and Media,Chief Information Officer Group,PROLOG,Commercial,Digital media and web production,4000124382,33949.34,,
DEPARTMENT FOR EDUCATION,DEPARTMENT FOR EDUCATION,16/04/2013,Advertising and Media,Chief Information Officer Group,PROLOG,Commercial,Digital media and web production,4000124382,15080.40,,
DEPARTMENT FOR EDUCATION,DEPARTMENT FOR EDUCATION,16/04/2013,Advertising and Media,Chief Information Officer Group,PROLOG,Commercial,Digital media and web production,4000124382,67933.43,,
DEPARTMENT FOR EDUCATION,DEPARTMENT FOR EDUCATION,16/04/2013,Advertising and Media,Chief Information Officer Group,PROLOG,Commercial,Digital media and web production,4000124382,35176.20,,
DEPARTMENT FOR EDUCATION,DEPARTMENT FOR EDUCATION,16/04/2013,ICT Commodities,Chief Information Officer Group,ATKINS MANTIX LTD,Commercial,IT Services,4000124422,35495.17,,
DEPARTMENT FOR EDUCATION,DEPARTMENT FOR EDUCATION,17/04/2013,ICT Commodities,Chief Information Officer Group,BT GLOBAL SERVICES,Commercial,IT Services,4000124510,2521.81,,
DEPARTMENT FOR EDUCATION,DEPARTMENT FOR EDUCATION,17/04/2013,ICT Commodities,Chief Information Officer Group,BT GLOBAL SERVICES,Commercial,Fixed and mobile telecoms services,4000124510,12916.80,,
DEPARTMENT FOR EDUCATION,DEPARTMENT FOR EDUCATION,18/04/2013,Office Solutions,Chief Information Officer Group,BRITISH TELECOMMUNICATIONS PLC,Commercial,Purchase of office machinery and low value equipment,4000124650,17829.02,,
DEPARTMENT FOR EDUCATION,DEPARTMENT FOR EDUCATION,18/04/2013,ICT Commodities,Chief Information Officer Group,BRITISH TELECOMMUNICATIONS PLC,Commercial,Telecoms Facilities and Services ,4000124650,11052.13,,
DEPARTMENT FOR EDUCATION,DEPARTMENT FOR EDUCATION,18/04/2013,ICT Commodities,Chief Information Officer Group,REDWEB,Commercial,IT Services,4000124687,57277.75,,
DEPARTMENT FOR EDUCATION,DEPARTMENT FOR EDUCATION,18/04/2013,Advertising and Media,Chief Information Officer Group,REDWEB,Commercial,Communications and market research,4000124687,2986.90,,
DEPARTMENT FOR EDUCATION,DEPARTMENT FOR EDUCATION,18/04/2013,ICT Commodities,Chief Information Officer Group,MICROSOFT LTD,Commercial,IT Services,4000124727,211800.00,,
DEPARTMENT FOR EDUCATION,DEPARTMENT FOR EDUCATION,24/04/2013,ICT Commodities,Chief Information Officer Group,SOURCECODE UK LTD,Commercial,Off the shelf software including ad hoc low value software licences,4000125218,30318.30,,
DEPARTMENT FOR EDUCATION,DEPARTMENT FOR EDUCATION,24/04/2013,Professional Services Consultancy and Contingent Labour,Chief Information Officer Group,CABLE & WIRELESS UK,Commercial,"Fees / expenses of professionals from the private sector such as auditors, accountants, lawyers, etc. engaged to provide advice or opinion on how to affect something",4000125226,-9740.60,,
DEPARTMENT FOR EDUCATION,DEPARTMENT FOR EDUCATION,24/04/2013,ICT Commodities,Chief Information Officer Group,CABLE & WIRELESS UK,Commercial,"Telecommunications including telephone cards, line rental and equipment, cost of maintenance, etc",4000125226,6492.56,,
DEPARTMENT FOR EDUCATION,DEPARTMENT FOR EDUCATION,25/04/2013,ICT Commodities,Chief Information Officer Group,INSIGHT DIRECT UK LIMITED,Commercial,Software licences or licence maintenance exceeding 12 months,4000125457,29217.48,,
DEPARTMENT FOR EDUCATION,DEPARTMENT FOR EDUCATION,25/04/2013,ICT Commodities,Chief Information Officer Group,ACTICA CONSULTING LTD,Commercial,"Computer equipment and components, maintenance and support",4000125465,101010.30,,
DEPARTMENT FOR EDUCATION,DEPARTMENT FOR EDUCATION,25/04/2013,ICT Commodities,Chief Information Officer Group,CABLE & WIRELESS PLC,Commercial,IT Services,4000125468,10390.35,,
DEPARTMENT FOR EDUCATION,DEPARTMENT FOR EDUCATION,25/04/2013,ICT Commodities,Chief Information Officer Group,CABLE & WIRELESS PLC,Commercial,"Telecommunications including telephone cards, line rental and equipment, cost of maintenance, etc",4000125468,82576.40,,
DEPARTMENT FOR EDUCATION,DEPARTMENT FOR EDUCATION,25/04/2013,ICT Commodities,Chief Information Officer Group,CABLE & WIRELESS PLC,Commercial,"Telecommunications including telephone cards, line rental and equipment, cost of maintenance, etc",4000125468,10027.13,,
DEPARTMENT FOR EDUCATION,DEPARTMENT FOR EDUCATION,05/04/2013,Grants,Participation and Vocational Education Group,DEPARTMENT FOR BUSINESS INNOVATION & SKILLS,Central Government,"Grants paid to organisations including agencies, arms length bodies and educational establishments",2000759,555724.00,,
DEPARTMENT FOR EDUCATION,DEPARTMENT FOR EDUCATION,22/04/2013,Grants,Participation and Vocational Education Group,DEPARTMENT FOR BUSINESS INNOVATION & SKILLS,Central Government,"Grants paid to organisations including agencies, arms length bodies and educational establishments",2000768,203426.00,,
DEPARTMENT FOR EDUCATION,DEPARTMENT FOR EDUCATION,02/04/2013,Programme costs,Participation and Vocational Education Group,ASSOCIATION OF EMPLOYMENT & LEARNING PROVIDERS,Public Sector,Funding to deliver policies (excluding consultancy) paid to third parties via a service delivery contract,4000122565,67012.20,,
DEPARTMENT FOR EDUCATION,DEPARTMENT FOR EDUCATION,02/04/2013,Programme costs,Curriculum and General Qualifications Reform Group,UNIVERSITY OF BRIGHTON,Public Sector,Funding to deliver policies (excluding consultancy) paid to third parties via a service delivery contract,4000122592,26250.00,,
DEPARTMENT FOR EDUCATION,DEPARTMENT FOR EDUCATION,02/04/2013,ICT Commodities,Participation and Vocational Education Group,NORTHGATE INFORMATION SOLUTIONS UK LTD,Commercial,Hardware maintenance and support of computer networks and systems,4000122597,153813.00,,
DEPARTMENT FOR EDUCATION,DEPARTMENT FOR EDUCATION,02/04/2013,Programme costs,Curriculum and General Qualifications Reform Group,INSTITUTE OF EDUCATION,Public Sector,Funding to deliver policies (excluding consultancy) paid to third parties via a service delivery contract,4000122619,15000.00,,
DEPARTMENT FOR EDUCATION,DEPARTMENT FOR EDUCATION,04/04/2013,Programme costs,Curriculum and General Qualifications Reform Group,EDGE HILL UNIVERSITY,Public Sector,Funding to deliver policies (excluding consultancy) paid to third parties via a service delivery contract,4000123082,50362.13,,
DEPARTMENT FOR EDUCATION,DEPARTMENT FOR EDUCATION,05/04/2013,Programme costs,Curriculum and General Qualifications Reform Group,THE OPEN UNIVERSITY,Public Sector,Funding to deliver policies (excluding consultancy) paid to third parties via a service delivery contract,4000123378,36250.00,,
DEPARTMENT FOR EDUCATION,DEPARTMENT FOR EDUCATION,05/04/2013,Programme costs,Curriculum and General Qualifications Reform Group,MATHEMATICS IN EDUCATION & INDUSTRY,VCS,Funding to deliver policies (excluding consultancy) paid to third parties via a service delivery contract,4000123407,330900.00,,
DEPARTMENT FOR EDUCATION,DEPARTMENT FOR EDUCATION,05/04/2013,Programme costs,Curriculum and General Qualifications Reform Group,TRIBAL EDUCATION LIMITED,Commercial,Funding to deliver policies (excluding consultancy) paid to third parties via a service delivery contract,4000123426,366165.36,,
DEPARTMENT FOR EDUCATION,DEPARTMENT FOR EDUCATION,08/04/2013,Grants,Curriculum and General Qualifications Reform Group,SPORT ENGLAND,Central Government,Grants to third sector organisations / not for profit organisations,4000123469,70000.00,,
DEPARTMENT FOR EDUCATION,DEPARTMENT FOR EDUCATION,08/04/2013,Grants,Curriculum and General Qualifications Reform Group,THE HOLOCAUST EDUCATIONAL TRUST,VCS,Grants to third sector organisations / not for profit organisations,4000123535,387500.00,,
DEPARTMENT FOR EDUCATION,DEPARTMENT FOR EDUCATION,08/04/2013,Grants,Participation and Vocational Education Group,KENT COUNTY COUNCIL,Public Sector,Grants to third sector organisations / not for profit organisations,4000123558,50000.00,,
DEPARTMENT FOR EDUCATION,DEPARTMENT FOR EDUCATION,09/04/2013,Professional Services Other,Participation and Vocational Education Group,TNS BMRB,Public Sector,"Research, survey data analysis that will inform policy decision making",4000123598,56200.00,,
DEPARTMENT FOR EDUCATION,DEPARTMENT FOR EDUCATION,09/04/2013,Programme costs,Teachers Group,BIS DEPARTMENT FOR BUSINESS INNOVATION & SKILLS,Central Government,Funding to deliver policies (excluding consultancy) paid to third parties via a service delivery contract,4000123621,28600.00,,
DEPARTMENT FOR EDUCATION,DEPARTMENT FOR EDUCATION,09/04/2013,Programme costs,Teachers Group,GOVERNMENT ACTUARYS DEPARTMENT GAD,Central Government,Funding to deliver policies (excluding consultancy) paid to third parties via a service delivery contract,4000123638,32354.75,,
DEPARTMENT FOR EDUCATION,DEPARTMENT FOR EDUCATION,09/04/2013,Professional Services Other,Participation and Vocational Education Group,NFER TRADING LIMITED INV T,Commercial,Research and evaluation activities including contracted out data collation / gathering exercises when there is no analysis or recommendation,4000123687,62324.40,,
DEPARTMENT FOR EDUCATION,DEPARTMENT FOR EDUCATION,09/04/2013,Grants,Participation and Vocational Education Group,SKILL FORCE DEVELOPMENT,VCS,Grants to third sector organisations / not for profit organisations,4000123724,62510.19,,
DEPARTMENT FOR EDUCATION,DEPARTMENT FOR EDUCATION,10/04/2013,Programme costs,Curriculum and General Qualifications Reform Group,IOP INSTITUTE OF PHYSICS,Public Sector,Funding to deliver policies (excluding consultancy) paid to third parties via a service delivery contract,4000123806,435358.95,,
DEPARTMENT FOR EDUCATION,DEPARTMENT FOR EDUCATION,10/04/2013,Professional Services Other,Teachers Group,TNS BMRB,Public Sector,"Research, survey data analysis that will inform policy decision making",4000123867,27874.00,,
DEPARTMENT FOR EDUCATION,DEPARTMENT FOR EDUCATION,10/04/2013,Programme costs,Curriculum and General Qualifications Reform Group,UNIVERSITY OF NORTHAMPTON,Public Sector,Funding to deliver policies (excluding consultancy) paid to third parties via a service delivery contract,4000123917,135000.00,,
DEPARTMENT FOR EDUCATION,DEPARTMENT FOR EDUCATION,11/04/2013,Travel,Education Strategy Performance Analysis Group,REDFERN TRAVEL LTD,Commercial,"Staff business travel including air, coach, ferry, rail and taxi",4000124026,10735.51,,
DEPARTMENT FOR EDUCATION,DEPARTMENT FOR EDUCATION,11/04/2013,Travel,Education Strategy Performance Analysis Group,REDFERN TRAVEL LTD,Commercial,"Staff business travel including air, coach, ferry, rail and taxi to attend training events",4000124026,0.42,,
DEPARTMENT FOR EDUCATION,DEPARTMENT FOR EDUCATION,11/04/2013,Travel,Teachers Group,REDFERN TRAVEL LTD,Commercial,"Staff business travel including air, coach, ferry, rail and taxi",4000124026,3589.47,,
DEPARTMENT FOR EDUCATION,DEPARTMENT FOR EDUCATION,11/04/2013,Personnel Related,Teachers Group,REDFERN TRAVEL LTD,Commercial,Subsistence and lodging allowances for official duty,4000124026,0.06,,
DEPARTMENT FOR EDUCATION,DEPARTMENT FOR EDUCATION,11/04/2013,Travel,Education Standards Directorate,REDFERN TRAVEL LTD,Commercial,"Staff business travel including air, coach, ferry, rail and taxi",4000124026,457.22,,
DEPARTMENT FOR EDUCATION,DEPARTMENT FOR EDUCATION,11/04/2013,Travel,Education Strategy Performance Analysis Group,REDFERN TRAVEL LTD,Commercial,"Staff business travel including air, coach, ferry, rail and taxi",4000124026,705.73,,
DEPARTMENT FOR EDUCATION,DEPARTMENT FOR EDUCATION,11/04/2013,Travel,Education Strategy Performance Analysis Group,REDFERN TRAVEL LTD,Commercial,"Staff business travel including air, coach, ferry, rail and taxi",4000124026,475.40,,
DEPARTMENT FOR EDUCATION,DEPARTMENT FOR EDUCATION,11/04/2013,Travel,Education Strategy Performance Analysis Group,REDFERN TRAVEL LTD,Commercial,"Staff business travel including air, coach, ferry, rail and taxi",4000124026,495.64,,
DEPARTMENT FOR EDUCATION,DEPARTMENT FOR EDUCATION,11/04/2013,Travel,Education Strategy Performance Analysis Group,REDFERN TRAVEL LTD,Commercial,"Staff business travel including air, coach, ferry, rail and taxi",4000124026,1168.79,,
DEPARTMENT FOR EDUCATION,DEPARTMENT FOR EDUCATION,11/04/2013,Travel,Education Strategy Performance Analysis Group,REDFERN TRAVEL LTD,Commercial,"Staff business travel including air, coach, ferry, rail and taxi",4000124026,307.35,,
DEPARTMENT FOR EDUCATION,DEPARTMENT FOR EDUCATION,11/04/2013,Travel,Education Strategy Performance Analysis Group,REDFERN TRAVEL LTD,Commercial,"Staff business travel including air, coach, ferry, rail and taxi",4000124026,253.71,,
DEPARTMENT FOR EDUCATION,DEPARTMENT FOR EDUCATION,11/04/2013,Travel,Curriculum and General Qualifications Reform Group,REDFERN TRAVEL LTD,Commercial,"Staff business travel including air, coach, ferry, rail and taxi",4000124026,168.73,,
DEPARTMENT FOR EDUCATION,DEPARTMENT FOR EDUCATION,11/04/2013,Travel,Curriculum and General Qualifications Reform Group,REDFERN TRAVEL LTD,Commercial,"Staff business travel including air, coach, ferry, rail and taxi",4000124026,1517.99,,
DEPARTMENT FOR EDUCATION,DEPARTMENT FOR EDUCATION,11/04/2013,Travel,Curriculum and General Qualifications Reform Group,REDFERN TRAVEL LTD,Commercial,"Staff business travel including air, coach, ferry, rail and taxi",4000124026,5913.63,,
DEPARTMENT FOR EDUCATION,DEPARTMENT FOR EDUCATION,11/04/2013,Travel,Curriculum and General Qualifications Reform Group,REDFERN TRAVEL LTD,Commercial,"Staff business travel including air, coach, ferry, rail and taxi",4000124026,285.64,,
DEPARTMENT FOR EDUCATION,DEPARTMENT FOR EDUCATION,11/04/2013,Travel,Participation and Vocational Education Group,REDFERN TRAVEL LTD,Commercial,"Staff business travel including air, coach, ferry, rail and taxi",4000124026,2573.22,,
DEPARTMENT FOR EDUCATION,DEPARTMENT FOR EDUCATION,11/04/2013,Travel,Education Strategy Performance Analysis Group,REDFERN TRAVEL LTD,Commercial,"Staff business travel including air, coach, ferry, rail and taxi",4000124026,6923.74,,
DEPARTMENT FOR EDUCATION,DEPARTMENT FOR EDUCATION,11/04/2013,Travel,Curriculum and General Qualifications Reform Group,REDFERN TRAVEL LTD,Commercial,"Staff business travel including air, coach, ferry, rail and taxi",4000124026,2228.44,,
DEPARTMENT FOR EDUCATION,DEPARTMENT FOR EDUCATION,11/04/2013,Travel,Education Strategy Performance Analysis Group,REDFERN TRAVEL LTD,Commercial,"Staff business travel including air, coach, ferry, rail and taxi",4000124026,1312.83,,
DEPARTMENT FOR EDUCATION,DEPARTMENT FOR EDUCATION,11/04/2013,Travel,Participation and Vocational Education Group,REDFERN TRAVEL LTD,Commercial,"Staff business travel including air, coach, ferry, rail and taxi",4000124026,5117.45,,
DEPARTMENT FOR EDUCATION,DEPARTMENT FOR EDUCATION,11/04/2013,Travel,Education Strategy Performance Analysis Group,REDFERN TRAVEL LTD,Commercial,"Staff business travel including air, coach, ferry, rail and taxi",4000124026,1094.32,,
DEPARTMENT FOR EDUCATION,DEPARTMENT FOR EDUCATION,11/04/2013,Travel,Participation and Vocational Education Group,REDFERN TRAVEL LTD,Commercial,"Staff business travel including air, coach, ferry, rail and taxi",4000124026,354.53,,
DEPARTMENT FOR EDUCATION,DEPARTMENT FOR EDUCATION,11/04/2013,Travel,Curriculum and General Qualifications Reform Group,REDFERN TRAVEL LTD,Commercial,"Staff business travel including air, coach, ferry, rail and taxi",4000124026,1015.95,,
DEPARTMENT FOR EDUCATION,DEPARTMENT FOR EDUCATION,11/04/2013,Travel,Participation and Vocational Education Group,REDFERN TRAVEL LTD,Commercial,"Staff business travel including air, coach, ferry, rail and taxi",4000124026,216.05,,
DEPARTMENT FOR EDUCATION,DEPARTMENT FOR EDUCATION,11/04/2013,Travel,Participation and Vocational Education Group,REDFERN TRAVEL LTD,Commercial,"Staff business travel including air, coach, ferry, rail and taxi",4000124026,4565.96,,
DEPARTMENT FOR EDUCATION,DEPARTMENT FOR EDUCATION,11/04/2013,Travel,Curriculum and General Qualifications Reform Group,REDFERN TRAVEL LTD,Commercial,"Staff business travel including air, coach, ferry, rail and taxi",4000124026,692.37,,
DEPARTMENT FOR EDUCATION,DEPARTMENT FOR EDUCATION,11/04/2013,Travel,Participation and Vocational Education Group,REDFERN TRAVEL LTD,Commercial,"Staff business travel including air, coach, ferry, rail and taxi",4000124026,1427.61,,
DEPARTMENT FOR EDUCATION,DEPARTMENT FOR EDUCATION,11/04/2013,Travel,Participation and Vocational Education Group,REDFERN TRAVEL LTD,Commercial,"Staff business travel including air, coach, ferry, rail and taxi",4000124026,2879.66,,
DEPARTMENT FOR EDUCATION,DEPARTMENT FOR EDUCATION,11/04/2013,Travel,Participation and Vocational Education Group,REDFERN TRAVEL LTD,Commercial,"Staff business travel including air, coach, ferry, rail and taxi to attend training events",4000124026,0.92,,
DEPARTMENT FOR EDUCATION,DEPARTMENT FOR EDUCATION,11/04/2013,Travel,Teachers Group,REDFERN TRAVEL LTD,Commercial,"Staff business travel including air, coach, ferry, rail and taxi",4000124026,818.37,,
DEPARTMENT FOR EDUCATION,DEPARTMENT FOR EDUCATION,11/04/2013,Travel,Teachers Group,REDFERN TRAVEL LTD,Commercial,"Staff business travel including air, coach, ferry, rail and taxi",4000124026,2727.05,,
DEPARTMENT FOR EDUCATION,DEPARTMENT FOR EDUCATION,11/04/2013,Travel,Teachers Group,REDFERN TRAVEL LTD,Commercial,"Staff business travel including air, coach, ferry, rail and taxi",4000124026,5013.72,,
DEPARTMENT FOR EDUCATION,DEPARTMENT FOR EDUCATION,11/04/2013,Travel,Teachers Group,REDFERN TRAVEL LTD,Commercial,"Staff business travel including air, coach, ferry, rail and taxi",4000124026,799.08,,
DEPARTMENT FOR EDUCATION,DEPARTMENT FOR EDUCATION,11/04/2013,Advertising and Media,Education Strategy Performance Analysis Group,SCISYS UK LTD,Commercial,Publications and related services,4000124063,25000.00,,
DEPARTMENT FOR EDUCATION,DEPARTMENT FOR EDUCATION,11/04/2013,Programme costs,Curriculum and General Qualifications Reform Group,EDGE HILL UNIVERSITY,Public Sector,Funding to deliver policies (excluding consultancy) paid to third parties via a service delivery contract,4000124064,228750.00,,
DEPARTMENT FOR EDUCATION,DEPARTMENT FOR EDUCATION,11/04/2013,ICT Commodities,Education Strategy Performance Analysis Group,SOFTWARE FOR DATA ANALYSIS LTD,Commercial,IT Services,4000124069,28800.00,,
DEPARTMENT FOR EDUCATION,DEPARTMENT FOR EDUCATION,12/04/2013,Grants,Curriculum and General Qualifications Reform Group,PSHE ASSOCIATION,VCS,Grants to third sector organisations / not for profit organisations,4000124110,35000.00,,
DEPARTMENT FOR EDUCATION,DEPARTMENT FOR EDUCATION,12/04/2013,Professional Services Consultancy and Contingent Labour,Education Strategy Performance Analysis Group,GREATER LONDON AUTHORITY,Public Sector,"Advisory services including fees, travel and expenses",4000124145,96302.00,,
DEPARTMENT FOR EDUCATION,DEPARTMENT FOR EDUCATION,12/04/2013,Programme costs,Teachers Group,CAPITA LIFE & PENSIONS SERVICES LTD,Commercial,Funding to deliver policies (excluding consultancy) paid to third parties via a service delivery contract,4000124151,1076836.25,,
DEPARTMENT FOR EDUCATION,DEPARTMENT FOR EDUCATION,12/04/2013,ICT Commodities,Education Strategy Performance Analysis Group,ATKINS LTD,Commercial,IT Services,4000124225,164374.80,,
DEPARTMENT FOR EDUCATION,DEPARTMENT FOR EDUCATION,12/04/2013,Grants,Participation and Vocational Education Group,KNOWSLEY SKILLS ACADEMY,Public Sector,Grants to third sector organisations / not for profit organisations,4000124240,51551.32,,
DEPARTMENT FOR EDUCATION,DEPARTMENT FOR EDUCATION,16/04/2013,Advertising and Media,Education Strategy Performance Analysis Group,PROLOG,Commercial,Publications and related services,4000124382,11.88,,
DEPARTMENT FOR EDUCATION,DEPARTMENT FOR EDUCATION,16/04/2013,Advertising and Media,Education Strategy Performance Analysis Group,PROLOG,Commercial,Communications and market research,4000124382,6942.95,,
DEPARTMENT FOR EDUCATION,DEPARTMENT FOR EDUCATION,16/04/2013,Advertising and Media,Curriculum and General Qualifications Reform Group,PROLOG,Commercial,Publications and related services,4000124382,822.52,,
DEPARTMENT FOR EDUCATION,DEPARTMENT FOR EDUCATION,16/04/2013,Advertising and Media,Curriculum and General Qualifications Reform Group,PROLOG,Commercial,Publications and related services,4000124382,2992.18,,
DEPARTMENT FOR EDUCATION,DEPARTMENT FOR EDUCATION,16/04/2013,Advertising and Media,Curriculum and General Qualifications Reform Group,PROLOG,Commercial,Publications and related services,4000124382,5200.96,,
DEPARTMENT FOR EDUCATION,DEPARTMENT FOR EDUCATION,16/04/2013,Advertising and Media,Participation and Vocational Education Group,PROLOG,Commercial,Publications and related services,4000124382,18.00,,
DEPARTMENT FOR EDUCATION,DEPARTMENT FOR EDUCATION,16/04/2013,ICT Commodities,Education Strategy Performance Analysis Group,ATKINS LTD,Commercial,IT Services,4000124396,120335.12,,
DEPARTMENT FOR EDUCATION,DEPARTMENT FOR EDUCATION,16/04/2013,Grants,Curriculum and General Qualifications Reform Group,UNIVERSITY OF CAMBRIDGE,Public Sector,Grants to third sector organisations / not for profit organisations,4000124413,227071.00,,
DEPARTMENT FOR EDUCATION,DEPARTMENT FOR EDUCATION,17/04/2013,Programme costs,Curriculum and General Qualifications Reform Group,UNIVERSITY OF WINCHESTER,Public Sector,Funding to deliver policies (excluding consultancy) paid to third parties via a service delivery contract,4000124545,127500.00,,
DEPARTMENT FOR EDUCATION,DEPARTMENT FOR EDUCATION,18/04/2013,Grants,Curriculum and General Qualifications Reform Group,BCS,Commercial,Grants to third sector organisations / not for profit organisations,4000124677,42000.00,,
DEPARTMENT FOR EDUCATION,DEPARTMENT FOR EDUCATION,18/04/2013,Grants,Curriculum and General Qualifications Reform Group,ENGINEERING UK,VCS,Grants to third sector organisations / not for profit organisations,4000124734,50000.00,,
DEPARTMENT FOR EDUCATION,DEPARTMENT FOR EDUCATION,18/04/2013,Programme costs,Curriculum and General Qualifications Reform Group,THE POETRY ARCHIVE,VCS,Funding to deliver policies (excluding consultancy) paid to third parties via a service delivery contract,4000124746,54000.00,,
DEPARTMENT FOR EDUCATION,DEPARTMENT FOR EDUCATION,22/04/2013,Advertising and Media,Education Strategy Performance Analysis Group,RM EDUCATION,Commercial,Publications and related services,4000124861,87968.24,,
DEPARTMENT FOR EDUCATION,DEPARTMENT FOR EDUCATION,22/04/2013,Grants,Participation and Vocational Education Group,COMMANDO JOES,Commercial,Grants to third sector organisations / not for profit organisations,4000125064,60649.74,,
DEPARTMENT FOR EDUCATION,DEPARTMENT FOR EDUCATION,24/04/2013,Grants,Curriculum and General Qualifications Reform Group,STEMNET,VCS,Grants to third sector organisations / not for profit organisations,4000125161,125000.00,,
DEPARTMENT FOR EDUCATION,DEPARTMENT FOR EDUCATION,24/04/2013,Grants,Curriculum and General Qualifications Reform Group,MYSCIENCE CO LTD,Commercial,Grants to third sector organisations / not for profit organisations,4000125168,490782.50,,
DEPARTMENT FOR EDUCATION,DEPARTMENT FOR EDUCATION,24/04/2013,ICT Commodities,Education Strategy Performance Analysis Group,SOFTWARE FOR DATA ANALYSIS LTD,Commercial,IT Services,4000125232,80000.00,,
DEPARTMENT FOR EDUCATION,DEPARTMENT FOR EDUCATION,24/04/2013,Programme costs,Teachers Group,CAPITA LIFE & PENSIONS SERVICES LTD,Commercial,Funding to deliver policies (excluding consultancy) paid to third parties via a service delivery contract,4000125298,116874.09,,
DEPARTMENT FOR EDUCATION,DEPARTMENT FOR EDUCATION,24/04/2013,Programme costs,Teachers Group,CAPITA LIFE & PENSIONS SERVICES LTD,Commercial,Funding to deliver policies (excluding consultancy) paid to third parties via a service delivery contract,4000125311,154393.61,,
DEPARTMENT FOR EDUCATION,DEPARTMENT FOR EDUCATION,24/04/2013,Grants,Participation and Vocational Education Group,CSABT LIMITED MUSIC & DANCE SCHEME,Public Sector,Grants to third sector organisations / not for profit organisations,4000125365,8036522.00,,
DEPARTMENT FOR EDUCATION,DEPARTMENT FOR EDUCATION,25/04/2013,Programme costs,Education Strategy Performance Analysis Group,RESEARCH MACHINES PLC,Commercial,Funding to deliver policies (excluding consultancy) paid to third parties via a service delivery contract,4000125412,475641.60,,
DEPARTMENT FOR EDUCATION,DEPARTMENT FOR EDUCATION,25/04/2013,Programme costs,Curriculum and General Qualifications Reform Group,MATHEMATICS IN EDUCATION & INDUSTRY,VCS,Funding to deliver policies (excluding consultancy) paid to third parties via a service delivery contract,4000125432,518700.00,,
DEPARTMENT FOR EDUCATION,DEPARTMENT FOR EDUCATION,25/04/2013,Programme costs,Curriculum and General Qualifications Reform Group,EASTERN SHIRES PURCHASING ORGANISATION,Public Sector,Funding to deliver policies (excluding consultancy) paid to third parties via a service delivery contract,4000125433,996244.70,,
DEPARTMENT FOR EDUCATION,DEPARTMENT FOR EDUCATION,25/04/2013,Programme costs,Curriculum and General Qualifications Reform Group,MYSCIENCE CO LTD,Commercial,Funding to deliver policies (excluding consultancy) paid to third parties via a service delivery contract,4000125436,1223682.70,,
DEPARTMENT FOR EDUCATION,DEPARTMENT FOR EDUCATION,26/04/2013,Office Solutions,Participation and Vocational Education Group,HMRC,Central Government,Storing records off DfE sites,4000125561,54709.65,,
DEPARTMENT FOR EDUCATION,DEPARTMENT FOR EDUCATION,26/04/2013,Programme costs,Teachers Group,BABCOCK 4S LTD,Commercial,Funding to deliver policies (excluding consultancy) paid to third parties via a service delivery contract,4000125624,39032.70,,
DEPARTMENT FOR EDUCATION,DEPARTMENT FOR EDUCATION,29/04/2013,Grants,Teachers Group,COMMUNITY SECURITY TRUST CST,VCS,Grants to third sector organisations / not for profit organisations,4000125660,430253.82,,
DEPARTMENT FOR EDUCATION,DEPARTMENT FOR EDUCATION,29/04/2013,Grants,Curriculum and General Qualifications Reform Group,MYSCIENCE CO LTD,Commercial,Grants to third sector organisations / not for profit organisations,4000125701,26505.88,,
DEPARTMENT FOR EDUCATION,DEPARTMENT FOR EDUCATION,30/04/2013,Programme costs,Teachers Group,EDGE HILL UNIVERSITY,Public Sector,Funding to deliver policies (excluding consultancy) paid to third parties via a service delivery contract,4000125858,156763.45,,
DEPARTMENT FOR EDUCATION,DEPARTMENT FOR EDUCATION,11/04/2013,Travel,Finance and Commercial Group,REDFERN TRAVEL LTD,Commercial,"Staff business travel including air, coach, ferry, rail and taxi",4000124026,27108.09,,
DEPARTMENT FOR EDUCATION,DEPARTMENT FOR EDUCATION,11/04/2013,Personnel Related,Finance and Commercial Group,REDFERN TRAVEL LTD,Commercial,Subsistence and lodging allowances for official duty,4000124026,1.57,,
DEPARTMENT FOR EDUCATION,DEPARTMENT FOR EDUCATION,11/04/2013,Learning and Development,Finance and Commercial Group,REDFERN TRAVEL LTD,Commercial,Staff training and development including materials and courses,4000124026,0.28,,
DEPARTMENT FOR EDUCATION,DEPARTMENT FOR EDUCATION,11/04/2013,Travel,Finance and Commercial Group,REDFERN TRAVEL LTD,Commercial,"Staff business travel including air, coach, ferry, rail and taxi",4000124026,188.16,,
DEPARTMENT FOR EDUCATION,DEPARTMENT FOR EDUCATION,11/04/2013,Travel,ALB Reform Group,REDFERN TRAVEL LTD,Commercial,"Staff business travel including air, coach, ferry, rail and taxi",4000124026,3015.75,,
DEPARTMENT FOR EDUCATION,DEPARTMENT FOR EDUCATION,11/04/2013,Personnel Related,ALB Reform Group,REDFERN TRAVEL LTD,Commercial,Subsistence and lodging allowances for official duty,4000124026,1.04,,
DEPARTMENT FOR EDUCATION,DEPARTMENT FOR EDUCATION,11/04/2013,Travel,Finance and Commercial Group,REDFERN TRAVEL LTD,Commercial,"Staff business travel including air, coach, ferry, rail and taxi",4000124026,1117.12,,
DEPARTMENT FOR EDUCATION,DEPARTMENT FOR EDUCATION,11/04/2013,Travel,Finance and Commercial Group,REDFERN TRAVEL LTD,Commercial,"Staff business travel including air, coach, ferry, rail and taxi",4000124026,638.60,,
DEPARTMENT FOR EDUCATION,DEPARTMENT FOR EDUCATION,11/04/2013,Travel,Finance and Commercial Group,REDFERN TRAVEL LTD,Commercial,"Staff business travel including air, coach, ferry, rail and taxi",4000124026,8311.42,,
DEPARTMENT FOR EDUCATION,DEPARTMENT FOR EDUCATION,10/04/2013,Facilities,Finance and Commercial Group - Property Asset Management,EC HARRIS LLP,Commercial,"Building maintenance and repair, including repainting, replacing flooring, etc.",4000123843,14708.16,,
DEPARTMENT FOR EDUCATION,DEPARTMENT FOR EDUCATION,10/04/2013,Facilities,Finance and Commercial Group - Property Asset Management,EC HARRIS LLP,Commercial,Provision and management of facilities including the costs for running cost approved projects,4000123843,10530.00,,
DEPARTMENT FOR EDUCATION,DEPARTMENT FOR EDUCATION,10/04/2013,Facilities,Finance and Commercial Group - Property Asset Management,COFELY LTD,Commercial,Building Management,4000123887,282259.80,,
DEPARTMENT FOR EDUCATION,DEPARTMENT FOR EDUCATION,11/04/2013,Travel,Finance and Commercial Group,REDFERN TRAVEL LTD,Commercial,"Staff business travel including air, coach, ferry, rail and taxi",4000124026,46.11,,
DEPARTMENT FOR EDUCATION,DEPARTMENT FOR EDUCATION,11/04/2013,Travel,Finance and Commercial Group - Property Asset Management,REDFERN TRAVEL LTD,Commercial,"Staff business travel including air, coach, ferry, rail and taxi",4000124026,7470.44,,
DEPARTMENT FOR EDUCATION,DEPARTMENT FOR EDUCATION,11/04/2013,Travel,Finance and Commercial Group,REDFERN TRAVEL LTD,Commercial,"Staff business travel including air, coach, ferry, rail and taxi",4000124026,2406.59,,
DEPARTMENT FOR EDUCATION,DEPARTMENT FOR EDUCATION,11/04/2013,Travel,Finance and Commercial Group,REDFERN TRAVEL LTD,Commercial,"Staff business travel including air, coach, ferry, rail and taxi to attend training events",4000124026,0.56,,
DEPARTMENT FOR EDUCATION,DEPARTMENT FOR EDUCATION,15/04/2013,Facilities,Finance and Commercial Group - Property Asset Management,EC HARRIS LLP,Commercial,Provision and management of facilities including the costs for running cost approved projects,4000124313,33517.20,,
DEPARTMENT FOR EDUCATION,DEPARTMENT FOR EDUCATION,17/04/2013,Facilities,Finance and Commercial Group - Property Asset Management,INTERSERVE FACILITIES MANAGEMENT LTD,Commercial,"Building maintenance and repair, including repainting, replacing flooring, etc.",4000124590,78588.12,,
DEPARTMENT FOR EDUCATION,DEPARTMENT FOR EDUCATION,22/04/2013,Facilities,Finance and Commercial Group - Property Asset Management,COFELY LTD,Commercial,"Building maintenance and repair, including repainting, replacing flooring, etc.",4000125039,24304.47,,
DEPARTMENT FOR EDUCATION,DEPARTMENT FOR EDUCATION,24/04/2013,Energy and Fuels,Finance and Commercial Group - Property Asset Management,EDF ENERGY LTD,Commercial,Electricity supply,4000125157,63004.25,,
DEPARTMENT FOR EDUCATION,DEPARTMENT FOR EDUCATION,24/04/2013,Facilities,Finance and Commercial Group - Property Asset Management,INTERSERVE FACILITIES MANAGEMENT LTD,Commercial,"Building maintenance and repair, including repainting, replacing flooring, etc.",4000125255,212375.28,,
DEPARTMENT FOR EDUCATION,DEPARTMENT FOR EDUCATION,25/04/2013,Facilities,Finance and Commercial Group - Property Asset Management,INTERSERVE FACILITIES MANAGEMENT LTD,Commercial,"Building maintenance and repair, including repainting, replacing flooring, etc.",4000125426,342986.66,,
DEPARTMENT FOR EDUCATION,DEPARTMENT FOR EDUCATION,25/04/2013,Facilities,Finance and Commercial Group - Property Asset Management,INTERSERVE FACILITIES MANAGEMENT LTD,Commercial,"Building maintenance and repair, including repainting, replacing flooring, etc.",4000125426,107125.13,,
DEPARTMENT FOR EDUCATION,DEPARTMENT FOR EDUCATION,25/04/2013,Facilities,Finance and Commercial Group - Property Asset Management,INTERSERVE FACILITIES MANAGEMENT LTD,Commercial,"Building maintenance and repair, including repainting, replacing flooring, etc.",4000125426,246528.34,,
DEPARTMENT FOR EDUCATION,DEPARTMENT FOR EDUCATION,26/04/2013,Facilities,Finance and Commercial Group - Property Asset Management,INTERSERVE FACILITIES MANAGEMENT LTD,Commercial,"Building maintenance and repair, including repainting, replacing flooring, etc.",4000125586,118361.89,,
DEPARTMENT FOR EDUCATION,DEPARTMENT FOR EDUCATION,23/04/2013,Grants,Academies Delivery Group,HARRY TAYLOR SCHOOL,Public Sector,"Grants paid to organisations including agencies, arms length bodies and educational establishments",1001101,60000.00,,
DEPARTMENT FOR EDUCATION,DEPARTMENT FOR EDUCATION,30/04/2013,Grants,Academies Delivery Group,FOCUS ACADEMIES TRUST UK LTD,Public Sector,"Grants paid to organisations including agencies, arms length bodies and educational establishments",1001106,60000.00,,
DEPARTMENT FOR EDUCATION,DEPARTMENT FOR EDUCATION,30/04/2013,Grants,Free School Group,GILDREDGE HOUSE FREE SCHOOL,Public Sector,"Grants paid to organisations including agencies, arms length bodies and educational establishments",1001110,60000.00,,
DEPARTMENT FOR EDUCATION,DEPARTMENT FOR EDUCATION,02/04/2013,Professional Services Consultancy and Contingent Labour,System Reform Group,ANN BERGER LTD,Commercial,"Fees / expenses of professionals from the private sector such as auditors, accountants, lawyers, etc. engaged to provide advice or opinion on how to affect something",4000122651,21099.00,,
DEPARTMENT FOR EDUCATION,DEPARTMENT FOR EDUCATION,04/04/2013,Grants,Academies Delivery Group,ST GREGORYS RC COMPREHENSIVE SCHOOL,Public Sector,"Grants paid to organisations including agencies, arms length bodies and educational establishments",4000122926,25000.00,,
DEPARTMENT FOR EDUCATION,DEPARTMENT FOR EDUCATION,08/04/2013,Grants,Free School Group,BILINGUAL PRIMARY SCHOOL PROJECT LTD,Public Sector,"Grants paid to organisations including agencies, arms length bodies and educational establishments",4000123489,35001.03,,
DEPARTMENT FOR EDUCATION,DEPARTMENT FOR EDUCATION,08/04/2013,Grants,Academies Delivery Group,LANCASHIRE COUNTY COUNCIL,Public Sector,To clear budget deficit liability of a maintained school to facilitate conversion to an academy.,4000123502,155168.00,,
DEPARTMENT FOR EDUCATION,DEPARTMENT FOR EDUCATION,08/04/2013,Grants,Office of the Schools Commissioner Group,SOUTH TYNESIDE COLLEGE,Public Sector,"Grants paid to organisations including agencies, arms length bodies and educational establishments",4000123509,77000.00,,
DEPARTMENT FOR EDUCATION,DEPARTMENT FOR EDUCATION,08/04/2013,Grants,Office of the Schools Commissioner Group,EDUCATION EXCELLENCE FOR ALL TRUST,Public Sector,"Grants paid to organisations including agencies, arms length bodies and educational establishments",4000123510,46650.00,,
DEPARTMENT FOR EDUCATION,DEPARTMENT FOR EDUCATION,08/04/2013,Grants,Office of the Schools Commissioner Group,LION ACADEMY TRUST,Public Sector,"Grants paid to organisations including agencies, arms length bodies and educational establishments",4000123511,102910.00,,
DEPARTMENT FOR EDUCATION,DEPARTMENT FOR EDUCATION,08/04/2013,Grants,Free School Group,EAST LONDON UTC LTD,Commercial,"Grants paid to organisations including agencies, arms length bodies and educational establishments",4000123537,30000.00,,
DEPARTMENT FOR EDUCATION,DEPARTMENT FOR EDUCATION,08/04/2013,Grants,Academies Delivery Group,ACADEMY ENTERPRISE TRUST,Public Sector,"Grants paid to organisations including agencies, arms length bodies and educational establishments",4000123545,165825.16,,
DEPARTMENT FOR EDUCATION,DEPARTMENT FOR EDUCATION,08/04/2013,Grants,Academies Delivery Group,WARWICKSHIRE COUNTY COUNCIL,Public Sector,To clear budget deficit liability of a maintained school to facilitate conversion to an academy.,4000123549,37992.22,,
DEPARTMENT FOR EDUCATION,DEPARTMENT FOR EDUCATION,09/04/2013,Grants,Academies Delivery Group,PORTFIELD PRIMARY SCHOOL,Public Sector,Capital grants paid to a private sector organisation,4000123608,50000.00,,
DEPARTMENT FOR EDUCATION,DEPARTMENT FOR EDUCATION,09/04/2013,Grants,Academies Delivery Group,THE KEMNAL ACADEMIES TRUST,Public Sector,"Grants paid to organisations including agencies, arms length bodies and educational establishments",4000123611,38000.00,,
DEPARTMENT FOR EDUCATION,DEPARTMENT FOR EDUCATION,09/04/2013,Grants,Academies Delivery Group,YORK ROAD JUNIOR ACADEMY,Public Sector,Capital grants paid to a private sector organisation,4000123616,50000.00,,
DEPARTMENT FOR EDUCATION,DEPARTMENT FOR EDUCATION,09/04/2013,Grants,Academies Delivery Group,PENDLE EDUCATION TRUST,Public Sector,"Grants paid to organisations including agencies, arms length bodies and educational establishments",4000123629,26476.00,,
DEPARTMENT FOR EDUCATION,DEPARTMENT FOR EDUCATION,09/04/2013,Grants,Office of the Schools Commissioner Group,THE COTGRAVE CANDLEBY LANE SCHOOL TS ACCOUNT,Public Sector,"Grants paid to organisations including agencies, arms length bodies and educational establishments",4000123636,85075.00,,
DEPARTMENT FOR EDUCATION,DEPARTMENT FOR EDUCATION,09/04/2013,Grants,Office of the Schools Commissioner Group,ST MARYS ACADEMY TRUST,Public Sector,"Grants paid to organisations including agencies, arms length bodies and educational establishments",4000123647,50000.00,,
DEPARTMENT FOR EDUCATION,DEPARTMENT FOR EDUCATION,09/04/2013,Grants,Academies Delivery Group,NAVIGATE ACADEMY TRUST,Public Sector,"Grants paid to organisations including agencies, arms length bodies and educational establishments",4000123673,174065.00,,
DEPARTMENT FOR EDUCATION,DEPARTMENT FOR EDUCATION,09/04/2013,Grants,Academies Delivery Group,ACADEMY ENTERPRISE TRUST,Public Sector,"Grants paid to organisations including agencies, arms length bodies and educational establishments",4000123676,47952.74,,
DEPARTMENT FOR EDUCATION,DEPARTMENT FOR EDUCATION,09/04/2013,Grants,Academies Delivery Group,ACADEMY ENTERPRISE TRUST,Public Sector,Capital grants paid to a private sector organisation,4000123676,10731.00,,
DEPARTMENT FOR EDUCATION,DEPARTMENT FOR EDUCATION,09/04/2013,Grants,Academies Delivery Group,ARK SCHOOLS,Public Sector,"Grants paid to organisations including agencies, arms length bodies and educational establishments",4000123732,74836.03,,
DEPARTMENT FOR EDUCATION,DEPARTMENT FOR EDUCATION,10/04/2013,Grants,Academies Delivery Group,CWA ACADEMY TRUST,Public Sector,"Grants paid to organisations including agencies, arms length bodies and educational establishments",4000123739,100000.00,,
DEPARTMENT FOR EDUCATION,DEPARTMENT FOR EDUCATION,10/04/2013,Grants,Office of the Schools Commissioner Group,THE CORNWALL ACADEMY TRUST,Public Sector,"Grants paid to organisations including agencies, arms length bodies and educational establishments",4000123755,71500.00,,
DEPARTMENT FOR EDUCATION,DEPARTMENT FOR EDUCATION,10/04/2013,Grants,Academies Delivery Group,MEOPHAM COMMUNITY PRIMARY SCHOOL,Public Sector,"Grants paid to organisations including agencies, arms length bodies and educational establishments",4000123761,60000.00,,
DEPARTMENT FOR EDUCATION,DEPARTMENT FOR EDUCATION,10/04/2013,Grants,Office of the Schools Commissioner Group,LINCOLN ANGLICAN METHODIST ACADEMIES TRUST,Public Sector,"Grants paid to organisations including agencies, arms length bodies and educational establishments",4000123923,41550.00,,
DEPARTMENT FOR EDUCATION,DEPARTMENT FOR EDUCATION,10/04/2013,Grants,Academies Delivery Group,MOSSBOURNE COMMUNITY ACADEMY TRUST,Public Sector,"Grants paid to organisations including agencies, arms length bodies and educational establishments",4000123924,50000.00,,
DEPARTMENT FOR EDUCATION,DEPARTMENT FOR EDUCATION,10/04/2013,Grants,Office of the Schools Commissioner Group,GLYN SCHOOL,Public Sector,"Grants paid to organisations including agencies, arms length bodies and educational establishments",4000123935,51430.00,,
DEPARTMENT FOR EDUCATION,DEPARTMENT FOR EDUCATION,11/04/2013,Travel,Free School Group,REDFERN TRAVEL LTD,Commercial,"Staff business travel including air, coach, ferry, rail and taxi",4000124026,398.29,,
DEPARTMENT FOR EDUCATION,DEPARTMENT FOR EDUCATION,11/04/2013,Travel,System Reform Group,REDFERN TRAVEL LTD,Commercial,"Staff business travel including air, coach, ferry, rail and taxi",4000124026,5492.74,,
DEPARTMENT FOR EDUCATION,DEPARTMENT FOR EDUCATION,11/04/2013,Travel,Education Funding Group,REDFERN TRAVEL LTD,Commercial,"Staff business travel including air, coach, ferry, rail and taxi",4000124026,2462.92,,
DEPARTMENT FOR EDUCATION,DEPARTMENT FOR EDUCATION,11/04/2013,Travel,System Reform Group,REDFERN TRAVEL LTD,Commercial,"Staff business travel including air, coach, ferry, rail and taxi",4000124026,6863.04,,
DEPARTMENT FOR EDUCATION,DEPARTMENT FOR EDUCATION,11/04/2013,Travel,System Reform Group,REDFERN TRAVEL LTD,Commercial,"Staff business travel including air, coach, ferry, rail and taxi",4000124026,3164.20,,
DEPARTMENT FOR EDUCATION,DEPARTMENT FOR EDUCATION,11/04/2013,Travel,System Reform Group,REDFERN TRAVEL LTD,Commercial,"Staff business travel including air, coach, ferry, rail and taxi",4000124026,137.35,,
DEPARTMENT FOR EDUCATION,DEPARTMENT FOR EDUCATION,11/04/2013,Travel,System Reform Group,REDFERN TRAVEL LTD,Commercial,"Staff business travel including air, coach, ferry, rail and taxi",4000124026,1703.41,,
DEPARTMENT FOR EDUCATION,DEPARTMENT FOR EDUCATION,11/04/2013,Travel,System Reform Group,REDFERN TRAVEL LTD,Commercial,"Staff business travel including air, coach, ferry, rail and taxi",4000124026,1606.43,,
DEPARTMENT FOR EDUCATION,DEPARTMENT FOR EDUCATION,11/04/2013,Travel,Education Funding Group,REDFERN TRAVEL LTD,Commercial,"Staff business travel including air, coach, ferry, rail and taxi",4000124026,504.34,,
DEPARTMENT FOR EDUCATION,DEPARTMENT FOR EDUCATION,11/04/2013,Personnel Related,Education Funding Group,REDFERN TRAVEL LTD,Commercial,Subsistence and lodging allowances for official duty,4000124026,0.96,,
DEPARTMENT FOR EDUCATION,DEPARTMENT FOR EDUCATION,11/04/2013,Travel,Education Funding Group,REDFERN TRAVEL LTD,Commercial,"Staff business travel including air, coach, ferry, rail and taxi",4000124026,3059.07,,
DEPARTMENT FOR EDUCATION,DEPARTMENT FOR EDUCATION,11/04/2013,Travel,Education Funding Group,REDFERN TRAVEL LTD,Commercial,"Staff business travel including air, coach, ferry, rail and taxi",4000124026,127.32,,
DEPARTMENT FOR EDUCATION,DEPARTMENT FOR EDUCATION,11/04/2013,Travel,Infrastructure and Funding Directorate Support,REDFERN TRAVEL LTD,Commercial,"Staff business travel including air, coach, ferry, rail and taxi",4000124026,1152.98,,
DEPARTMENT FOR EDUCATION,DEPARTMENT FOR EDUCATION,11/04/2013,Travel,Education Funding Group,REDFERN TRAVEL LTD,Commercial,"Staff business travel including air, coach, ferry, rail and taxi",4000124026,5362.46,,
DEPARTMENT FOR EDUCATION,DEPARTMENT FOR EDUCATION,11/04/2013,Personnel Related,Education Funding Group,REDFERN TRAVEL LTD,Commercial,Subsistence and lodging allowances for official duty,4000124026,-0.02,,
DEPARTMENT FOR EDUCATION,DEPARTMENT FOR EDUCATION,11/04/2013,Travel,Free School Group,REDFERN TRAVEL LTD,Commercial,"Staff business travel including air, coach, ferry, rail and taxi",4000124026,550.69,,
DEPARTMENT FOR EDUCATION,DEPARTMENT FOR EDUCATION,11/04/2013,Travel,Academies Delivery Group,REDFERN TRAVEL LTD,Commercial,"Staff business travel including air, coach, ferry, rail and taxi",4000124026,8595.38,,
DEPARTMENT FOR EDUCATION,DEPARTMENT FOR EDUCATION,11/04/2013,Travel,Office of the Schools Commissioner Group,REDFERN TRAVEL LTD,Commercial,"Staff business travel including air, coach, ferry, rail and taxi",4000124026,3099.84,,
DEPARTMENT FOR EDUCATION,DEPARTMENT FOR EDUCATION,11/04/2013,Travel,Academies Delivery Group,REDFERN TRAVEL LTD,Commercial,"Staff business travel including air, coach, ferry, rail and taxi",4000124026,9467.55,,
DEPARTMENT FOR EDUCATION,DEPARTMENT FOR EDUCATION,11/04/2013,Travel,Academies Delivery Group,REDFERN TRAVEL LTD,Commercial,"Staff business travel including air, coach, ferry, rail and taxi",4000124026,2547.52,,
DEPARTMENT FOR EDUCATION,DEPARTMENT FOR EDUCATION,11/04/2013,Personnel Related,Academies Delivery Group,REDFERN TRAVEL LTD,Commercial,Subsistence and lodging allowances for official duty,4000124026,0.82,,
DEPARTMENT FOR EDUCATION,DEPARTMENT FOR EDUCATION,11/04/2013,Travel,Academies Delivery Group,REDFERN TRAVEL LTD,Commercial,"Staff business travel including air, coach, ferry, rail and taxi",4000124026,6992.60,,
DEPARTMENT FOR EDUCATION,DEPARTMENT FOR EDUCATION,11/04/2013,Travel,Office of the Schools Commissioner Group,REDFERN TRAVEL LTD,Commercial,"Staff business travel including air, coach, ferry, rail and taxi",4000124026,1212.97,,
DEPARTMENT FOR EDUCATION,DEPARTMENT FOR EDUCATION,11/04/2013,Travel,Free School Group,REDFERN TRAVEL LTD,Commercial,"Staff business travel including air, coach, ferry, rail and taxi",4000124026,5621.66,,
DEPARTMENT FOR EDUCATION,DEPARTMENT FOR EDUCATION,11/04/2013,Personnel Related,Free School Group,REDFERN TRAVEL LTD,Commercial,Subsistence and lodging allowances for official duty,4000124026,0.42,,
DEPARTMENT FOR EDUCATION,DEPARTMENT FOR EDUCATION,11/04/2013,Travel,Free School Group,REDFERN TRAVEL LTD,Commercial,"Staff business travel including air, coach, ferry, rail and taxi",4000124026,2925.74,,
DEPARTMENT FOR EDUCATION,DEPARTMENT FOR EDUCATION,11/04/2013,Travel,Free School Group,REDFERN TRAVEL LTD,Commercial,"Staff business travel including air, coach, ferry, rail and taxi",4000124026,6129.98,,
DEPARTMENT FOR EDUCATION,DEPARTMENT FOR EDUCATION,11/04/2013,Personnel Related,Free School Group,REDFERN TRAVEL LTD,Commercial,Subsistence and lodging allowances for official duty,4000124026,1.58,,
DEPARTMENT FOR EDUCATION,DEPARTMENT FOR EDUCATION,11/04/2013,Travel,Free School Group,REDFERN TRAVEL LTD,Commercial,"Staff business travel including air, coach, ferry, rail and taxi",4000124026,3703.83,,
DEPARTMENT FOR EDUCATION,DEPARTMENT FOR EDUCATION,11/04/2013,Professional Services Consultancy and Contingent Labour,Free School Group,REDFERN TRAVEL LTD,Commercial,"Fees / expenses of professionals from the private sector such as auditors, accountants, lawyers, etc. engaged to provide advice or opinion on how to affect something",4000124026,0.56,,
DEPARTMENT FOR EDUCATION,DEPARTMENT FOR EDUCATION,11/04/2013,Travel,Free School Group,REDFERN TRAVEL LTD,Commercial,"Staff business travel including air, coach, ferry, rail and taxi",4000124026,1880.99,,
DEPARTMENT FOR EDUCATION,DEPARTMENT FOR EDUCATION,11/04/2013,Travel,Education Funding Group,REDFERN TRAVEL LTD,Commercial,"Staff business travel including air, coach, ferry, rail and taxi",4000124026,478.78,,
DEPARTMENT FOR EDUCATION,DEPARTMENT FOR EDUCATION,12/04/2013,Grants,Academies Delivery Group,GLEBE PRIMARY SCHOOL STOKE,Public Sector,"Grants paid to organisations including agencies, arms length bodies and educational establishments",4000124125,25000.00,,
DEPARTMENT FOR EDUCATION,DEPARTMENT FOR EDUCATION,12/04/2013,Grants,Academies Delivery Group,WESTBROOK PRIMARY SCHOOL,Public Sector,"Grants paid to organisations including agencies, arms length bodies and educational establishments",4000124126,25000.00,,
DEPARTMENT FOR EDUCATION,DEPARTMENT FOR EDUCATION,12/04/2013,Grants,Academies Delivery Group,CHESSINGTON COMMUNITY COLLEGE,Public Sector,"Grants paid to organisations including agencies, arms length bodies and educational establishments",4000124127,25000.00,,
DEPARTMENT FOR EDUCATION,DEPARTMENT FOR EDUCATION,12/04/2013,Grants,Academies Delivery Group,CLIFF PARK SCHOOLS TRUST LTD,Public Sector,"Grants paid to organisations including agencies, arms length bodies and educational establishments",4000124128,90000.00,,
DEPARTMENT FOR EDUCATION,DEPARTMENT FOR EDUCATION,12/04/2013,Grants,Academies Delivery Group,ARK SCHOOLS,Public Sector,"Grants paid to organisations including agencies, arms length bodies and educational establishments",4000124133,25201.00,,
DEPARTMENT FOR EDUCATION,DEPARTMENT FOR EDUCATION,12/04/2013,Grants,Academies Delivery Group,LINCOLNSHIRE COUNTY COUNCIL,Public Sector,"Grants paid to organisations including agencies, arms length bodies and educational establishments",4000124134,25000.00,,
DEPARTMENT FOR EDUCATION,DEPARTMENT FOR EDUCATION,12/04/2013,Grants,Academies Delivery Group,TBAP TRUST,Public Sector,"Grants paid to organisations including agencies, arms length bodies and educational establishments",4000124135,98750.00,,
DEPARTMENT FOR EDUCATION,DEPARTMENT FOR EDUCATION,12/04/2013,Grants,Academies Delivery Group,CATCOTE SCHOOL BUSINESS & ENTERPRISE COLLEGE,Public Sector,"Grants paid to organisations including agencies, arms length bodies and educational establishments",4000124136,25000.00,,
DEPARTMENT FOR EDUCATION,DEPARTMENT FOR EDUCATION,12/04/2013,Grants,Academies Delivery Group,PERRY HALL PRIMARY SCHOOL,Public Sector,"Grants paid to organisations including agencies, arms length bodies and educational establishments",4000124137,25000.00,,
DEPARTMENT FOR EDUCATION,DEPARTMENT FOR EDUCATION,12/04/2013,Grants,Academies Delivery Group,PARISH CE VC PRIMARY SCHOOL,Public Sector,"Grants paid to organisations including agencies, arms length bodies and educational establishments",4000124138,25000.00,,
DEPARTMENT FOR EDUCATION,DEPARTMENT FOR EDUCATION,12/04/2013,Grants,Academies Delivery Group,WOODWATER ACADEMY,Public Sector,Capital grants paid to a private sector organisation,4000124139,37030.80,,
DEPARTMENT FOR EDUCATION,DEPARTMENT FOR EDUCATION,12/04/2013,Grants,Academies Delivery Group,FYLDE COAST ACADEMY TRUST,Public Sector,"Grants paid to organisations including agencies, arms length bodies and educational establishments",4000124140,65000.00,,
DEPARTMENT FOR EDUCATION,DEPARTMENT FOR EDUCATION,12/04/2013,Grants,Academies Delivery Group,RAINES FOUNDATION SCHOOL,Public Sector,"Grants paid to organisations including agencies, arms length bodies and educational establishments",4000124147,25000.00,,
DEPARTMENT FOR EDUCATION,DEPARTMENT FOR EDUCATION,12/04/2013,Grants,Academies Delivery Group,ARCHBISHOP CRANMER CE PRIMARY SCHOOL,Public Sector,"Grants paid to organisations including agencies, arms length bodies and educational establishments",4000124152,25000.00,,
DEPARTMENT FOR EDUCATION,DEPARTMENT FOR EDUCATION,12/04/2013,Grants,Academies Delivery Group,JEFFERYS EDUCATION TRUST,Public Sector,"Grants paid to organisations including agencies, arms length bodies and educational establishments",4000124160,25000.00,,
DEPARTMENT FOR EDUCATION,DEPARTMENT FOR EDUCATION,12/04/2013,Grants,Academies Delivery Group,ACORN ACADEMY CORNWALL,Public Sector,"Grants paid to organisations including agencies, arms length bodies and educational establishments",4000124161,290000.00,,
DEPARTMENT FOR EDUCATION,DEPARTMENT FOR EDUCATION,12/04/2013,Grants,Academies Delivery Group,DAUNTSEYS AIDED PRIMARY SCHOOL,Public Sector,"Grants paid to organisations including agencies, arms length bodies and educational establishments",4000124162,25000.00,,
DEPARTMENT FOR EDUCATION,DEPARTMENT FOR EDUCATION,12/04/2013,Grants,Academies Delivery Group,PARKFIELD COMMUNITY SCHOOL,Public Sector,"Grants paid to organisations including agencies, arms length bodies and educational establishments",4000124163,25000.00,,
DEPARTMENT FOR EDUCATION,DEPARTMENT FOR EDUCATION,12/04/2013,Grants,Academies Delivery Group,SPIRAL ACADEMIES TRUST,Public Sector,"Grants paid to organisations including agencies, arms length bodies and educational establishments",4000124184,25000.00,,
DEPARTMENT FOR EDUCATION,DEPARTMENT FOR EDUCATION,12/04/2013,Grants,Academies Delivery Group,ST PETERS COFE PRIMARY SCHOOL,Public Sector,"Grants paid to organisations including agencies, arms length bodies and educational establishments",4000124187,25000.00,,
DEPARTMENT FOR EDUCATION,DEPARTMENT FOR EDUCATION,12/04/2013,Grants,Academies Delivery Group,ACADEMY ENTERPRISE TRUST,Public Sector,"Grants paid to organisations including agencies, arms length bodies and educational establishments",4000124210,226693.49,,
DEPARTMENT FOR EDUCATION,DEPARTMENT FOR EDUCATION,12/04/2013,Grants,Academies Delivery Group,ACADEMY ENTERPRISE TRUST,Public Sector,Capital grants paid to a private sector organisation,4000124210,150647.71,,
DEPARTMENT FOR EDUCATION,DEPARTMENT FOR EDUCATION,12/04/2013,Grants,Academies Delivery Group,MONTSAYE ACADEMY,Public Sector,"Grants paid to organisations including agencies, arms length bodies and educational establishments",4000124211,150000.00,,
DEPARTMENT FOR EDUCATION,DEPARTMENT FOR EDUCATION,12/04/2013,Grants,Academies Delivery Group,HAVELOCK ACADEMY,Public Sector,"Grants paid to organisations including agencies, arms length bodies and educational establishments",4000124217,105000.00,,
DEPARTMENT FOR EDUCATION,DEPARTMENT FOR EDUCATION,12/04/2013,Grants,Academies Delivery Group,OASIS COMMUNITY LEARNING,Public Sector,"Grants paid to organisations including agencies, arms length bodies and educational establishments",4000124218,155000.00,,
DEPARTMENT FOR EDUCATION,DEPARTMENT FOR EDUCATION,12/04/2013,Grants,Academies Delivery Group,DIAMOND LEARNING PARTNERSHIP TRUST,Public Sector,"Grants paid to organisations including agencies, arms length bodies and educational establishments",4000124224,65000.00,,
DEPARTMENT FOR EDUCATION,DEPARTMENT FOR EDUCATION,12/04/2013,Grants,Academies Delivery Group,THE EDUCATION SCHOOLS TRUST,Public Sector,"Grants paid to organisations including agencies, arms length bodies and educational establishments",4000124226,130000.00,,
DEPARTMENT FOR EDUCATION,DEPARTMENT FOR EDUCATION,12/04/2013,Professional Services Consultancy and Contingent Labour,System Reform Group,ANN BERGER LTD,Commercial,"Fees / expenses of professionals from the private sector such as auditors, accountants, lawyers, etc. engaged to provide advice or opinion on how to affect something",4000124229,21000.00,,
DEPARTMENT FOR EDUCATION,DEPARTMENT FOR EDUCATION,15/04/2013,Grants,Academies Delivery Group,CHOBHAM SCHOOL ACADEMY,Public Sector,"Grants paid to organisations including agencies, arms length bodies and educational establishments",4000124335,272485.01,,
DEPARTMENT FOR EDUCATION,DEPARTMENT FOR EDUCATION,15/04/2013,Programme costs,Academies Delivery Group,PROSPECTS SERVICES LTD,Commercial,Funding to deliver policies (excluding consultancy) paid to third parties via a service delivery contract,4000124361,39075.00,,
DEPARTMENT FOR EDUCATION,DEPARTMENT FOR EDUCATION,16/04/2013,Grants,Academies Delivery Group,LANDAU FORTE COLLEGE,Public Sector,"Grants paid to organisations including agencies, arms length bodies and educational establishments",4000124374,60000.00,,
DEPARTMENT FOR EDUCATION,DEPARTMENT FOR EDUCATION,16/04/2013,Advertising and Media,System Reform Group,PROLOG,Commercial,Publications and related services,4000124382,75.77,,
DEPARTMENT FOR EDUCATION,DEPARTMENT FOR EDUCATION,16/04/2013,Advertising and Media,System Reform Group,PROLOG,Commercial,Publications and related services,4000124382,61.83,,
DEPARTMENT FOR EDUCATION,DEPARTMENT FOR EDUCATION,16/04/2013,Advertising and Media,System Reform Group,PROLOG,Commercial,Publications and related services,4000124382,146.72,,
DEPARTMENT FOR EDUCATION,DEPARTMENT FOR EDUCATION,16/04/2013,Grants,Office of the Schools Commissioner Group,THE PARK FEDERATION ACADEMY TRUST,Public Sector,"Grants paid to organisations including agencies, arms length bodies and educational establishments",4000124401,96200.00,,
DEPARTMENT FOR EDUCATION,DEPARTMENT FOR EDUCATION,16/04/2013,Grants,Academies Delivery Group,NAVIGATE ACADEMY TRUST,Public Sector,Capital grants paid to a private sector organisation,4000124407,50000.00,,
DEPARTMENT FOR EDUCATION,DEPARTMENT FOR EDUCATION,16/04/2013,Grants,Academies Delivery Group,GDST ACADEMY TRUST,Public Sector,Capital grants paid to a private sector organisation,4000124421,32539.20,,
DEPARTMENT FOR EDUCATION,DEPARTMENT FOR EDUCATION,16/04/2013,Grants,Academies Delivery Group,REACH 2 LTD,Commercial,"Grants paid to organisations including agencies, arms length bodies and educational establishments",4000124444,120000.00,,
DEPARTMENT FOR EDUCATION,DEPARTMENT FOR EDUCATION,16/04/2013,Professional Services Other,System Reform Group,DLA PIPER UK LLP,Commercial,Legal services provided externally (excluding Treasury Solicitor) ,4000124453,63931.30,,
DEPARTMENT FOR EDUCATION,DEPARTMENT FOR EDUCATION,16/04/2013,Grants,Academies Delivery Group,UNIVERSITY OF CHESTER ACADEMIES TRUST,Public Sector,Capital grants paid to a private sector organisation,4000124462,126736.67,,
DEPARTMENT FOR EDUCATION,DEPARTMENT FOR EDUCATION,17/04/2013,Grants,Academies Delivery Group,THE NEWARK ACADEMY,Public Sector,"Grants paid to organisations including agencies, arms length bodies and educational establishments",4000124542,98544.18,,
DEPARTMENT FOR EDUCATION,DEPARTMENT FOR EDUCATION,18/04/2013,Grants,Academies Delivery Group,HAMSTEAD HALL SCH,Public Sector,"Grants paid to organisations including agencies, arms length bodies and educational establishments",4000124652,25000.00,,
DEPARTMENT FOR EDUCATION,DEPARTMENT FOR EDUCATION,18/04/2013,Grants,Academies Delivery Group,DOWNVIEW PRIMARY SCHOOL,Public Sector,"Grants paid to organisations including agencies, arms length bodies and educational establishments",4000124659,25000.00,,
DEPARTMENT FOR EDUCATION,DEPARTMENT FOR EDUCATION,18/04/2013,Grants,Academies Delivery Group,ST PETER & PAUL LINCOLNS RC HIGH SCHOOL,Public Sector,"Grants paid to organisations including agencies, arms length bodies and educational establishments",4000124660,25000.00,,
DEPARTMENT FOR EDUCATION,DEPARTMENT FOR EDUCATION,18/04/2013,Grants,Academies Delivery Group,DRAPERS MILLS PRIMARY ACCADEMY,Public Sector,Capital grants paid to a private sector organisation,4000124661,32454.82,,
DEPARTMENT FOR EDUCATION,DEPARTMENT FOR EDUCATION,18/04/2013,Grants,Academies Delivery Group,COUNTESS ANNE CE PRIMARY SCHOOL,Public Sector,"Grants paid to organisations including agencies, arms length bodies and educational establishments",4000124668,25000.00,,
DEPARTMENT FOR EDUCATION,DEPARTMENT FOR EDUCATION,18/04/2013,Grants,Academies Delivery Group,GRAYS CONVENT SCHOOL,Public Sector,"Grants paid to organisations including agencies, arms length bodies and educational establishments",4000124669,25000.00,,
DEPARTMENT FOR EDUCATION,DEPARTMENT FOR EDUCATION,18/04/2013,Grants,Academies Delivery Group,ACORN ACADEMY CORNWALL,Public Sector,"Grants paid to organisations including agencies, arms length bodies and educational establishments",4000124673,26250.00,,
DEPARTMENT FOR EDUCATION,DEPARTMENT FOR EDUCATION,18/04/2013,Grants,Academies Delivery Group,WHISTON WORRY GOOSE JUNIOR AND INFANT SCHOOL,Public Sector,"Grants paid to organisations including agencies, arms length bodies and educational establishments",4000124674,50000.00,,
DEPARTMENT FOR EDUCATION,DEPARTMENT FOR EDUCATION,18/04/2013,Grants,Academies Delivery Group,OUNDLE CE PRIMARY SCHOOL,Public Sector,"Grants paid to organisations including agencies, arms length bodies and educational establishments",4000124680,25000.00,,
DEPARTMENT FOR EDUCATION,DEPARTMENT FOR EDUCATION,18/04/2013,Grants,Academies Delivery Group,AURORA ACADEMIES TRUST,Public Sector,"Grants paid to organisations including agencies, arms length bodies and educational establishments",4000124690,59035.48,,
DEPARTMENT FOR EDUCATION,DEPARTMENT FOR EDUCATION,18/04/2013,Grants,Academies Delivery Group,BOXGROVE PRIMARY SCHOOL,Public Sector,"Grants paid to organisations including agencies, arms length bodies and educational establishments",4000124701,25000.00,,
DEPARTMENT FOR EDUCATION,DEPARTMENT FOR EDUCATION,18/04/2013,Grants,Academies Delivery Group,CITY OF LONDON ACADEMY ISLINGTON LTD,Public Sector,Capital grants paid to a private sector organisation,4000124731,60274.80,,
DEPARTMENT FOR EDUCATION,DEPARTMENT FOR EDUCATION,18/04/2013,Grants,Academies Delivery Group,ST MARKS C OF E ACADEMY,Public Sector,Capital grants paid to a private sector organisation,4000124736,58500.00,,
DEPARTMENT FOR EDUCATION,DEPARTMENT FOR EDUCATION,18/04/2013,Grants,Free School Group,THE ROSEDALE HEWENS ACADEMIES TRUST,Public Sector,"Grants paid to organisations including agencies, arms length bodies and educational establishments",4000124750,44178.25,,
DEPARTMENT FOR EDUCATION,DEPARTMENT FOR EDUCATION,22/04/2013,Grants,Academies Delivery Group,CHOBHAM SCHOOL ACADEMY,Public Sector,"Grants paid to organisations including agencies, arms length bodies and educational establishments",4000124958,78437.84,,
DEPARTMENT FOR EDUCATION,DEPARTMENT FOR EDUCATION,22/04/2013,Grants,Academies Delivery Group,ARK SCHOOLS,Public Sector,"Grants paid to organisations including agencies, arms length bodies and educational establishments",4000124975,48599.00,,
DEPARTMENT FOR EDUCATION,DEPARTMENT FOR EDUCATION,22/04/2013,Grants,Free School Group,PLYMOUTH UTC,Public Sector,"Grants paid to organisations including agencies, arms length bodies and educational establishments",4000125023,34650.48,,
DEPARTMENT FOR EDUCATION,DEPARTMENT FOR EDUCATION,22/04/2013,Grants,Academies Delivery Group,WALSALL  COUNCIL,Public Sector,To clear budget deficit liability of a maintained school to facilitate conversion to an academy.,4000125026,97121.00,,
DEPARTMENT FOR EDUCATION,DEPARTMENT FOR EDUCATION,22/04/2013,Grants,Academies Delivery Group,BRITSCHOOL CCTA,Public Sector,Capital grants paid to a private sector organisation,4000125027,119408.68,,
DEPARTMENT FOR EDUCATION,DEPARTMENT FOR EDUCATION,22/04/2013,Professional Services Other,Academies Delivery Group,VEREDUS C/O CAPITA RESOURCING LTD,Commercial,"Fees / expenses of professionals from the private sector, for example to implement advice or changes",4000125040,89268.06,,
DEPARTMENT FOR EDUCATION,DEPARTMENT FOR EDUCATION,22/04/2013,Grants,Academies Delivery Group,SCHOOL PARTNERSHIP TRUST ACADEMIES,Public Sector,"Grants paid to organisations including agencies, arms length bodies and educational establishments",4000125051,49283.50,,
DEPARTMENT FOR EDUCATION,DEPARTMENT FOR EDUCATION,22/04/2013,Grants,Free School Group,WIGAN UTC,Public Sector,"Grants paid to organisations including agencies, arms length bodies and educational establishments",4000125063,30800.57,,
DEPARTMENT FOR EDUCATION,DEPARTMENT FOR EDUCATION,24/04/2013,Grants,Academies Delivery Group,E ACT,Public Sector,"Grants paid to organisations including agencies, arms length bodies and educational establishments",4000125158,33564.20,,
DEPARTMENT FOR EDUCATION,DEPARTMENT FOR EDUCATION,24/04/2013,Grants,Academies Delivery Group,HOLMES CHAPEL PRIMARY SCHOOL,Public Sector,"Grants paid to organisations including agencies, arms length bodies and educational establishments",4000125166,25000.00,,
DEPARTMENT FOR EDUCATION,DEPARTMENT FOR EDUCATION,24/04/2013,Grants,Academies Delivery Group,CREATIVE EDUCATION ACADEMIES TRUST,Public Sector,"Grants paid to organisations including agencies, arms length bodies and educational establishments",4000125201,130700.76,,
DEPARTMENT FOR EDUCATION,DEPARTMENT FOR EDUCATION,24/04/2013,Grants,Office of the Schools Commissioner Group,DIAMOND LEARNING PARTNERSHIP TRUST,Public Sector,"Grants paid to organisations including agencies, arms length bodies and educational establishments",4000125215,43500.00,,
DEPARTMENT FOR EDUCATION,DEPARTMENT FOR EDUCATION,24/04/2013,Programme costs,Academies Delivery Group,UNITED LEARNING TRUST,Public Sector,Funding to deliver policies (excluding consultancy) paid to third parties via a service delivery contract,4000125220,491650.00,,
DEPARTMENT FOR EDUCATION,DEPARTMENT FOR EDUCATION,24/04/2013,Grants,Academies Delivery Group,MADELEY ACADEMY TRUST LTD,Public Sector,Capital grants paid to a private sector organisation,4000125231,516989.34,,
DEPARTMENT FOR EDUCATION,DEPARTMENT FOR EDUCATION,24/04/2013,Grants,Academies Delivery Group,RYHOPE INFANT SCHOOL,Public Sector,"Grants paid to organisations including agencies, arms length bodies and educational establishments",4000125254,25000.00,,
DEPARTMENT FOR EDUCATION,DEPARTMENT FOR EDUCATION,24/04/2013,Grants,Office of the Schools Commissioner Group,BELVOIR & MELTON ACADEMY TRUST,Public Sector,"Grants paid to organisations including agencies, arms length bodies and educational establishments",4000125276,114793.50,,
DEPARTMENT FOR EDUCATION,DEPARTMENT FOR EDUCATION,24/04/2013,Grants,Academies Delivery Group,ALL SAINTS CATHOLIC COLLEGE,Public Sector,"Grants paid to organisations including agencies, arms length bodies and educational establishments",4000125278,25000.00,,
DEPARTMENT FOR EDUCATION,DEPARTMENT FOR EDUCATION,24/04/2013,Grants,Academies Delivery Group,SIR JOHN COLFOX SCHOOL,Public Sector,"Grants paid to organisations including agencies, arms length bodies and educational establishments",4000125279,25000.00,,
DEPARTMENT FOR EDUCATION,DEPARTMENT FOR EDUCATION,24/04/2013,Grants,Academies Delivery Group,WARRINGTON COLLEGIATE EDUCATION TRUST,Public Sector,"Grants paid to organisations including agencies, arms length bodies and educational establishments",4000125280,90000.00,,
DEPARTMENT FOR EDUCATION,DEPARTMENT FOR EDUCATION,24/04/2013,Grants,Academies Delivery Group,WHISTON J & I SCHOOL,Public Sector,"Grants paid to organisations including agencies, arms length bodies and educational establishments",4000125281,25000.00,,
DEPARTMENT FOR EDUCATION,DEPARTMENT FOR EDUCATION,24/04/2013,Grants,Free School Group,DISCOVERY LEARNING LTD,Commercial,"Grants paid to organisations including agencies, arms length bodies and educational establishments",4000125283,25400.00,,
DEPARTMENT FOR EDUCATION,DEPARTMENT FOR EDUCATION,24/04/2013,Grants,Academies Delivery Group,CANKLOW WOODS PRIMARY SCHOOL,Public Sector,"Grants paid to organisations including agencies, arms length bodies and educational establishments",4000125294,25000.00,,
DEPARTMENT FOR EDUCATION,DEPARTMENT FOR EDUCATION,24/04/2013,Grants,Academies Delivery Group,FYLDE COAST ACADEMY TRUST,Public Sector,"Grants paid to organisations including agencies, arms length bodies and educational establishments",4000125296,100000.00,,
DEPARTMENT FOR EDUCATION,DEPARTMENT FOR EDUCATION,24/04/2013,Grants,Academies Delivery Group,SCHOOL PARTNERSHIP TRUST ACADEMIES,Public Sector,"Grants paid to organisations including agencies, arms length bodies and educational establishments",4000125303,207361.20,,
DEPARTMENT FOR EDUCATION,DEPARTMENT FOR EDUCATION,24/04/2013,Grants,Academies Delivery Group,ELDON GROVE PRIMARY SCHOOL,Public Sector,"Grants paid to organisations including agencies, arms length bodies and educational establishments",4000125314,25000.00,,
DEPARTMENT FOR EDUCATION,DEPARTMENT FOR EDUCATION,24/04/2013,Grants,Office of the Schools Commissioner Group,SNEINTON ST STEPHENS C OF E PRIMARY SCHOOL,Public Sector,"Grants paid to organisations including agencies, arms length bodies and educational establishments",4000125316,82813.00,,
DEPARTMENT FOR EDUCATION,DEPARTMENT FOR EDUCATION,24/04/2013,Grants,Academies Delivery Group,HULL STUDIO SCHOOL,Public Sector,"Grants paid to organisations including agencies, arms length bodies and educational establishments",4000125346,65000.00,,
DEPARTMENT FOR EDUCATION,DEPARTMENT FOR EDUCATION,24/04/2013,Professional Services Other,Academies Delivery Group,VEREDUS C/O CAPITA RESOURCING LTD,Commercial,"Fees / expenses of professionals from the private sector, for example to implement advice or changes",4000125362,181552.92,,
DEPARTMENT FOR EDUCATION,DEPARTMENT FOR EDUCATION,24/04/2013,Grants,Academies Delivery Group,HARRIS GIRLS ACADEMY EAST DULWICH,Public Sector,Capital grants paid to a private sector organisation,4000125372,31480.00,,
DEPARTMENT FOR EDUCATION,DEPARTMENT FOR EDUCATION,24/04/2013,Grants,Academies Delivery Group,OASIS COMMUNITY LEARNING,Public Sector,Capital grants paid to a private sector organisation,4000125376,50000.00,,
DEPARTMENT FOR EDUCATION,DEPARTMENT FOR EDUCATION,26/04/2013,Programme costs,Academies Delivery Group,NAVIGANT CONSULTING,Commercial,Funding to deliver policies (excluding consultancy) paid to third parties via a service delivery contract,4000125587,32683.36,,
DEPARTMENT FOR EDUCATION,DEPARTMENT FOR EDUCATION,26/04/2013,Grants,Academies Delivery Group,SCAWTHORPE SUNNYFIELDS PRIMARY SCHOOL,Public Sector,"Grants paid to organisations including agencies, arms length bodies and educational establishments",4000125608,25000.00,,
DEPARTMENT FOR EDUCATION,DEPARTMENT FOR EDUCATION,26/04/2013,Grants,Academies Delivery Group,OASIS COMMUNITY LEARNING,Public Sector,Capital grants paid to a private sector organisation,4000125623,50000.00,,
DEPARTMENT FOR EDUCATION,DEPARTMENT FOR EDUCATION,26/04/2013,Professional Services Other,System Reform Group,WORK LIFE SUPPORT LTD,Commercial,"Fees / expenses of professionals from the private sector, for example to implement advice or changes",4000125627,15257.65,,
DEPARTMENT FOR EDUCATION,DEPARTMENT FOR EDUCATION,26/04/2013,Programme costs,System Reform Group,WORK LIFE SUPPORT LTD,Commercial,Funding to deliver policies (excluding consultancy) paid to third parties via a service delivery contract,4000125627,11242.35,,
DEPARTMENT FOR EDUCATION,DEPARTMENT FOR EDUCATION,29/04/2013,Grants,Free School Group,ENERGY COAST UTC,Public Sector,"Grants paid to organisations including agencies, arms length bodies and educational establishments",4000125651,30000.00,,
DEPARTMENT FOR EDUCATION,DEPARTMENT FOR EDUCATION,29/04/2013,Grants,Free School Group,THE SASH SCHOOL,Public Sector,"Grants paid to organisations including agencies, arms length bodies and educational establishments",4000125652,30000.00,,
DEPARTMENT FOR EDUCATION,DEPARTMENT FOR EDUCATION,29/04/2013,Grants,Free School Group,WAVERLEY STUDIO COLLEGE,Public Sector,"Grants paid to organisations including agencies, arms length bodies and educational establishments",4000125653,60000.00,,
DEPARTMENT FOR EDUCATION,DEPARTMENT FOR EDUCATION,29/04/2013,Grants,Free School Group,BIRKENHEAD UTC,Public Sector,"Grants paid to organisations including agencies, arms length bodies and educational establishments",4000125654,30000.00,,
DEPARTMENT FOR EDUCATION,DEPARTMENT FOR EDUCATION,29/04/2013,Grants,Free School Group,MIDLAND ACADEMIES TRUST,Public Sector,"Grants paid to organisations including agencies, arms length bodies and educational establishments",4000125661,60000.00,,
DEPARTMENT FOR EDUCATION,DEPARTMENT FOR EDUCATION,29/04/2013,Grants,Free School Group,COLLABORATIVE TRAINING SOLUTIONS,Public Sector,"Grants paid to organisations including agencies, arms length bodies and educational establishments",4000125664,30000.00,,
DEPARTMENT FOR EDUCATION,DEPARTMENT FOR EDUCATION,29/04/2013,Grants,Free School Group,KAJANS HOSPITALITY & CATERING STUDIO,Public Sector,"Grants paid to organisations including agencies, arms length bodies and educational establishments",4000125666,60000.00,,
DEPARTMENT FOR EDUCATION,DEPARTMENT FOR EDUCATION,29/04/2013,Grants,Free School Group,WMG ACADEMY FOR YOUNG ENGINEERS,Public Sector,"Grants paid to organisations including agencies, arms length bodies and educational establishments",4000125674,30000.00,,
DEPARTMENT FOR EDUCATION,DEPARTMENT FOR EDUCATION,29/04/2013,Grants,Free School Group,CENTRAL BEDFORDSHIRE ACADEMY TRUST,Public Sector,"Grants paid to organisations including agencies, arms length bodies and educational establishments",4000125675,45983.40,,
DEPARTMENT FOR EDUCATION,DEPARTMENT FOR EDUCATION,29/04/2013,Grants,Free School Group,CREATIVE INDUSTRIES UTC,Public Sector,"Grants paid to organisations including agencies, arms length bodies and educational establishments",4000125676,30000.00,,
DEPARTMENT FOR EDUCATION,DEPARTMENT FOR EDUCATION,29/04/2013,Grants,Free School Group,UTC SWINDON,Public Sector,"Grants paid to organisations including agencies, arms length bodies and educational establishments",4000125682,30000.00,,
DEPARTMENT FOR EDUCATION,DEPARTMENT FOR EDUCATION,29/04/2013,Grants,Free School Group,WEST MIDLANDS CONSTRUCTION UTC,Public Sector,"Grants paid to organisations including agencies, arms length bodies and educational establishments",4000125685,30000.00,,
DEPARTMENT FOR EDUCATION,DEPARTMENT FOR EDUCATION,29/04/2013,Grants,Academies Delivery Group,HARRIS FEDERATION OF SOUTH LONDON SCHOOLS,Public Sector,"Grants paid to organisations including agencies, arms length bodies and educational establishments",4000125686,30000.00,,
DEPARTMENT FOR EDUCATION,DEPARTMENT FOR EDUCATION,29/04/2013,Grants,Academies Delivery Group,PENAIR SCHOOL,Public Sector,Capital grants paid to a private sector organisation,4000125689,50000.00,,
DEPARTMENT FOR EDUCATION,DEPARTMENT FOR EDUCATION,29/04/2013,Grants,Free School Group,THE BUCKINGHAMSHIRE ACADEMY TRUST,Public Sector,"Grants paid to organisations including agencies, arms length bodies and educational establishments",4000125693,38252.00,,
DEPARTMENT FOR EDUCATION,DEPARTMENT FOR EDUCATION,29/04/2013,Grants,Free School Group,DARWEN ALDRIDGE COMMUNITY ACADEMY,Public Sector,"Grants paid to organisations including agencies, arms length bodies and educational establishments",4000125699,60000.00,,
DEPARTMENT FOR EDUCATION,DEPARTMENT FOR EDUCATION,29/04/2013,Grants,Free School Group,THE ELSTREE UTC,Public Sector,"Grants paid to organisations including agencies, arms length bodies and educational establishments",4000125720,60000.00,,
DEPARTMENT FOR EDUCATION,DEPARTMENT FOR EDUCATION,29/04/2013,Grants,Free School Group,NORFOLK UTC,Public Sector,"Grants paid to organisations including agencies, arms length bodies and educational establishments",4000125721,30000.00,,
DEPARTMENT FOR EDUCATION,DEPARTMENT FOR EDUCATION,29/04/2013,Grants,Free School Group,GOOLE ACADEMY TRUST,Public Sector,"Grants paid to organisations including agencies, arms length bodies and educational establishments",4000125722,60000.00,,
DEPARTMENT FOR EDUCATION,DEPARTMENT FOR EDUCATION,29/04/2013,Grants,Free School Group,DEVON STUDIO SCHOOL,Public Sector,"Grants paid to organisations including agencies, arms length bodies and educational establishments",4000125723,60000.00,,
DEPARTMENT FOR EDUCATION,DEPARTMENT FOR EDUCATION,29/04/2013,Grants,Free School Group,STOKE COLLEGE SPONSOR TRUST,Public Sector,"Grants paid to organisations including agencies, arms length bodies and educational establishments",4000125727,60000.00,,
DEPARTMENT FOR EDUCATION,DEPARTMENT FOR EDUCATION,29/04/2013,Grants,Academies Delivery Group,ASPIRATION ACADEMIES TRUST,Public Sector,"Grants paid to organisations including agencies, arms length bodies and educational establishments",4000125739,100000.00,,
DEPARTMENT FOR EDUCATION,DEPARTMENT FOR EDUCATION,29/04/2013,Grants,Free School Group,WALSALL STUDIO SCHOOL,Public Sector,"Grants paid to organisations including agencies, arms length bodies and educational establishments",4000125740,60000.00,,
DEPARTMENT FOR EDUCATION,DEPARTMENT FOR EDUCATION,29/04/2013,Grants,Academies Delivery Group,UNITED LEARNING TRUST,Public Sector,"Grants paid to organisations including agencies, arms length bodies and educational establishments",4000125746,60000.00,,
DEPARTMENT FOR EDUCATION,DEPARTMENT FOR EDUCATION,29/04/2013,Grants,System Reform Group,SCHOOL GOVERNORS ONE STOP SHOP,VCS,Grants to third sector organisations / not for profit organisations,4000125748,161326.00,,
DEPARTMENT FOR EDUCATION,DEPARTMENT FOR EDUCATION,29/04/2013,Grants,Free School Group,NCB STUDIO SCHOOL,Public Sector,"Grants paid to organisations including agencies, arms length bodies and educational establishments",4000125755,60000.00,,
DEPARTMENT FOR EDUCATION,DEPARTMENT FOR EDUCATION,29/04/2013,Grants,Academies Delivery Group,MEOPHAM COMMUNITY PRIMARY SCHOOL,Public Sector,"Grants paid to organisations including agencies, arms length bodies and educational establishments",4000125762,60000.00,,
DEPARTMENT FOR EDUCATION,DEPARTMENT FOR EDUCATION,29/04/2013,Grants,Free School Group,NORTH HERTFORDSHIRE STUDIO SCHOOL TRUST,Public Sector,"Grants paid to organisations including agencies, arms length bodies and educational establishments",4000125764,60000.00,,
DEPARTMENT FOR EDUCATION,DEPARTMENT FOR EDUCATION,29/04/2013,Grants,Free School Group,SOUTHAMPTON STUDIO SCHOOL,Public Sector,"Grants paid to organisations including agencies, arms length bodies and educational establishments",4000125766,60000.00,,
DEPARTMENT FOR EDUCATION,DEPARTMENT FOR EDUCATION,29/04/2013,Grants,Free School Group,HEATHROW AVIATION ENGINEERING UTC,Public Sector,"Grants paid to organisations including agencies, arms length bodies and educational establishments",4000125767,30000.00,,
DEPARTMENT FOR EDUCATION,DEPARTMENT FOR EDUCATION,29/04/2013,Grants,Academies Delivery Group,ARK SCHOOLS,Public Sector,"Grants paid to organisations including agencies, arms length bodies and educational establishments",4000125792,30000.00,,
DEPARTMENT FOR EDUCATION,DEPARTMENT FOR EDUCATION,29/04/2013,Grants,Academies Delivery Group,THE ACTIVE LEARNING TRUST LTD,Public Sector,"Grants paid to organisations including agencies, arms length bodies and educational establishments",4000125798,25000.00,,
DEPARTMENT FOR EDUCATION,DEPARTMENT FOR EDUCATION,29/04/2013,Grants,Free School Group,RYE STUDIO SCHOOL,Public Sector,"Grants paid to organisations including agencies, arms length bodies and educational establishments",4000125799,60000.00,,
DEPARTMENT FOR EDUCATION,DEPARTMENT FOR EDUCATION,29/04/2013,Grants,Free School Group,CAMBRIDGE UTC,Public Sector,"Grants paid to organisations including agencies, arms length bodies and educational establishments",4000125800,30000.00,,
DEPARTMENT FOR EDUCATION,DEPARTMENT FOR EDUCATION,29/04/2013,Grants,Free School Group,HARLOW UTC LTD,Public Sector,"Grants paid to organisations including agencies, arms length bodies and educational establishments",4000125802,30000.00,,
DEPARTMENT FOR EDUCATION,DEPARTMENT FOR EDUCATION,29/04/2013,Grants,Academies Delivery Group,PIONEER ACADEMIES COOPERATIVE TRUST,Public Sector,"Grants paid to organisations including agencies, arms length bodies and educational establishments",4000125820,60000.00,,
DEPARTMENT FOR EDUCATION,DEPARTMENT FOR EDUCATION,29/04/2013,Grants,Free School Group,LINCOLN UTC,Public Sector,"Grants paid to organisations including agencies, arms length bodies and educational establishments",4000125829,30000.00,,
DEPARTMENT FOR EDUCATION,DEPARTMENT FOR EDUCATION,29/04/2013,Grants,Free School Group,UTC BLUEWATER,Public Sector,"Grants paid to organisations including agencies, arms length bodies and educational establishments",4000125834,30000.00,,
DEPARTMENT FOR EDUCATION,DEPARTMENT FOR EDUCATION,30/04/2013,Grants,Office of the Schools Commissioner Group,THE COMMUNITY ACADEMIES TRUST,Public Sector,"Grants paid to organisations including agencies, arms length bodies and educational establishments",4000125849,101548.00,,
DEPARTMENT FOR EDUCATION,DEPARTMENT FOR EDUCATION,30/04/2013,Grants,Office of the Schools Commissioner Group,BRIGHTER FUTURES ACADEMY TRUST,Public Sector,"Grants paid to organisations including agencies, arms length bodies and educational establishments",4000125851,42562.00,,
DEPARTMENT FOR EDUCATION,DEPARTMENT FOR EDUCATION,30/04/2013,Grants,Free School Group,LYNCH HILL SCHOOL PRIMARY ACADEMY,Public Sector,"Grants paid to organisations including agencies, arms length bodies and educational establishments",4000125924,30000.00,,
DEPARTMENT FOR EDUCATION,DEPARTMENT FOR EDUCATION,30/04/2013,Grants,Office of the Schools Commissioner Group,ASPIRATION ACADEMIES TRUST,Public Sector,"Grants paid to organisations including agencies, arms length bodies and educational establishments",4000125927,80000.00,,
DEPARTMENT FOR EDUCATION,DEPARTMENT FOR EDUCATION,11/04/2013,Travel,Legal Advisers Office,REDFERN TRAVEL LTD,Commercial,"Staff business travel including air, coach, ferry, rail and taxi",4000124026,1227.50,,
DEPARTMENT FOR EDUCATION,DEPARTMENT FOR EDUCATION,11/04/2013,Travel,Legal Advisers Office,REDFERN TRAVEL LTD,Commercial,"Staff business travel including air, coach, ferry, rail and taxi to attend training events",4000124026,0.40,,
DEPARTMENT FOR EDUCATION,DEPARTMENT FOR EDUCATION,11/04/2013,Travel,Private Office,REDFERN TRAVEL LTD,Commercial,"Staff business travel including air, coach, ferry, rail and taxi",4000124026,723.94,,
DEPARTMENT FOR EDUCATION,DEPARTMENT FOR EDUCATION,11/04/2013,Travel,Private Office,REDFERN TRAVEL LTD,Commercial,"Staff business travel including air, coach, ferry, rail and taxi",4000124026,1618.10,,
DEPARTMENT FOR EDUCATION,DEPARTMENT FOR EDUCATION,11/04/2013,Personnel Related,Private Office,REDFERN TRAVEL LTD,Commercial,Subsistence and lodging allowances for official duty,4000124026,2.53,,
DEPARTMENT FOR EDUCATION,DEPARTMENT FOR EDUCATION,11/04/2013,Travel,Private Office,REDFERN TRAVEL LTD,Commercial,"Staff business travel including air, coach, ferry, rail and taxi",4000124026,419.97,,
DEPARTMENT FOR EDUCATION,DEPARTMENT FOR EDUCATION,11/04/2013,Travel,Private Office,REDFERN TRAVEL LTD,Commercial,"Staff business travel including air, coach, ferry, rail and taxi",4000124026,160.43,,
DEPARTMENT FOR EDUCATION,DEPARTMENT FOR EDUCATION,11/04/2013,Travel,Private Office,REDFERN TRAVEL LTD,Commercial,"Staff business travel including air, coach, ferry, rail and taxi",4000124026,349.03,,
DEPARTMENT FOR EDUCATION,DEPARTMENT FOR EDUCATION,11/04/2013,Travel,Private Office,REDFERN TRAVEL LTD,Commercial,"Staff business travel including air, coach, ferry, rail and taxi",4000124026,1112.92,,
DEPARTMENT FOR EDUCATION,EDUCATION FUNDING AGENCY,16/04/2013,Advertising and Media,Educational Funding Agency Admin,PROLOG,Commercial,Digital media and web production,4000124382,3951.18,,
DEPARTMENT FOR EDUCATION,NATIONAL COLLEGE FOR SCHOOL LEADERSHIP AGENCY,11/04/2013,Programme costs,International Business Unit,UNIVERSITY OF NOTTINGHAM NINGBO CHINA,Public Sector,Funding to deliver policies (excluding consultancy) paid to third parties via a service delivery contract,3000161,66842.07,,
DEPARTMENT FOR EDUCATION,NATIONAL COLLEGE FOR SCHOOL LEADERSHIP AGENCY,02/04/2013,Advertising and Media,School Business Management and Efficiency,CREATIVE CHOICE,Public Sector,Publications and related services,4000122469,99840.00,,
DEPARTMENT FOR EDUCATION,NATIONAL COLLEGE FOR SCHOOL LEADERSHIP AGENCY,02/04/2013,Grants,Teaching Schools Directorate,HARRIS ACADEMY CHAFFORD HUNDRED TS ACCOUNT,Public Sector,"Grants paid to organisations including agencies, arms length bodies and educational establishments",4000122544,93000.00,,
DEPARTMENT FOR EDUCATION,NATIONAL COLLEGE FOR SCHOOL LEADERSHIP AGENCY,02/04/2013,Grants,Teaching Schools Directorate,THE SIXTH FORM COLLEGE COLCHESTER TS ACCOUNT,Public Sector,"Grants paid to organisations including agencies, arms length bodies and educational establishments",4000122546,93000.00,,
DEPARTMENT FOR EDUCATION,NATIONAL COLLEGE FOR SCHOOL LEADERSHIP AGENCY,02/04/2013,Professional Services Other,Research and Development Directorate,BMG RESEARCH,Commercial,"Research, survey data analysis that will inform policy decision making",4000122608,21550.00,,
DEPARTMENT FOR EDUCATION,NATIONAL COLLEGE FOR SCHOOL LEADERSHIP AGENCY,02/04/2013,Programme costs,Early Years,INSTITUTE OF EDUCATION,Public Sector,Funding to deliver policies (excluding consultancy) paid to third parties via a service delivery contract,4000122619,86703.16,,
DEPARTMENT FOR EDUCATION,NATIONAL COLLEGE FOR SCHOOL LEADERSHIP AGENCY,02/04/2013,ICT Commodities,Information Technology Facilities Management and Commercial Directorate,BT PLC,Commercial,IT Services,4000122636,191119.89,,
DEPARTMENT FOR EDUCATION,NATIONAL COLLEGE FOR SCHOOL LEADERSHIP AGENCY,02/04/2013,Facilities,Information Technology Facilities Management and Commercial Directorate,SODEXO LTD,Commercial,"Building maintenance and repair, including repainting, replacing flooring, etc.",4000122654,144775.86,,
DEPARTMENT FOR EDUCATION,NATIONAL COLLEGE FOR SCHOOL LEADERSHIP AGENCY,03/04/2013,Programme costs,Licenced Provision Directorate,EMLC,Public Sector,Funding to deliver policies (excluding consultancy) paid to third parties via a service delivery contract,4000122693,70380.60,,
DEPARTMENT FOR EDUCATION,NATIONAL COLLEGE FOR SCHOOL LEADERSHIP AGENCY,03/04/2013,ICT Commodities,Information Technology Facilities Management and Commercial Directorate,BT GLOBAL SERVICES,Commercial,IT Services,4000122696,485.76,,
DEPARTMENT FOR EDUCATION,NATIONAL COLLEGE FOR SCHOOL LEADERSHIP AGENCY,03/04/2013,ICT Systems,Information Technology Facilities Management and Commercial Directorate,BT GLOBAL SERVICES,Commercial,"Systems delivery, design and development including software fixed asset expenditure",4000122696,7102.20,,
DEPARTMENT FOR EDUCATION,NATIONAL COLLEGE FOR SCHOOL LEADERSHIP AGENCY,04/04/2013,Grants,System Leadership Directorate,SPRINGFIELDS SCHOOL,Public Sector,"Grants paid to organisations including agencies, arms length bodies and educational establishments",4000123089,40000.00,,
DEPARTMENT FOR EDUCATION,NATIONAL COLLEGE FOR SCHOOL LEADERSHIP AGENCY,09/04/2013,Professional Services Other,Research and Development Directorate,ISOS PARTNERSHIP LLP,Commercial,"Research, survey data analysis that will inform policy decision making",4000123628,26250.00,,
DEPARTMENT FOR EDUCATION,NATIONAL COLLEGE FOR SCHOOL LEADERSHIP AGENCY,09/04/2013,Programme costs,Research and Development Directorate,DELOITTE,Commercial,Funding to deliver policies (excluding consultancy) paid to third parties via a service delivery contract,4000123690,40740.00,,
DEPARTMENT FOR EDUCATION,NATIONAL COLLEGE FOR SCHOOL LEADERSHIP AGENCY,10/04/2013,ICT Commodities,Information Technology Facilities Management and Commercial Directorate,DACHIS GROUP UK LTD,Commercial,IT Services,4000123769,403.20,,
DEPARTMENT FOR EDUCATION,NATIONAL COLLEGE FOR SCHOOL LEADERSHIP AGENCY,10/04/2013,ICT Systems,Information Technology Facilities Management and Commercial Directorate,DACHIS GROUP UK LTD,Commercial,"Systems delivery, design and development including software fixed asset expenditure",4000123769,56100.00,,
DEPARTMENT FOR EDUCATION,NATIONAL COLLEGE FOR SCHOOL LEADERSHIP AGENCY,10/04/2013,Professional Services Consultancy and Contingent Labour,Membership Directorate,ROWE EDUCATION LTD,Commercial,"Fees / expenses of professionals from the private sector such as auditors, accountants, lawyers, etc. engaged to provide advice or opinion on how to affect something",4000123816,1800.00,,
DEPARTMENT FOR EDUCATION,NATIONAL COLLEGE FOR SCHOOL LEADERSHIP AGENCY,10/04/2013,Professional Services Consultancy and Contingent Labour,International Business Unit,ROWE EDUCATION LTD,Commercial,"Fees / expenses of professionals from the private sector such as auditors, accountants, lawyers, etc. engaged to provide advice or opinion on how to affect something",4000123816,1350.00,,
DEPARTMENT FOR EDUCATION,NATIONAL COLLEGE FOR SCHOOL LEADERSHIP AGENCY,10/04/2013,Professional Services Consultancy and Contingent Labour,Design and Development Directorate,ROWE EDUCATION LTD,Commercial,"Fees / expenses of professionals from the private sector such as auditors, accountants, lawyers, etc. engaged to provide advice or opinion on how to affect something",4000123816,12125.00,,
DEPARTMENT FOR EDUCATION,NATIONAL COLLEGE FOR SCHOOL LEADERSHIP AGENCY,10/04/2013,Programme costs,Design and Development Directorate,ROWE EDUCATION LTD,Commercial,Funding to deliver policies (excluding consultancy) paid to third parties via a service delivery contract,4000123816,4450.00,,
DEPARTMENT FOR EDUCATION,NATIONAL COLLEGE FOR SCHOOL LEADERSHIP AGENCY,10/04/2013,Professional Services Other,Licenced Provision Directorate,ROWE EDUCATION LTD,Commercial,"Fees / expenses of professionals from the private sector, for example to implement advice or changes",4000123816,1920.00,,
DEPARTMENT FOR EDUCATION,NATIONAL COLLEGE FOR SCHOOL LEADERSHIP AGENCY,10/04/2013,Grants,Licenced Provision Directorate,ROWE EDUCATION LTD,Commercial,"Grants paid to organisations including agencies, arms length bodies and educational establishments",4000123816,1080.00,,
DEPARTMENT FOR EDUCATION,NATIONAL COLLEGE FOR SCHOOL LEADERSHIP AGENCY,10/04/2013,Professional Services Other,Licenced Provision Directorate,ROWE EDUCATION LTD,Commercial,"Fees / expenses of professionals from the private sector, for example to implement advice or changes",4000123816,1800.00,,
DEPARTMENT FOR EDUCATION,NATIONAL COLLEGE FOR SCHOOL LEADERSHIP AGENCY,10/04/2013,ICT Commodities,Information Technology Facilities Management and Commercial Directorate,BT GLOBAL SERVICES,Commercial,IT Services,4000123846,120000.00,,
DEPARTMENT FOR EDUCATION,NATIONAL COLLEGE FOR SCHOOL LEADERSHIP AGENCY,10/04/2013,ICT Commodities,Information Technology Facilities Management and Commercial Directorate,BT GLOBAL SERVICES,Commercial,ICT equipment,4000123846,69600.00,,
DEPARTMENT FOR EDUCATION,NATIONAL COLLEGE FOR SCHOOL LEADERSHIP AGENCY,10/04/2013,ICT Systems,Information Technology Facilities Management and Commercial Directorate,BT GLOBAL SERVICES,Commercial,"Systems delivery, design and development including software fixed asset expenditure",4000123846,57932.40,,
DEPARTMENT FOR EDUCATION,NATIONAL COLLEGE FOR SCHOOL LEADERSHIP AGENCY,10/04/2013,Facilities,Information Technology Facilities Management and Commercial Directorate,NOTTINGHAM CITY COUNCIL,Public Sector,Business rates,4000123886,28390.00,,
DEPARTMENT FOR EDUCATION,NATIONAL COLLEGE FOR SCHOOL LEADERSHIP AGENCY,10/04/2013,Programme costs,Membership Directorate,CREATIVE CHOICE,Public Sector,Funding to deliver policies (excluding consultancy) paid to third parties via a service delivery contract,4000123920,96766.31,,
DEPARTMENT FOR EDUCATION,NATIONAL COLLEGE FOR SCHOOL LEADERSHIP AGENCY,10/04/2013,Print and Print Management,Research and Development Directorate,CREATIVE CHOICE,Public Sector,Printing and binding services,4000123920,346.32,,
DEPARTMENT FOR EDUCATION,NATIONAL COLLEGE FOR SCHOOL LEADERSHIP AGENCY,10/04/2013,Advertising and Media,Research and Development Directorate,CREATIVE CHOICE,Public Sector,Publications and related services,4000123920,798.72,,
DEPARTMENT FOR EDUCATION,NATIONAL COLLEGE FOR SCHOOL LEADERSHIP AGENCY,10/04/2013,Advertising and Media,Supply Directorate,CREATIVE CHOICE,Public Sector,Publications and related services,4000123920,1993.68,,
DEPARTMENT FOR EDUCATION,NATIONAL COLLEGE FOR SCHOOL LEADERSHIP AGENCY,10/04/2013,Programme costs,Supply Directorate,CREATIVE CHOICE,Public Sector,Funding to deliver policies (excluding consultancy) paid to third parties via a service delivery contract,4000123920,3.12,,
DEPARTMENT FOR EDUCATION,NATIONAL COLLEGE FOR SCHOOL LEADERSHIP AGENCY,10/04/2013,Advertising and Media,Membership Directorate,CREATIVE CHOICE,Public Sector,Digital media and web production,4000123920,19518.72,,
DEPARTMENT FOR EDUCATION,NATIONAL COLLEGE FOR SCHOOL LEADERSHIP AGENCY,10/04/2013,Professional Services Other,Licenced Provision Directorate,SERCO LTD,Commercial,"Fees / expenses of professionals from the private sector, for example to implement advice or changes",4000123968,30068.62,,
DEPARTMENT FOR EDUCATION,NATIONAL COLLEGE FOR SCHOOL LEADERSHIP AGENCY,10/04/2013,Professional Services Other,Licenced Provision Directorate,FUTURE LEADERS LTD,Public Sector,"Fees / expenses of professionals from the private sector, for example to implement advice or changes",4000123989,78000.00,,
DEPARTMENT FOR EDUCATION,NATIONAL COLLEGE FOR SCHOOL LEADERSHIP AGENCY,10/04/2013,Programme costs,Licenced Provision Directorate,FUTURE LEADERS LTD,Public Sector,Funding to external organisations to deliver policies (excluding consultancy),4000123989,2100.00,,
DEPARTMENT FOR EDUCATION,NATIONAL COLLEGE FOR SCHOOL LEADERSHIP AGENCY,11/04/2013,Travel,National College Admin,REDFERN TRAVEL LTD,Commercial,"Staff business travel including air, coach, ferry, rail and taxi",4000124026,340.15,,
DEPARTMENT FOR EDUCATION,NATIONAL COLLEGE FOR SCHOOL LEADERSHIP AGENCY,11/04/2013,Travel,Strategic Leadership,REDFERN TRAVEL LTD,Commercial,"Staff business travel including air, coach, ferry, rail and taxi",4000124026,1201.17,,
DEPARTMENT FOR EDUCATION,NATIONAL COLLEGE FOR SCHOOL LEADERSHIP AGENCY,11/04/2013,Travel,International Business Unit,REDFERN TRAVEL LTD,Commercial,"Staff business travel including air, coach, ferry, rail and taxi",4000124026,631.12,,
DEPARTMENT FOR EDUCATION,NATIONAL COLLEGE FOR SCHOOL LEADERSHIP AGENCY,11/04/2013,Travel,International Business Unit,REDFERN TRAVEL LTD,Commercial,"Staff business travel including air, coach, ferry, rail and taxi",4000124026,6711.01,,
DEPARTMENT FOR EDUCATION,NATIONAL COLLEGE FOR SCHOOL LEADERSHIP AGENCY,11/04/2013,Travel,Early Years,REDFERN TRAVEL LTD,Commercial,"Staff business travel including air, coach, ferry, rail and taxi",4000124026,75.62,,
DEPARTMENT FOR EDUCATION,NATIONAL COLLEGE FOR SCHOOL LEADERSHIP AGENCY,11/04/2013,Travel,Supply Directorate,REDFERN TRAVEL LTD,Commercial,"Staff business travel including air, coach, ferry, rail and taxi",4000124026,862.94,,
DEPARTMENT FOR EDUCATION,NATIONAL COLLEGE FOR SCHOOL LEADERSHIP AGENCY,11/04/2013,Travel,Regional Strategy Directorate,REDFERN TRAVEL LTD,Commercial,"Staff business travel including air, coach, ferry, rail and taxi",4000124026,4140.09,,
DEPARTMENT FOR EDUCATION,NATIONAL COLLEGE FOR SCHOOL LEADERSHIP AGENCY,11/04/2013,Travel,School Improvement Directorate,REDFERN TRAVEL LTD,Commercial,"Staff business travel including air, coach, ferry, rail and taxi",4000124026,1865.80,,
DEPARTMENT FOR EDUCATION,NATIONAL COLLEGE FOR SCHOOL LEADERSHIP AGENCY,11/04/2013,Travel,School Improvement Directorate,REDFERN TRAVEL LTD,Commercial,"Staff business travel including air, coach, ferry, rail and taxi",4000124026,434.44,,
DEPARTMENT FOR EDUCATION,NATIONAL COLLEGE FOR SCHOOL LEADERSHIP AGENCY,11/04/2013,Travel,School Improvement Directorate,REDFERN TRAVEL LTD,Commercial,"Staff business travel including air, coach, ferry, rail and taxi",4000124026,87.10,,
DEPARTMENT FOR EDUCATION,NATIONAL COLLEGE FOR SCHOOL LEADERSHIP AGENCY,11/04/2013,Travel,Performance and Evaluation Directorate,REDFERN TRAVEL LTD,Commercial,"Staff business travel including air, coach, ferry, rail and taxi",4000124026,2041.61,,
DEPARTMENT FOR EDUCATION,NATIONAL COLLEGE FOR SCHOOL LEADERSHIP AGENCY,11/04/2013,Travel,Design and Development Directorate,REDFERN TRAVEL LTD,Commercial,"Staff business travel including air, coach, ferry, rail and taxi",4000124026,5501.38,,
DEPARTMENT FOR EDUCATION,NATIONAL COLLEGE FOR SCHOOL LEADERSHIP AGENCY,11/04/2013,Travel,Licenced Provision Directorate,REDFERN TRAVEL LTD,Commercial,"Staff business travel including air, coach, ferry, rail and taxi",4000124026,594.76,,
DEPARTMENT FOR EDUCATION,NATIONAL COLLEGE FOR SCHOOL LEADERSHIP AGENCY,11/04/2013,ICT Commodities,Information Technology Facilities Management and Commercial Directorate,BT GLOBAL SERVICES,Commercial,ICT equipment,4000124044,52731.60,,
DEPARTMENT FOR EDUCATION,NATIONAL COLLEGE FOR SCHOOL LEADERSHIP AGENCY,12/04/2013,Grants,Teaching Schools Directorate,DAVENANT FOUNDATION SCHOOL TS ACCOUNT,Public Sector,"Grants paid to organisations including agencies, arms length bodies and educational establishments",4000124159,93000.00,,
DEPARTMENT FOR EDUCATION,NATIONAL COLLEGE FOR SCHOOL LEADERSHIP AGENCY,15/04/2013,Programme costs,Licenced Provision Directorate,SELT,Public Sector,Funding to deliver policies (excluding consultancy) paid to third parties via a service delivery contract,4000124318,259200.05,,
DEPARTMENT FOR EDUCATION,NATIONAL COLLEGE FOR SCHOOL LEADERSHIP AGENCY,15/04/2013,Advertising and Media,Early Years,CREATIVE CHOICE,Public Sector,Filming audio visual and production services,4000124363,130.00,,
DEPARTMENT FOR EDUCATION,NATIONAL COLLEGE FOR SCHOOL LEADERSHIP AGENCY,16/04/2013,Office Solutions,Performance and Evaluation Directorate,PROLOG,Commercial,"Stationery, IT/office consumables - including ink, toners, storage media - etc.",4000124382,2275.14,,
DEPARTMENT FOR EDUCATION,NATIONAL COLLEGE FOR SCHOOL LEADERSHIP AGENCY,16/04/2013,Office Solutions,Membership Directorate,PROLOG,Commercial,"Stationery, IT/office consumables - including ink, toners, storage media - etc.",4000124382,498.85,,
DEPARTMENT FOR EDUCATION,NATIONAL COLLEGE FOR SCHOOL LEADERSHIP AGENCY,16/04/2013,Advertising and Media,Membership Directorate,PROLOG,Commercial,Digital media and web production,4000124382,600.00,,
DEPARTMENT FOR EDUCATION,NATIONAL COLLEGE FOR SCHOOL LEADERSHIP AGENCY,17/04/2013,ICT Commodities,Information Technology Facilities Management and Commercial Directorate,BT GLOBAL SERVICES,Commercial,ICT equipment,4000124510,40887.60,,
DEPARTMENT FOR EDUCATION,NATIONAL COLLEGE FOR SCHOOL LEADERSHIP AGENCY,19/04/2013,Facilities,Information Technology Facilities Management and Commercial Directorate,RUDDINGTON BUILD CO LTD,Commercial,Hire and rent of properties not covered/owned by the DfE,4000124810,81600.00,,
DEPARTMENT FOR EDUCATION,NATIONAL COLLEGE FOR SCHOOL LEADERSHIP AGENCY,24/04/2013,Programme costs,School Business Management and Efficiency,IAM,Commercial,Funding to deliver policies (excluding consultancy) paid to third parties via a service delivery contract,4000125349,28500.00,,
DEPARTMENT FOR EDUCATION,NATIONAL COLLEGE FOR SCHOOL LEADERSHIP AGENCY,25/04/2013,Programme costs,Membership Directorate,CREATIVE CHOICE,Public Sector,Funding to deliver policies (excluding consultancy) paid to third parties via a service delivery contract,4000125391,208235.15,,
DEPARTMENT FOR EDUCATION,NATIONAL COLLEGE FOR SCHOOL LEADERSHIP AGENCY,25/04/2013,Programme costs,Teaching Schools Directorate,CREATIVE CHOICE,Public Sector,Funding to deliver policies (excluding consultancy) paid to third parties via a service delivery contract,4000125391,5402.59,,
DEPARTMENT FOR EDUCATION,NATIONAL COLLEGE FOR SCHOOL LEADERSHIP AGENCY,25/04/2013,Professional Services Other,Research and Development Directorate,BMG RESEARCH,Commercial,Research and evaluation activities including contracted out data collation / gathering exercises when there is no analysis or recommendation,4000125428,32042.82,,
DEPARTMENT FOR EDUCATION,NATIONAL COLLEGE FOR SCHOOL LEADERSHIP AGENCY,25/04/2013,Facilities,Information Technology Facilities Management and Commercial Directorate,UNIVERSITY OF NOTTINGHAM,Public Sector,Rent,4000125450,34957.50,,
DEPARTMENT FOR EDUCATION,NATIONAL COLLEGE FOR SCHOOL LEADERSHIP AGENCY,25/04/2013,Programme costs,School Business Management and Efficiency,SERCO LTD,Commercial,Funding to deliver policies (excluding consultancy) paid to third parties via a service delivery contract,4000125469,26719.96,,
DEPARTMENT FOR EDUCATION,NATIONAL COLLEGE FOR SCHOOL LEADERSHIP AGENCY,25/04/2013,Programme costs,School Business Management and Efficiency,ANGLIA RUSKIN UNIVERSITY,Public Sector,Funding to deliver policies (excluding consultancy) paid to third parties via a service delivery contract,4000125540,10745.20,,
DEPARTMENT FOR EDUCATION,NATIONAL COLLEGE FOR SCHOOL LEADERSHIP AGENCY,25/04/2013,Programme costs,School Business Management and Efficiency,ANGLIA RUSKIN UNIVERSITY,Public Sector,Funding to deliver policies (excluding consultancy) paid to third parties via a service delivery contract,4000125540,32271.00,,
DEPARTMENT FOR EDUCATION,NATIONAL COLLEGE FOR SCHOOL LEADERSHIP AGENCY,29/04/2013,Grants,Teaching Schools Directorate,LEE CHAPEL ACADEMY TRUST - TS ACCOUNT,Public Sector,"Grants paid to organisations including agencies, arms length bodies and educational establishments",4000125787,93000.00,,
DEPARTMENT FOR EDUCATION,NATIONAL COLLEGE FOR SCHOOL LEADERSHIP AGENCY,29/04/2013,Grants,Teaching Schools Directorate,CALTHORPE SCHOOL TS ACC,Public Sector,"Grants paid to organisations including agencies, arms length bodies and educational establishments",4000125806,93000.00,,
DEPARTMENT FOR EDUCATION,NATIONAL COLLEGE FOR SCHOOL LEADERSHIP AGENCY,29/04/2013,Grants,Teaching Schools Directorate,WELLINGTON COLLEGE TS ACC,Public Sector,"Grants paid to organisations including agencies, arms length bodies and educational establishments",4000125807,93000.00,,
DEPARTMENT FOR EDUCATION,STANDARDS AND TESTING AGENCY,24/04/2013,Professional Services Other,Test Operation Division,HER MAJESTYS REVENUE & CUSTOMS,Public Sector,"Fees / expenses of professionals from the private sector, for example to implement advice or changes",2000773,219399.05,,
DEPARTMENT FOR EDUCATION,STANDARDS AND TESTING AGENCY,02/04/2013,Print and Print Management,Test Operation Division,THE STATIONERY OFFICE LTD,Commercial,Secure printing,4000122437,198928.99,,
DEPARTMENT FOR EDUCATION,STANDARDS AND TESTING AGENCY,02/04/2013,Print and Print Management,Test Operation Division,THE STATIONERY OFFICE LTD,Commercial,"Reprographic, photo and design goods and services (excluding photocopiers, multifunctional devices and printers)",4000122437,88.16,,
DEPARTMENT FOR EDUCATION,STANDARDS AND TESTING AGENCY,09/04/2013,Programme costs,Test Operation Division,RM EDUCATION PLC,Commercial,Funding to deliver policies (excluding consultancy) paid to third parties via a service delivery contract,4000123719,28238.19,,
DEPARTMENT FOR EDUCATION,STANDARDS AND TESTING AGENCY,11/04/2013,Travel,Standards and Testing Agency Admin,REDFERN TRAVEL LTD,Commercial,"Staff business travel including air, coach, ferry, rail and taxi",4000124026,116.62,,
DEPARTMENT FOR EDUCATION,STANDARDS AND TESTING AGENCY,11/04/2013,Personnel Related,Standards and Testing Agency Admin,REDFERN TRAVEL LTD,Commercial,Subsistence and lodging allowances for official duty,4000124026,0.71,,
DEPARTMENT FOR EDUCATION,STANDARDS AND TESTING AGENCY,11/04/2013,Travel,Test Development Division,REDFERN TRAVEL LTD,Commercial,"Staff business travel including air, coach, ferry, rail and taxi",4000124026,3206.10,,
DEPARTMENT FOR EDUCATION,STANDARDS AND TESTING AGENCY,11/04/2013,Travel,Test Support Division,REDFERN TRAVEL LTD,Commercial,"Staff business travel including air, coach, ferry, rail and taxi",4000124026,2458.86,,
DEPARTMENT FOR EDUCATION,STANDARDS AND TESTING AGENCY,11/04/2013,Personnel Related,Test Support Division,REDFERN TRAVEL LTD,Commercial,Subsistence and lodging allowances for official duty,4000124026,0.29,,
DEPARTMENT FOR EDUCATION,STANDARDS AND TESTING AGENCY,11/04/2013,Travel,Test Operation Division,REDFERN TRAVEL LTD,Commercial,"Staff business travel including air, coach, ferry, rail and taxi",4000124026,5315.12,,
DEPARTMENT FOR EDUCATION,STANDARDS AND TESTING AGENCY,11/04/2013,Travel,Test Development Division,REDFERN TRAVEL LTD,Commercial,"Staff business travel including air, coach, ferry, rail and taxi",4000124026,1077.74,,
DEPARTMENT FOR EDUCATION,STANDARDS AND TESTING AGENCY,11/04/2013,Travel,Test Development Division,REDFERN TRAVEL LTD,Commercial,"Staff business travel including air, coach, ferry, rail and taxi",4000124026,269.86,,
DEPARTMENT FOR EDUCATION,STANDARDS AND TESTING AGENCY,11/04/2013,Travel,Test Development Division,REDFERN TRAVEL LTD,Commercial,"Staff business travel including air, coach, ferry, rail and taxi",4000124026,220.37,,
DEPARTMENT FOR EDUCATION,STANDARDS AND TESTING AGENCY,11/04/2013,Travel,Test Development Division,REDFERN TRAVEL LTD,Commercial,"Staff business travel including air, coach, ferry, rail and taxi",4000124026,1051.65,,
DEPARTMENT FOR EDUCATION,STANDARDS AND TESTING AGENCY,11/04/2013,Travel,Test Support Division,REDFERN TRAVEL LTD,Commercial,"Staff business travel including air, coach, ferry, rail and taxi",4000124026,66.36,,
DEPARTMENT FOR EDUCATION,STANDARDS AND TESTING AGENCY,11/04/2013,Travel,Test Operation Division,REDFERN TRAVEL LTD,Commercial,"Staff business travel including air, coach, ferry, rail and taxi",4000124026,99.78,,
DEPARTMENT FOR EDUCATION,STANDARDS AND TESTING AGENCY,11/04/2013,Travel,Test Operation Division,REDFERN TRAVEL LTD,Commercial,"Staff business travel including air, coach, ferry, rail and taxi",4000124026,201.00,,
DEPARTMENT FOR EDUCATION,STANDARDS AND TESTING AGENCY,12/04/2013,ICT Commodities,Test Support Division,BSS,VCS,"Telecommunications including telephone cards, line rental and equipment, cost of maintenance, etc",4000124143,44346.64,,
DEPARTMENT FOR EDUCATION,STANDARDS AND TESTING AGENCY,16/04/2013,Programme costs,Test Development Division,PROLOG,Commercial,Funding to deliver policies (excluding consultancy) paid to third parties via a service delivery contract,4000124382,35464.00,,
DEPARTMENT FOR EDUCATION,STANDARDS AND TESTING AGENCY,16/04/2013,Print and Print Management,Test Operation Division,PROLOG,Commercial,Secure printing,4000124382,887139.65,,
DEPARTMENT FOR EDUCATION,STANDARDS AND TESTING AGENCY,16/04/2013,Programme costs,Test Operation Division,PROLOG,Commercial,Funding to deliver policies (excluding consultancy) paid to third parties via a service delivery contract,4000124382,2887.50,,
DEPARTMENT FOR EDUCATION,STANDARDS AND TESTING AGENCY,16/04/2013,Professional Services Other,Test Support Division,UNIVERSITY OF WARWICK,Public Sector,Research and evaluation activities including contracted out data collation / gathering exercises when there is no analysis or recommendation,4000124456,26010.00,,
DEPARTMENT FOR EDUCATION,STANDARDS AND TESTING AGENCY,24/04/2013,Programme costs,Test Operation Division,EDEXCEL,Commercial,Funding to deliver policies (excluding consultancy) paid to third parties via a service delivery contract,4000125359,1045000.00,,
DEPARTMENT FOR EDUCATION,STANDARDS AND TESTING AGENCY,25/04/2013,Office Solutions,Test Operation Division,GRANBY MARKETING SERVICES LTD,Commercial,Storing records off DfE sites,4000125489,136735.91,,
DEPARTMENT FOR EDUCATION,STANDARDS AND TESTING AGENCY,26/04/2013,Programme costs,Test Development Division,NFER TRADING LIMITED INV T,Commercial,Funding to deliver policies (excluding consultancy) paid to third parties via a service delivery contract,4000125626,252723.50,,
DEPARTMENT FOR EDUCATION,TEACHERS PENSION SCHEME,04/04/2013,Funding to Pay Teachers' Pensions,Workforce Group,CAPITA TP HSBC,Commercial,Funding to pay Teachers' Pensions,1001511,178301.30,,
DEPARTMENT FOR EDUCATION,TEACHERS PENSION SCHEME,04/04/2013,Funding to Pay Teachers' Pensions,Workforce Group,CAPITA TP NATWEST,Commercial,Funding to pay Teachers' Pensions,1001512,18434136.35,,
DEPARTMENT FOR EDUCATION,TEACHERS PENSION SCHEME,04/04/2013,Funding to Pay Teachers' Pensions,Workforce Group,CAPITA TP NATWEST,Commercial,Funding to pay Teachers' Pensions,1001513,35074147.36,,
DEPARTMENT FOR EDUCATION,TEACHERS PENSION SCHEME,05/04/2013,Funding to Pay Teachers' Pensions,Workforce Group,CAPITA TP HSBC,Commercial,Funding to pay Teachers' Pensions,1001514,480382.61,,
DEPARTMENT FOR EDUCATION,TEACHERS PENSION SCHEME,05/04/2013,Funding to Pay Teachers' Pensions,Workforce Group,CAPITA TP NATWEST,Commercial,Funding to pay Teachers' Pensions,1001515,18996865.01,,
DEPARTMENT FOR EDUCATION,TEACHERS PENSION SCHEME,10/04/2013,Funding to Pay Teachers' Pensions,Workforce Group,CAPITA TP HSBC,Commercial,Funding to pay Teachers' Pensions,1001517,39611.84,,
DEPARTMENT FOR EDUCATION,TEACHERS PENSION SCHEME,10/04/2013,Funding to Pay Teachers' Pensions,Workforce Group,CAPITA TP HSBC,Commercial,Funding to pay Teachers' Pensions,1001518,39611.84,,
DEPARTMENT FOR EDUCATION,TEACHERS PENSION SCHEME,10/04/2013,Funding to Pay Teachers' Pensions,Workforce Group,CAPITA TP NATWEST,Commercial,Funding to pay Teachers' Pensions,1001519,23557658.75,,
DEPARTMENT FOR EDUCATION,TEACHERS PENSION SCHEME,10/04/2013,Funding to Pay Teachers' Pensions,Workforce Group,CAPITA TP NATWEST,Commercial,Funding to pay Teachers' Pensions,1001521,51070892.91,,
DEPARTMENT FOR EDUCATION,TEACHERS PENSION SCHEME,10/04/2013,Funding to Pay Teachers' Pensions,Workforce Group,CAPITA TP NATWEST,Commercial,Funding to pay Teachers' Pensions,1001523,51070892.91,,
DEPARTMENT FOR EDUCATION,TEACHERS PENSION SCHEME,12/04/2013,Funding to Pay Teachers' Pensions,Workforce Group,CAPITA TP NATWEST,Commercial,Funding to pay Teachers' Pensions,1001525,18332679.00,,
DEPARTMENT FOR EDUCATION,TEACHERS PENSION SCHEME,12/04/2013,Funding to Pay Teachers' Pensions,Workforce Group,CAPITA TP HSBC,Commercial,Funding to pay Teachers' Pensions,1001526,790113.28,,
DEPARTMENT FOR EDUCATION,TEACHERS PENSION SCHEME,12/04/2013,Funding to Pay Teachers' Pensions,Workforce Group,CAPITA TP NATWEST,Commercial,Funding to pay Teachers' Pensions,1001527,19938370.80,,
DEPARTMENT FOR EDUCATION,TEACHERS PENSION SCHEME,12/04/2013,Funding to Pay Teachers' Pensions,Workforce Group,CAPITA TP HSBC,Commercial,Funding to pay Teachers' Pensions,1001528,37912.04,,
DEPARTMENT FOR EDUCATION,TEACHERS PENSION SCHEME,12/04/2013,Funding to Pay Teachers' Pensions,Workforce Group,CAPITA TP NATWEST,Commercial,Funding to pay Teachers' Pensions,1001529,37793.13,,
DEPARTMENT FOR EDUCATION,TEACHERS PENSION SCHEME,12/04/2013,Funding to Pay Teachers' Pensions,Workforce Group,CAPITA TP NATWEST,Commercial,Funding to pay Teachers' Pensions,1001530,17921757.01,,
DEPARTMENT FOR EDUCATION,TEACHERS PENSION SCHEME,15/04/2013,Funding to Pay Teachers' Pensions,Workforce Group,CAPITA TP HSBC,Commercial,Funding to pay Teachers' Pensions,1001531,289172.92,,
DEPARTMENT FOR EDUCATION,TEACHERS PENSION SCHEME,15/04/2013,Funding to Pay Teachers' Pensions,Workforce Group,CAPITA TP NATWEST,Commercial,Funding to pay Teachers' Pensions,1001532,50269264.32,,
DEPARTMENT FOR EDUCATION,TEACHERS PENSION SCHEME,16/04/2013,Funding to Pay Teachers' Pensions,Workforce Group,CAPITA TP HSBC,Commercial,Funding to pay Teachers' Pensions,1001533,79085.60,,
DEPARTMENT FOR EDUCATION,TEACHERS PENSION SCHEME,16/04/2013,Funding to Pay Teachers' Pensions,Workforce Group,CAPITA TP NATWEST,Commercial,Funding to pay Teachers' Pensions,1001534,30946913.81,,
DEPARTMENT FOR EDUCATION,TEACHERS PENSION SCHEME,19/04/2013,Funding to Pay Teachers' Pensions,Workforce Group,CAPITA TP HSBC,Commercial,Funding to pay Teachers' Pensions,1001535,150838.82,,
DEPARTMENT FOR EDUCATION,TEACHERS PENSION SCHEME,19/04/2013,Funding to Pay Teachers' Pensions,Workforce Group,CAPITA TP NATWEST,Commercial,Funding to pay Teachers' Pensions,1001536,20056336.99,,
DEPARTMENT FOR EDUCATION,TEACHERS PENSION SCHEME,22/04/2013,Funding to Pay Teachers' Pensions,Workforce Group,CAPITA TP HSBC,Commercial,Funding to pay Teachers' Pensions,1001537,278028.87,,
DEPARTMENT FOR EDUCATION,TEACHERS PENSION SCHEME,22/04/2013,Funding to Pay Teachers' Pensions,Workforce Group,CAPITA TP HSBC,Commercial,Funding to pay Teachers' Pensions,1001538,103524.43,,
DEPARTMENT FOR EDUCATION,TEACHERS PENSION SCHEME,22/04/2013,Funding to Pay Teachers' Pensions,Workforce Group,CAPITA TP HSBC,Commercial,Funding to pay Teachers' Pensions,1001539,504578.81,,
DEPARTMENT FOR EDUCATION,TEACHERS PENSION SCHEME,22/04/2013,Funding to Pay Teachers' Pensions,Workforce Group,CAPITA TP NATWEST,Commercial,Funding to pay Teachers' Pensions,1001540,50673342.31,,
DEPARTMENT FOR EDUCATION,TEACHERS PENSION SCHEME,22/04/2013,Funding to Pay Teachers' Pensions,Workforce Group,CAPITA TP NATWEST,Commercial,Funding to pay Teachers' Pensions,1001541,18181381.34,,
DEPARTMENT FOR EDUCATION,TEACHERS PENSION SCHEME,22/04/2013,Funding to Pay Teachers' Pensions,Workforce Group,CAPITA TP NATWEST,Commercial,Funding to pay Teachers' Pensions,1001542,17662545.16,,
DEPARTMENT FOR EDUCATION,TEACHERS PENSION SCHEME,23/04/2013,Funding to Pay Teachers' Pensions,Workforce Group,CAPITA TP HSBC,Commercial,Funding to pay Teachers' Pensions,1001543,101870.38,,
DEPARTMENT FOR EDUCATION,TEACHERS PENSION SCHEME,23/04/2013,Funding to Pay Teachers' Pensions,Workforce Group,CAPITA TP NATWEST,Commercial,Funding to pay Teachers' Pensions,1001544,103724038.23,,
DEPARTMENT FOR EDUCATION,TEACHERS PENSION SCHEME,24/04/2013,Funding to Pay Teachers' Pensions,Workforce Group,CAPITA TP HSBC,Commercial,Funding to pay Teachers' Pensions,1001545,442916.97,,
DEPARTMENT FOR EDUCATION,TEACHERS PENSION SCHEME,24/04/2013,Funding to Pay Teachers' Pensions,Workforce Group,CAPITA TP NATWEST,Commercial,Funding to pay Teachers' Pensions,1001546,18068708.43,,
DEPARTMENT FOR EDUCATION,TEACHERS PENSION SCHEME,25/04/2013,Funding to Pay Teachers' Pensions,Workforce Group,CAPITA TP HSBC,Commercial,Funding to pay Teachers' Pensions,1001547,66309.37,,
DEPARTMENT FOR EDUCATION,TEACHERS PENSION SCHEME,25/04/2013,Funding to Pay Teachers' Pensions,Workforce Group,CAPITA TP NATWEST,Commercial,Funding to pay Teachers' Pensions,1001548,18067423.97,,
DEPARTMENT FOR EDUCATION,TEACHERS PENSION SCHEME,26/04/2013,Funding to Pay Teachers' Pensions,Workforce Group,CAPITA TP HSBC,Commercial,Funding to pay Teachers' Pensions,1001549,183501.76,,
DEPARTMENT FOR EDUCATION,TEACHERS PENSION SCHEME,26/04/2013,Funding to Pay Teachers' Pensions,Workforce Group,CAPITA TP NATWEST,Commercial,Funding to pay Teachers' Pensions,1001550,17552991.70,,
DEPARTMENT FOR EDUCATION,TEACHERS PENSION SCHEME,30/04/2013,Funding to Pay Teachers' Pensions,Workforce Group,CAPITA TP HSBC,Commercial,Funding to pay Teachers' Pensions,1001551,86605.86,,
DEPARTMENT FOR EDUCATION,TEACHERS PENSION SCHEME,30/04/2013,Funding to Pay Teachers' Pensions,Workforce Group,CAPITA TP NATWEST,Commercial,Funding to pay Teachers' Pensions,1001552,29592344.91,,
DEPARTMENT FOR EDUCATION,TEACHERS PENSION SCHEME,30/04/2013,Funding to Pay Teachers' Pensions,Workforce Group,CAPITA TP HSBC,Commercial,Funding to pay Teachers' Pensions,1001554,30467.26,,
DEPARTMENT FOR EDUCATION,TEACHERS PENSION SCHEME,30/04/2013,Funding to Pay Teachers' Pensions,Workforce Group,CAPITA TP NATWEST,Commercial,Funding to pay Teachers' Pensions,1001555,18885811.36,,
DEPARTMENT FOR EDUCATION,TEACHERS PENSION SCHEME,30/04/2013,Funding to Pay Teachers' Pensions,Workforce Group,CAPITA TP NATWEST,Commercial,Funding to pay Teachers' Pensions,1001556,65559883.85,,
DEPARTMENT FOR EDUCATION,TEACHING AGENCY,12/04/2013,Programme costs,Quality and Priorities Division,MINISTRY OF DEFENCE,Central Government,Funding to deliver policies (excluding consultancy) paid to third parties via a service delivery contract,2000766,990000.00,,
DEPARTMENT FOR EDUCATION,TEACHING AGENCY,02/04/2013,Travel,Supply and Recruitment Division,CREATIVE CHOICE,Public Sector,Hosting conferences including programme activity such as conferences for teachers,4000122469,35968.17,,
DEPARTMENT FOR EDUCATION,TEACHING AGENCY,02/04/2013,Communications,Teacher Supply and Recruitment Division,M4C,Commercial,Marketing and Services,4000122488,751.00,,
DEPARTMENT FOR EDUCATION,TEACHING AGENCY,02/04/2013,Advertising and Media,Supply and Recruitment Division,M4C,Commercial," Media monitoring services including videotaping news, TV and radio programmes",4000122488,95896.61,,
DEPARTMENT FOR EDUCATION,TEACHING AGENCY,03/04/2013,Programme costs,Teacher Supply and Recruitment Division,MM TELEPERFORMANCE,Commercial,Funding to deliver policies (excluding consultancy) paid to third parties via a service delivery contract,4000122695,72173.35,,
DEPARTMENT FOR EDUCATION,TEACHING AGENCY,03/04/2013,Programme costs,Teacher Supply and Recruitment Division,BTL GROUP LIMITED,Commercial,Funding to deliver policies (excluding consultancy) paid to third parties via a service delivery contract,4000122794,77190.00,,
DEPARTMENT FOR EDUCATION,TEACHING AGENCY,03/04/2013,Advertising and Media,Supply and Recruitment Division,M4C,Commercial," Media monitoring services including videotaping news, TV and radio programmes",4000122797,398747.86,,
DEPARTMENT FOR EDUCATION,TEACHING AGENCY,03/04/2013,Print and Print Management,Supply and Recruitment Division,M4C,Commercial,"Reprographic, photo and design goods and services (excluding photocopiers, multifunctional devices and printers)",4000122797,6817.09,,
DEPARTMENT FOR EDUCATION,TEACHING AGENCY,03/04/2013,Advertising and Media,Supply and Recruitment Division,M4C,Commercial," Media monitoring services including videotaping news, TV and radio programmes",4000122797,15001.15,,
DEPARTMENT FOR EDUCATION,TEACHING AGENCY,04/04/2013,Grants,Funding Allocation and Performance Division,WANDSWORTH PRIMARY SCHOOLS CONSORTIUM,Public Sector,Grants to third sector organisations / not for profit organisations,4000122928,44200.00,,
DEPARTMENT FOR EDUCATION,TEACHING AGENCY,04/04/2013,Grants,Funding Allocation and Performance Division,UNIVERSITY OF CHICHESTER,Public Sector,Grants to third sector organisations / not for profit organisations,4000122929,188235.00,,
DEPARTMENT FOR EDUCATION,TEACHING AGENCY,04/04/2013,Grants,Funding Allocation and Performance Division,UNIVERSITY OF CHICHESTER,Public Sector,Grants to third sector organisations / not for profit organisations,4000122929,116334.00,,
DEPARTMENT FOR EDUCATION,TEACHING AGENCY,04/04/2013,Grants,Funding Allocation and Performance Division,UNIVERSITY OF CHICHESTER,Public Sector,Grants to third sector organisations / not for profit organisations,4000122929,18230.80,,
DEPARTMENT FOR EDUCATION,TEACHING AGENCY,04/04/2013,Grants,Funding Allocation and Performance Division,UNIVERSITY OF ROEHAMPTON,Public Sector,Grants to third sector organisations / not for profit organisations,4000122930,253704.00,,
DEPARTMENT FOR EDUCATION,TEACHING AGENCY,04/04/2013,Grants,Funding Allocation and Performance Division,UNIVERSITY OF ROEHAMPTON,Public Sector,Grants to third sector organisations / not for profit organisations,4000122930,227582.42,,
DEPARTMENT FOR EDUCATION,TEACHING AGENCY,04/04/2013,Grants,Funding Allocation and Performance Division,UNIVERSITY OF ROEHAMPTON,Public Sector,Grants to third sector organisations / not for profit organisations,4000122930,16264.00,,
DEPARTMENT FOR EDUCATION,TEACHING AGENCY,04/04/2013,Grants,Funding Allocation and Performance Division,UNIVERSITY OF HULL,Public Sector,Grants to third sector organisations / not for profit organisations,4000122939,99832.50,,
DEPARTMENT FOR EDUCATION,TEACHING AGENCY,04/04/2013,Grants,Funding Allocation and Performance Division,UNIVERSITY OF HULL,Public Sector,Grants to third sector organisations / not for profit organisations,4000122939,193128.00,,
DEPARTMENT FOR EDUCATION,TEACHING AGENCY,04/04/2013,Grants,Funding Allocation and Performance Division,UNIVERSITY OF HULL,Public Sector,Grants to third sector organisations / not for profit organisations,4000122939,43356.00,,
DEPARTMENT FOR EDUCATION,TEACHING AGENCY,04/04/2013,Grants,Supply and Recruitment Division,UNIVERSITY OF BRISTOL,Public Sector,Grants to third sector organisations / not for profit organisations,4000122942,2076.42,,
DEPARTMENT FOR EDUCATION,TEACHING AGENCY,04/04/2013,Grants,Funding Allocation and Performance Division,UNIVERSITY OF BRISTOL,Public Sector,Grants to third sector organisations / not for profit organisations,4000122942,168030.00,,
DEPARTMENT FOR EDUCATION,TEACHING AGENCY,04/04/2013,Grants,Supply and Recruitment Division,SHEFFIELD HALLAM UNIVERSITY,Public Sector,Grants to third sector organisations / not for profit organisations,4000122948,8305.71,,
DEPARTMENT FOR EDUCATION,TEACHING AGENCY,04/04/2013,Grants,Funding Allocation and Performance Division,SHEFFIELD HALLAM UNIVERSITY,Public Sector,Grants to third sector organisations / not for profit organisations,4000122948,242221.50,,
DEPARTMENT FOR EDUCATION,TEACHING AGENCY,04/04/2013,Grants,Funding Allocation and Performance Division,SHEFFIELD HALLAM UNIVERSITY,Public Sector,Grants to third sector organisations / not for profit organisations,4000122948,279716.00,,
DEPARTMENT FOR EDUCATION,TEACHING AGENCY,04/04/2013,Grants,Funding Allocation and Performance Division,SHEFFIELD HALLAM UNIVERSITY,Public Sector,Grants to third sector organisations / not for profit organisations,4000122948,43250.80,,
DEPARTMENT FOR EDUCATION,TEACHING AGENCY,04/04/2013,Grants,Supply and Recruitment Division,UNIVERSITY OF BRIGHTON,Public Sector,Grants to third sector organisations / not for profit organisations,4000122949,830.57,,
DEPARTMENT FOR EDUCATION,TEACHING AGENCY,04/04/2013,Grants,Funding Allocation and Performance Division,UNIVERSITY OF BRIGHTON,Public Sector,Grants to third sector organisations / not for profit organisations,4000122949,340167.50,,
DEPARTMENT FOR EDUCATION,TEACHING AGENCY,04/04/2013,Grants,Funding Allocation and Performance Division,UNIVERSITY OF BRIGHTON,Public Sector,Grants to third sector organisations / not for profit organisations,4000122949,253577.52,,
DEPARTMENT FOR EDUCATION,TEACHING AGENCY,04/04/2013,Grants,Funding Allocation and Performance Division,UNIVERSITY OF BRIGHTON,Public Sector,Grants to third sector organisations / not for profit organisations,4000122949,23083.20,,
DEPARTMENT FOR EDUCATION,TEACHING AGENCY,04/04/2013,Grants,Funding Allocation and Performance Division,UNIVERSITY OF BRIGHTON,Public Sector,Grants to third sector organisations / not for profit organisations,4000122949,29418.80,,
DEPARTMENT FOR EDUCATION,TEACHING AGENCY,04/04/2013,Office Solutions,Exam Officers Support,PARCELFORCE WORLDWIDE,Commercial,"Post office services including stamps, data post, etc.",4000122955,152412.47,,
DEPARTMENT FOR EDUCATION,TEACHING AGENCY,04/04/2013,Grants,Funding Allocation and Performance Division,UNIVERSITY OF CHESTER,Public Sector,Grants to third sector organisations / not for profit organisations,4000122958,106488.00,,
DEPARTMENT FOR EDUCATION,TEACHING AGENCY,04/04/2013,Grants,Funding Allocation and Performance Division,UNIVERSITY OF CHESTER,Public Sector,Grants to third sector organisations / not for profit organisations,4000122958,138730.50,,
DEPARTMENT FOR EDUCATION,TEACHING AGENCY,04/04/2013,Grants,Funding Allocation and Performance Division,UNIVERSITY OF CHESTER,Public Sector,Grants to third sector organisations / not for profit organisations,4000122958,19236.00,,
DEPARTMENT FOR EDUCATION,TEACHING AGENCY,04/04/2013,Grants,Funding Allocation and Performance Division,UNIVERSITY OF CHESTER,Public Sector,Grants to third sector organisations / not for profit organisations,4000122958,35089.60,,
DEPARTMENT FOR EDUCATION,TEACHING AGENCY,04/04/2013,Grants,Funding Allocation and Performance Division,HULL CITYWIDE GTP,Public Sector,Grants to third sector organisations / not for profit organisations,4000122960,31655.40,,
DEPARTMENT FOR EDUCATION,TEACHING AGENCY,04/04/2013,Grants,Funding Allocation and Performance Division,UNIVERSITY OF YORK,Public Sector,Grants to third sector organisations / not for profit organisations,4000122963,122580.00,,
DEPARTMENT FOR EDUCATION,TEACHING AGENCY,04/04/2013,Grants,Funding Allocation and Performance Division,UNIVERSITY OF NEWCASTLE UPON TYNE,Public Sector,Grants to third sector organisations / not for profit organisations,4000122964,34617.56,,
DEPARTMENT FOR EDUCATION,TEACHING AGENCY,04/04/2013,Grants,Funding Allocation and Performance Division,UNIVERSITY OF NEWCASTLE UPON TYNE,Public Sector,Grants to third sector organisations / not for profit organisations,4000122964,6642.40,,
DEPARTMENT FOR EDUCATION,TEACHING AGENCY,04/04/2013,Grants,Supply and Recruitment Division,UNIVERSITY OF WOLVERHAMPTON,Public Sector,Grants to third sector organisations / not for profit organisations,4000122965,4152.86,,
DEPARTMENT FOR EDUCATION,TEACHING AGENCY,04/04/2013,Grants,Funding Allocation and Performance Division,UNIVERSITY OF WOLVERHAMPTON,Public Sector,Grants to third sector organisations / not for profit organisations,4000122965,79636.50,,
DEPARTMENT FOR EDUCATION,TEACHING AGENCY,04/04/2013,Grants,Funding Allocation and Performance Division,UNIVERSITY OF WOLVERHAMPTON,Public Sector,Grants to third sector organisations / not for profit organisations,4000122965,185548.50,,
DEPARTMENT FOR EDUCATION,TEACHING AGENCY,04/04/2013,Grants,Funding Allocation and Performance Division,UNIVERSITY OF WOLVERHAMPTON,Public Sector,Grants to third sector organisations / not for profit organisations,4000122965,67794.90,,
DEPARTMENT FOR EDUCATION,TEACHING AGENCY,04/04/2013,Grants,Quality and Priorities Division,UNIVERSITY OF WOLVERHAMPTON,Public Sector,Grants to third sector organisations / not for profit organisations,4000122965,32200.00,,
DEPARTMENT FOR EDUCATION,TEACHING AGENCY,04/04/2013,Grants,Funding Allocation and Performance Division,UNIVERSITY OF WOLVERHAMPTON,Public Sector,Grants to third sector organisations / not for profit organisations,4000122965,46229.80,,
DEPARTMENT FOR EDUCATION,TEACHING AGENCY,04/04/2013,Grants,Supply and Recruitment Division,UNIVERSITY OF DURHAM,Public Sector,Grants to third sector organisations / not for profit organisations,4000122967,2076.42,,
DEPARTMENT FOR EDUCATION,TEACHING AGENCY,04/04/2013,Grants,Funding Allocation and Performance Division,UNIVERSITY OF DURHAM,Public Sector,Grants to third sector organisations / not for profit organisations,4000122967,83767.50,,
DEPARTMENT FOR EDUCATION,TEACHING AGENCY,04/04/2013,Grants,Funding Allocation and Performance Division,UNIVERSITY OF DURHAM,Public Sector,Grants to third sector organisations / not for profit organisations,4000122967,204525.00,,
DEPARTMENT FOR EDUCATION,TEACHING AGENCY,04/04/2013,Grants,Funding Allocation and Performance Division,UNIVERSITY OF DURHAM,Public Sector,Grants to third sector organisations / not for profit organisations,4000122967,2008.00,,
DEPARTMENT FOR EDUCATION,TEACHING AGENCY,04/04/2013,Grants,Funding Allocation and Performance Division,KEELE UNIVERSITY,Public Sector,Grants to third sector organisations / not for profit organisations,4000122968,164214.00,,
DEPARTMENT FOR EDUCATION,TEACHING AGENCY,04/04/2013,Grants,Funding Allocation and Performance Division,KEELE UNIVERSITY,Public Sector,Grants to third sector organisations / not for profit organisations,4000122968,50127.20,,
DEPARTMENT FOR EDUCATION,TEACHING AGENCY,04/04/2013,Grants,Funding Allocation and Performance Division,LONDON METROPOLITAN UNIVERSITY,Public Sector,Grants to third sector organisations / not for profit organisations,4000122971,23808.00,,
DEPARTMENT FOR EDUCATION,TEACHING AGENCY,04/04/2013,Grants,Funding Allocation and Performance Division,LONDON METROPOLITAN UNIVERSITY,Public Sector,Grants to third sector organisations / not for profit organisations,4000122971,148605.00,,
DEPARTMENT FOR EDUCATION,TEACHING AGENCY,04/04/2013,Grants,Funding Allocation and Performance Division,LONDON METROPOLITAN UNIVERSITY,Public Sector,Grants to third sector organisations / not for profit organisations,4000122971,34775.20,,
DEPARTMENT FOR EDUCATION,TEACHING AGENCY,04/04/2013,Grants,Funding Allocation and Performance Division,NOTTINGHAM TRENT UNIVERSITY,Public Sector,Grants to third sector organisations / not for profit organisations,4000122973,157435.00,,
DEPARTMENT FOR EDUCATION,TEACHING AGENCY,04/04/2013,Grants,Funding Allocation and Performance Division,NOTTINGHAM TRENT UNIVERSITY,Public Sector,Grants to third sector organisations / not for profit organisations,4000122973,156474.00,,
DEPARTMENT FOR EDUCATION,TEACHING AGENCY,04/04/2013,Grants,Funding Allocation and Performance Division,NOTTINGHAM TRENT UNIVERSITY,Public Sector,Grants to third sector organisations / not for profit organisations,4000122973,45192.60,,
DEPARTMENT FOR EDUCATION,TEACHING AGENCY,04/04/2013,Grants,Funding Allocation and Performance Division,NOTTINGHAM TRENT UNIVERSITY,Public Sector,Grants to third sector organisations / not for profit organisations,4000122973,36972.40,,
DEPARTMENT FOR EDUCATION,TEACHING AGENCY,04/04/2013,Grants,Funding Allocation and Performance Division,UNIVERSITY OF NOTTINGHAM,Public Sector,Grants to third sector organisations / not for profit organisations,4000122975,218845.21,,
DEPARTMENT FOR EDUCATION,TEACHING AGENCY,04/04/2013,Grants,Funding Allocation and Performance Division,KINGSTON UNIVERSITY,Public Sector,Grants to third sector organisations / not for profit organisations,4000122978,84350.00,,
DEPARTMENT FOR EDUCATION,TEACHING AGENCY,04/04/2013,Grants,Funding Allocation and Performance Division,KINGSTON UNIVERSITY,Public Sector,Grants to third sector organisations / not for profit organisations,4000122978,128407.50,,
DEPARTMENT FOR EDUCATION,TEACHING AGENCY,04/04/2013,Grants,Funding Allocation and Performance Division,UNIVERSITY OF BATH,Public Sector,Grants to third sector organisations / not for profit organisations,4000122982,97290.00,,
DEPARTMENT FOR EDUCATION,TEACHING AGENCY,04/04/2013,Grants,Funding Allocation and Performance Division,UNIVERSITY OF CUMBRIA,Public Sector,Grants to third sector organisations / not for profit organisations,4000122986,536355.00,,
DEPARTMENT FOR EDUCATION,TEACHING AGENCY,04/04/2013,Grants,Funding Allocation and Performance Division,UNIVERSITY OF CUMBRIA,Public Sector,Grants to third sector organisations / not for profit organisations,4000122986,356860.50,,
DEPARTMENT FOR EDUCATION,TEACHING AGENCY,04/04/2013,Grants,Funding Allocation and Performance Division,UNIVERSITY OF CUMBRIA,Public Sector,Grants to third sector organisations / not for profit organisations,4000122986,13486.20,,
DEPARTMENT FOR EDUCATION,TEACHING AGENCY,04/04/2013,Grants,Funding Allocation and Performance Division,UNIVERSITY OF CUMBRIA,Public Sector,Grants to third sector organisations / not for profit organisations,4000122986,18892.40,,
DEPARTMENT FOR EDUCATION,TEACHING AGENCY,04/04/2013,Grants,Funding Allocation and Performance Division,LEEDS TRINITY UNIVERSITY COLLEGE,Public Sector,Grants to third sector organisations / not for profit organisations,4000122996,182223.00,,
DEPARTMENT FOR EDUCATION,TEACHING AGENCY,04/04/2013,Grants,Funding Allocation and Performance Division,LEEDS TRINITY UNIVERSITY COLLEGE,Public Sector,Grants to third sector organisations / not for profit organisations,4000122996,136098.50,,
DEPARTMENT FOR EDUCATION,TEACHING AGENCY,04/04/2013,Grants,Funding Allocation and Performance Division,LEEDS TRINITY UNIVERSITY COLLEGE,Public Sector,Grants to third sector organisations / not for profit organisations,4000122996,26552.00,,
DEPARTMENT FOR EDUCATION,TEACHING AGENCY,04/04/2013,Grants,Supply and Recruitment Division,UNIVERSITY OF WORCESTER,Public Sector,Grants to third sector organisations / not for profit organisations,4000122999,2076.42,,
DEPARTMENT FOR EDUCATION,TEACHING AGENCY,04/04/2013,Grants,Funding Allocation and Performance Division,UNIVERSITY OF WORCESTER,Public Sector,Grants to third sector organisations / not for profit organisations,4000122999,115209.00,,
DEPARTMENT FOR EDUCATION,TEACHING AGENCY,04/04/2013,Grants,Funding Allocation and Performance Division,UNIVERSITY OF WORCESTER,Public Sector,Grants to third sector organisations / not for profit organisations,4000122999,186739.73,,
DEPARTMENT FOR EDUCATION,TEACHING AGENCY,04/04/2013,Grants,Funding Allocation and Performance Division,UNIVERSITY OF WORCESTER,Public Sector,Grants to third sector organisations / not for profit organisations,4000122999,37029.30,,
DEPARTMENT FOR EDUCATION,TEACHING AGENCY,04/04/2013,Grants,Funding Allocation and Performance Division,UNIVERSITY OF WORCESTER,Public Sector,Grants to third sector organisations / not for profit organisations,4000122999,3988.00,,
DEPARTMENT FOR EDUCATION,TEACHING AGENCY,04/04/2013,Grants,Funding Allocation and Performance Division,UNIVERSITY OF HERTFORDSHIRE,Public Sector,Grants to third sector organisations / not for profit organisations,4000123000,119799.00,,
DEPARTMENT FOR EDUCATION,TEACHING AGENCY,04/04/2013,Grants,Funding Allocation and Performance Division,UNIVERSITY OF HERTFORDSHIRE,Public Sector,Grants to third sector organisations / not for profit organisations,4000123000,134183.11,,
DEPARTMENT FOR EDUCATION,TEACHING AGENCY,04/04/2013,Grants,Funding Allocation and Performance Division,UNIVERSITY OF HERTFORDSHIRE,Public Sector,Grants to third sector organisations / not for profit organisations,4000123000,55291.50,,
DEPARTMENT FOR EDUCATION,TEACHING AGENCY,04/04/2013,Grants,Funding Allocation and Performance Division,UNIVERSITY OF HERTFORDSHIRE,Public Sector,Grants to third sector organisations / not for profit organisations,4000123000,31392.00,,
DEPARTMENT FOR EDUCATION,TEACHING AGENCY,04/04/2013,Grants,Funding Allocation and Performance Division,LIVERPOOL JOHN MOORES UNIVERSITY,Public Sector,Grants to third sector organisations / not for profit organisations,4000123016,163001.00,,
DEPARTMENT FOR EDUCATION,TEACHING AGENCY,04/04/2013,Grants,Funding Allocation and Performance Division,LIVERPOOL JOHN MOORES UNIVERSITY,Public Sector,Grants to third sector organisations / not for profit organisations,4000123016,229076.16,,
DEPARTMENT FOR EDUCATION,TEACHING AGENCY,04/04/2013,Grants,Quality and Priorities Division,LIVERPOOL JOHN MOORES UNIVERSITY,Public Sector,Grants to third sector organisations / not for profit organisations,4000123016,41400.00,,
DEPARTMENT FOR EDUCATION,TEACHING AGENCY,04/04/2013,Grants,Funding Allocation and Performance Division,LIVERPOOL JOHN MOORES UNIVERSITY,Public Sector,Grants to third sector organisations / not for profit organisations,4000123016,90225.20,,
DEPARTMENT FOR EDUCATION,TEACHING AGENCY,04/04/2013,Grants,Funding Allocation and Performance Division,BIRMINGHAM CITY UNIVERSITY,Public Sector,Grants to third sector organisations / not for profit organisations,4000123017,165699.00,,
DEPARTMENT FOR EDUCATION,TEACHING AGENCY,04/04/2013,Grants,Funding Allocation and Performance Division,BIRMINGHAM CITY UNIVERSITY,Public Sector,Grants to third sector organisations / not for profit organisations,4000123017,191055.56,,
DEPARTMENT FOR EDUCATION,TEACHING AGENCY,04/04/2013,Grants,Quality and Priorities Division,BIRMINGHAM CITY UNIVERSITY,Public Sector,Grants to third sector organisations / not for profit organisations,4000123017,9200.00,,
DEPARTMENT FOR EDUCATION,TEACHING AGENCY,04/04/2013,Grants,Funding Allocation and Performance Division,BIRMINGHAM CITY UNIVERSITY,Public Sector,Grants to third sector organisations / not for profit organisations,4000123017,17220.00,,
DEPARTMENT FOR EDUCATION,TEACHING AGENCY,04/04/2013,Grants,Funding Allocation and Performance Division,UNIVERSITY OF SUNDERLAND,Public Sector,Grants to third sector organisations / not for profit organisations,4000123027,184876.00,,
DEPARTMENT FOR EDUCATION,TEACHING AGENCY,04/04/2013,Grants,Funding Allocation and Performance Division,UNIVERSITY OF SUNDERLAND,Public Sector,Grants to third sector organisations / not for profit organisations,4000123027,156105.00,,
DEPARTMENT FOR EDUCATION,TEACHING AGENCY,04/04/2013,Grants,Funding Allocation and Performance Division,UNIVERSITY OF SUNDERLAND,Public Sector,Grants to third sector organisations / not for profit organisations,4000123027,20678.70,,
DEPARTMENT FOR EDUCATION,TEACHING AGENCY,04/04/2013,Grants,Quality and Priorities Division,UNIVERSITY OF SUNDERLAND,Public Sector,Grants to third sector organisations / not for profit organisations,4000123027,14950.00,,
DEPARTMENT FOR EDUCATION,TEACHING AGENCY,04/04/2013,Grants,Funding Allocation and Performance Division,UNIVERSITY OF SUNDERLAND,Public Sector,Grants to third sector organisations / not for profit organisations,4000123027,31778.80,,
DEPARTMENT FOR EDUCATION,TEACHING AGENCY,04/04/2013,Grants,Funding Allocation and Performance Division,THE UNIVERSITY OF LEEDS,Public Sector,Grants to third sector organisations / not for profit organisations,4000123030,220454.65,,
DEPARTMENT FOR EDUCATION,TEACHING AGENCY,04/04/2013,Grants,Funding Allocation and Performance Division,UNIVERSITY OF HUDDERSFIELD,Public Sector,Grants to third sector organisations / not for profit organisations,4000123031,16065.00,,
DEPARTMENT FOR EDUCATION,TEACHING AGENCY,04/04/2013,Grants,Funding Allocation and Performance Division,UNIVERSITY OF HUDDERSFIELD,Public Sector,Grants to third sector organisations / not for profit organisations,4000123031,49660.00,,
DEPARTMENT FOR EDUCATION,TEACHING AGENCY,04/04/2013,Grants,Funding Allocation and Performance Division,UNIVERSITY OF NORTHUMBRIA,Public Sector,Grants to third sector organisations / not for profit organisations,4000123033,106947.00,,
DEPARTMENT FOR EDUCATION,TEACHING AGENCY,04/04/2013,Grants,Funding Allocation and Performance Division,UNIVERSITY OF NORTHUMBRIA,Public Sector,Grants to third sector organisations / not for profit organisations,4000123033,88200.00,,
DEPARTMENT FOR EDUCATION,TEACHING AGENCY,04/04/2013,Grants,Funding Allocation and Performance Division,UNIVERSITY OF PLYMOUTH,Public Sector,Grants to third sector organisations / not for profit organisations,4000123041,203337.00,,
DEPARTMENT FOR EDUCATION,TEACHING AGENCY,04/04/2013,Grants,Funding Allocation and Performance Division,UNIVERSITY OF PLYMOUTH,Public Sector,Grants to third sector organisations / not for profit organisations,4000123041,103575.52,,
DEPARTMENT FOR EDUCATION,TEACHING AGENCY,04/04/2013,Grants,Funding Allocation and Performance Division,UNIVERSITY OF PLYMOUTH,Public Sector,Grants to third sector organisations / not for profit organisations,4000123041,386017.00,,
DEPARTMENT FOR EDUCATION,TEACHING AGENCY,04/04/2013,Grants,Funding Allocation and Performance Division,UNIVERSITY OF SUSSEX,Public Sector,Grants to third sector organisations / not for profit organisations,4000123042,170397.00,,
DEPARTMENT FOR EDUCATION,TEACHING AGENCY,04/04/2013,Grants,Funding Allocation and Performance Division,UNIVERSITY OF SUSSEX,Public Sector,Grants to third sector organisations / not for profit organisations,4000123042,17312.40,,
DEPARTMENT FOR EDUCATION,TEACHING AGENCY,04/04/2013,Grants,Funding Allocation and Performance Division,UNIVERSITY OF SUSSEX,Public Sector,Grants to third sector organisations / not for profit organisations,4000123042,31676.80,,
DEPARTMENT FOR EDUCATION,TEACHING AGENCY,04/04/2013,Grants,Funding Allocation and Performance Division,UNIVERSITY OF CAMBRIDGE,Public Sector,Grants to third sector organisations / not for profit organisations,4000123051,291166.14,,
DEPARTMENT FOR EDUCATION,TEACHING AGENCY,04/04/2013,Grants,Funding Allocation and Performance Division,NORTH TYNESIDE,Public Sector,Grants to third sector organisations / not for profit organisations,4000123052,50837.78,,
DEPARTMENT FOR EDUCATION,TEACHING AGENCY,04/04/2013,Grants,Funding Allocation and Performance Division,UNIVERSITY OF BIRMINGHAM,Public Sector,Grants to third sector organisations / not for profit organisations,4000123061,250227.00,,
DEPARTMENT FOR EDUCATION,TEACHING AGENCY,04/04/2013,Grants,Funding Allocation and Performance Division,UNIVERSITY OF BIRMINGHAM,Public Sector,Grants to third sector organisations / not for profit organisations,4000123061,12331.20,,
DEPARTMENT FOR EDUCATION,TEACHING AGENCY,04/04/2013,Grants,Funding Allocation and Performance Division,UNIVERSITY COLLEGE CHICHESTER,Public Sector,Grants to third sector organisations / not for profit organisations,4000123072,28806.00,,
DEPARTMENT FOR EDUCATION,TEACHING AGENCY,04/04/2013,Grants,Funding Allocation and Performance Division,KINGS COLLEGE,Public Sector,Grants to third sector organisations / not for profit organisations,4000123077,195465.85,,
DEPARTMENT FOR EDUCATION,TEACHING AGENCY,04/04/2013,Grants,Quality and Priorities Division,KINGS COLLEGE,Public Sector,Grants to third sector organisations / not for profit organisations,4000123077,20700.00,,
DEPARTMENT FOR EDUCATION,TEACHING AGENCY,04/04/2013,Grants,Funding Allocation and Performance Division,KINGS COLLEGE,Public Sector,Grants to third sector organisations / not for profit organisations,4000123077,3694.40,,
DEPARTMENT FOR EDUCATION,TEACHING AGENCY,04/04/2013,Grants,Funding Allocation and Performance Division,SUFFOLK COUNTY COUNCIL,Public Sector,Grants to third sector organisations / not for profit organisations,4000123079,83320.00,,
DEPARTMENT FOR EDUCATION,TEACHING AGENCY,04/04/2013,Grants,Funding Allocation and Performance Division,SUFFOLK COUNTY COUNCIL,Public Sector,Grants to third sector organisations / not for profit organisations,4000123079,42947.70,,
DEPARTMENT FOR EDUCATION,TEACHING AGENCY,04/04/2013,Grants,Funding Allocation and Performance Division,THE UNIVERSITY OF MANCHESTER,Public Sector,Grants to third sector organisations / not for profit organisations,4000123080,327708.00,,
DEPARTMENT FOR EDUCATION,TEACHING AGENCY,04/04/2013,Grants,Quality and Priorities Division,THE UNIVERSITY OF MANCHESTER,Public Sector,Grants to third sector organisations / not for profit organisations,4000123080,71300.00,,
DEPARTMENT FOR EDUCATION,TEACHING AGENCY,04/04/2013,Grants,Funding Allocation and Performance Division,THE UNIVERSITY OF MANCHESTER,Public Sector,Grants to third sector organisations / not for profit organisations,4000123080,4705.60,,
DEPARTMENT FOR EDUCATION,TEACHING AGENCY,04/04/2013,Grants,Funding Allocation and Performance Division,UNIVERSITY OF LEICESTER,Public Sector,Grants to third sector organisations / not for profit organisations,4000123081,183060.00,,
DEPARTMENT FOR EDUCATION,TEACHING AGENCY,04/04/2013,Grants,Quality and Priorities Division,UNIVERSITY OF LEICESTER,Public Sector,Grants to third sector organisations / not for profit organisations,4000123081,18400.00,,
DEPARTMENT FOR EDUCATION,TEACHING AGENCY,04/04/2013,Grants,Funding Allocation and Performance Division,UNIVERSITY OF LEICESTER,Public Sector,Grants to third sector organisations / not for profit organisations,4000123081,11772.00,,
DEPARTMENT FOR EDUCATION,TEACHING AGENCY,04/04/2013,Grants,Funding Allocation and Performance Division,EDGE HILL UNIVERSITY,Public Sector,Grants to third sector organisations / not for profit organisations,4000123082,523727.50,,
DEPARTMENT FOR EDUCATION,TEACHING AGENCY,04/04/2013,Grants,Funding Allocation and Performance Division,EDGE HILL UNIVERSITY,Public Sector,Grants to third sector organisations / not for profit organisations,4000123082,490648.70,,
DEPARTMENT FOR EDUCATION,TEACHING AGENCY,04/04/2013,Grants,Funding Allocation and Performance Division,EDGE HILL UNIVERSITY,Public Sector,Grants to third sector organisations / not for profit organisations,4000123082,18755.10,,
DEPARTMENT FOR EDUCATION,TEACHING AGENCY,04/04/2013,Grants,Funding Allocation and Performance Division,EDGE HILL UNIVERSITY,Public Sector,Grants to third sector organisations / not for profit organisations,4000123082,94490.00,,
DEPARTMENT FOR EDUCATION,TEACHING AGENCY,04/04/2013,Grants,Funding Allocation and Performance Division,UNIVERSITY OF GREENWICH,Public Sector,Grants to third sector organisations / not for profit organisations,4000123085,113232.00,,
DEPARTMENT FOR EDUCATION,TEACHING AGENCY,04/04/2013,Grants,Funding Allocation and Performance Division,UNIVERSITY OF GREENWICH,Public Sector,Grants to third sector organisations / not for profit organisations,4000123085,158742.10,,
DEPARTMENT FOR EDUCATION,TEACHING AGENCY,04/04/2013,Grants,Funding Allocation and Performance Division,UNIVERSITY OF GREENWICH,Public Sector,Grants to third sector organisations / not for profit organisations,4000123085,11934.40,,
DEPARTMENT FOR EDUCATION,TEACHING AGENCY,04/04/2013,Grants,Funding Allocation and Performance Division,SOMERSET COUNTY COUNCIL,Public Sector,Grants to third sector organisations / not for profit organisations,4000123086,83520.00,,
DEPARTMENT FOR EDUCATION,TEACHING AGENCY,04/04/2013,Grants,Funding Allocation and Performance Division,SOMERSET COUNTY COUNCIL,Public Sector,Grants to third sector organisations / not for profit organisations,4000123086,9618.00,,
DEPARTMENT FOR EDUCATION,TEACHING AGENCY,04/04/2013,Grants,Funding Allocation and Performance Division,OXFORD BROOKES UNIVERSITY,Public Sector,Grants to third sector organisations / not for profit organisations,4000123092,110389.50,,
DEPARTMENT FOR EDUCATION,TEACHING AGENCY,04/04/2013,Grants,Funding Allocation and Performance Division,OXFORD BROOKES UNIVERSITY,Public Sector,Grants to third sector organisations / not for profit organisations,4000123092,191119.20,,
DEPARTMENT FOR EDUCATION,TEACHING AGENCY,04/04/2013,Grants,Funding Allocation and Performance Division,OXFORD BROOKES UNIVERSITY,Public Sector,Grants to third sector organisations / not for profit organisations,4000123092,12582.00,,
DEPARTMENT FOR EDUCATION,TEACHING AGENCY,04/04/2013,Grants,Supply and Recruitment Division,UNIVERSITY OF EAST LONDON,Public Sector,Grants to third sector organisations / not for profit organisations,4000123096,9343.92,,
DEPARTMENT FOR EDUCATION,TEACHING AGENCY,04/04/2013,Grants,Funding Allocation and Performance Division,UNIVERSITY OF EAST LONDON,Public Sector,Grants to third sector organisations / not for profit organisations,4000123096,271426.50,,
DEPARTMENT FOR EDUCATION,TEACHING AGENCY,04/04/2013,Grants,Funding Allocation and Performance Division,UNIVERSITY OF EAST LONDON,Public Sector,Grants to third sector organisations / not for profit organisations,4000123096,24897.60,,
DEPARTMENT FOR EDUCATION,TEACHING AGENCY,04/04/2013,Grants,Funding Allocation and Performance Division,UNIVERSITY OF EAST LONDON,Public Sector,Grants to third sector organisations / not for profit organisations,4000123096,78911.20,,
DEPARTMENT FOR EDUCATION,TEACHING AGENCY,04/04/2013,Grants,Funding Allocation and Performance Division,UNIVERSITY OF EAST ANGLIA,Public Sector,Grants to third sector organisations / not for profit organisations,4000123100,199389.60,,
DEPARTMENT FOR EDUCATION,TEACHING AGENCY,04/04/2013,Grants,Funding Allocation and Performance Division,UNIVERSITY OF EAST ANGLIA,Public Sector,Grants to third sector organisations / not for profit organisations,4000123100,1175.20,,
DEPARTMENT FOR EDUCATION,TEACHING AGENCY,04/04/2013,Grants,Funding Allocation and Performance Division,UNIVERSITY OF EXETER,Public Sector,Grants to third sector organisations / not for profit organisations,4000123108,323190.00,,
DEPARTMENT FOR EDUCATION,TEACHING AGENCY,04/04/2013,Grants,Funding Allocation and Performance Division,CORNWALL COUNCIL,Public Sector,Grants to third sector organisations / not for profit organisations,4000123112,43680.00,,
DEPARTMENT FOR EDUCATION,TEACHING AGENCY,04/04/2013,Grants,Funding Allocation and Performance Division,ANGLIA RUSKIN UNIVERSITY,Public Sector,Grants to third sector organisations / not for profit organisations,4000123118,70686.00,,
DEPARTMENT FOR EDUCATION,TEACHING AGENCY,04/04/2013,Grants,Funding Allocation and Performance Division,ANGLIA RUSKIN UNIVERSITY,Public Sector,Grants to third sector organisations / not for profit organisations,4000123118,64446.29,,
DEPARTMENT FOR EDUCATION,TEACHING AGENCY,04/04/2013,Grants,Funding Allocation and Performance Division,BRUNEL UNIVERSITY,Public Sector,Grants to third sector organisations / not for profit organisations,4000123119,23564.00,,
DEPARTMENT FOR EDUCATION,TEACHING AGENCY,04/04/2013,Grants,Funding Allocation and Performance Division,BRUNEL UNIVERSITY,Public Sector,Grants to third sector organisations / not for profit organisations,4000123119,155700.00,,
DEPARTMENT FOR EDUCATION,TEACHING AGENCY,04/04/2013,Grants,Funding Allocation and Performance Division,UNIVERSITY OF OXFORD,Public Sector,Grants to third sector organisations / not for profit organisations,4000123123,181634.16,,
DEPARTMENT FOR EDUCATION,TEACHING AGENCY,04/04/2013,Grants,Funding Allocation and Performance Division,YORK ST JOHN UNIVERSITY,Public Sector,Grants to third sector organisations / not for profit organisations,4000123126,117504.00,,
DEPARTMENT FOR EDUCATION,TEACHING AGENCY,04/04/2013,Grants,Funding Allocation and Performance Division,YORK ST JOHN UNIVERSITY,Public Sector,Grants to third sector organisations / not for profit organisations,4000123126,201026.00,,
DEPARTMENT FOR EDUCATION,TEACHING AGENCY,04/04/2013,Grants,Funding Allocation and Performance Division,UNIVERSITY OF DERBY,Public Sector,Grants to third sector organisations / not for profit organisations,4000123132,113373.00,,
DEPARTMENT FOR EDUCATION,TEACHING AGENCY,04/04/2013,Grants,Funding Allocation and Performance Division,UNIVERSITY OF DERBY,Public Sector,Grants to third sector organisations / not for profit organisations,4000123132,44400.00,,
DEPARTMENT FOR EDUCATION,TEACHING AGENCY,04/04/2013,Grants,Funding Allocation and Performance Division,UNIVERSITY OF DERBY,Public Sector,Grants to third sector organisations / not for profit organisations,4000123132,22602.30,,
DEPARTMENT FOR EDUCATION,TEACHING AGENCY,04/04/2013,Grants,Funding Allocation and Performance Division,STAFFORDSHIRE UNIVERSITY,Public Sector,Grants to third sector organisations / not for profit organisations,4000123133,23274.00,,
DEPARTMENT FOR EDUCATION,TEACHING AGENCY,04/04/2013,Grants,Funding Allocation and Performance Division,STAFFORDSHIRE UNIVERSITY,Public Sector,Grants to third sector organisations / not for profit organisations,4000123133,2174.40,,
DEPARTMENT FOR EDUCATION,TEACHING AGENCY,04/04/2013,Grants,Funding Allocation and Performance Division,LEEDS METROPOLITAN UNIVERSITY,Public Sector,Grants to third sector organisations / not for profit organisations,4000123134,208440.00,,
DEPARTMENT FOR EDUCATION,TEACHING AGENCY,04/04/2013,Grants,Funding Allocation and Performance Division,LEEDS METROPOLITAN UNIVERSITY,Public Sector,Grants to third sector organisations / not for profit organisations,4000123134,41130.00,,
